Workbook

Sheet Оглавление
A6: ПРАЙС-ЛИСТ ОТ 10/03/2025
A7: Проставьте, пожалуйста, обозначенную Вашим менеджером скидку в поле "Ваша скидка"
A9: Внимание! На позиции с признаком "специальное предложение " и "акция" скидка не распространяется!
J12: Ваша скидка
A13: Трубопроводная арматура | K13: 0.00%
A14: Трубы, Защитные гофротрубы | K14: 0.00%
A15: Аксиальные фитинги | K15: 0.00%
A16: Шкафы коллекторные | K16: 0.00%
A17: Оборудование для тёплого пола | K17: 0.00%
A18: Коллекторные блоки для систем отопления | K18: 0.00%
A19: Клапаны для отопительных приборов | K19: 0.00%
A20: Бойлеры, Накопители, Теплоаккумуляторы | K20: 0.00%
A21: Мембранные расширительные баки | K21: 0.00%
A22: Дымоходы | K22: 0.00%
A23: Теплохладоноситель | K23: 0.00%
A25: Быстрые ссылки
A26: Шаровые краны, обратные клапаны, фильтры
A27: Трубы, Защитные гофротрубы
A28: Фитинги для аксиальной запресовки
A29: Коллекторные шкафы
A30: Смесительные узлы и комплектующие для напольного отопления
A31: Коллекторные блоки и комплектующие
A32: Клапаны для отопительных приборов
A33: Байлеры, Накопители, Теплоаккумуляторы
A34: Мембранные расширительные баки
A35: Дымоходы
A36: Теплохладоноситель

Sheet Шаровые краны, ОК, Сетч.фильтры
A4: Шаровые краны, обратные клапаны, фильтры
A6: ПОЛНОПРОХОДНЫЕ ШАРОВЫЕ КРАНЫ
A7: • Седельные уплотнительные кольца шара изготовлены из фторопласта (PTFE)
A8: • Кольцевые прокладки штока изготовлены из фтористого каучука (FPM) | J8: На главную страницу
A9: • Корпус: латунь хромированная горячепресованная (CW617N)
A10: • Рукоятка: рычаг - сталь с полимерным покрытием, бабочка - алюминий
A11: • Максимальное рабочее давление : 35 бар для Ду 15-20, 28 бар для Ду 25-50
A12: • Диапазон рабочих температур: от -20 до +180⁰C
J13: Итого: | K13: =SUM(L16:L39)+SUM(L50:L55)+SUM(L65:L70) -> 0.00
A14: Фото | B14: Артикул | C14: Наименование товара | E14: Размер | F14: Вес, г | G14: Упаковка, шт. | H14: Коробка, шт. | I14: Цена за шт. | J14: Цена со скидкой, RUB | K14: Кол-во, шт. | L14: Сумма со скидкой, RUB
I15: RUB
B16: GK 550 12 | C16: Кран шаровой (ручка - рычаг), внутренняя-внутренняя резьба | E16: 1/2" | F16: 175 | G16: 10 | H16: 100 | I16: ='Конвертация цен'!H6 -> 509.00 | J16: =I16-I16*Оглавление!$K$13 -> 509.00 | L16: =K16*J16 -> 0.00
B17: GK 550 34 | E17: 3/4" | F17: 265 | G17: 5 | H17: 50 | I17: ='Конвертация цен'!H7 -> 769.00 | J17: =I17-I17*Оглавление!$K$13 -> 769.00 | L17: =K17*J17 -> 0.00
B18: GK 550 1 | E18: 1" | F18: 400 | G18: 5 | H18: 25 | I18: ='Конвертация цен'!H8 -> 1209.00 | J18: =I18-I18*Оглавление!$K$13 -> 1,209.00 | L18: 0.00
B19: GK 550 114 | E19: 1 1/4" | F19: 560 | G19: 4 | H19: 20 | I19: ='Конвертация цен'!H9 -> 1779.00 | J19: =I19-I19*Оглавление!$K$13 -> 1,779.00 | L19: 0.00
B20: GK 550 112 | E20: 1 1/2" | F20: 980 | G20: 4 | H20: 15 | I20: ='Конвертация цен'!H10 -> 2812.00 | J20: =I20-I20*Оглавление!$K$13 -> 2,812.00 | L20: 0.00
B21: GK 550 2 | E21: 2" | F21: 1550 | G21: 2 | H21: 10 | I21: ='Конвертация цен'!H11 -> 4339.00 | J21: =I21-I21*Оглавление!$K$13 -> 4,339.00 | L21: 0.00
B22: GK 551 12 | C22: Кран шаровой (ручка - бабочка), внутренняя-внутренняя резьба | E22: 1/2" | F22: 178 | G22: 10 | H22: 100 | I22: ='Конвертация цен'!H12 -> 509.00 | J22: =I22-I22*Оглавление!$K$13 -> 509.00 | L22: 0.00
B23: GK 551 34 | E23: 3/4" | F23: 255 | G23: 5 | H23: 50 | I23: ='Конвертация цен'!H13 -> 769.00 | J23: =I23-I23*Оглавление!$K$13 -> 769.00 | L23: 0.00
B24: GK 551 1 | E24: 1" | F24: 390 | G24: 5 | H24: 50 | I24: ='Конвертация цен'!H14 -> 1209.00 | J24: =I24-I24*Оглавление!$K$13 -> 1,209.00 | L24: 0.00
B25: GK 551 114 | E25: 1 1/4" | F25: 530 | G25: 5 | H25: 25 | I25: ='Конвертация цен'!H15 -> 1779.00 | J25: =I25-I25*Оглавление!$K$13 -> 1,779.00 | L25: 0.00
B26: GK 554L 12 | C26: Кран шаровой (ручка - рычаг), внутренняя-наружная резьба | E26: 1/2" | F26: 190 | G26: 5 | H26: 50 | I26: ='Конвертация цен'!H16 -> 549.00 | J26: =I26-I26*Оглавление!$K$13 -> 549.00 | L26: 0.00
B27: GK 554L 34 | E27: 3/4" | F27: 300 | G27: 5 | H27: 50 | I27: ='Конвертация цен'!H17 -> 817.00 | J27: =I27-I27*Оглавление!$K$13 -> 817.00 | L27: 0.00
B28: GK 554L 1 | E28: 1" | F28: 435 | G28: 2 | H28: 20 | I28: ='Конвертация цен'!H18 -> 1307.00 | J28: =I28-I28*Оглавление!$K$13 -> 1,307.00 | L28: 0.00
B29: GK 554L 114 | E29: 1 1/4" | F29: 650 | G29: 2 | H29: 20 | I29: ='Конвертация цен'!H19 -> 2020.00 | J29: =I29-I29*Оглавление!$K$13 -> 2,020.00 | L29: 0.00
B30: GK 554L 112 | E30: 1 1/2" | F30: 1040 | G30: 4 | H30: 20 | I30: ='Конвертация цен'!H20 -> 3286.00 | J30: =I30-I30*Оглавление!$K$13 -> 3,286.00 | L30: 0.00
B31: GK 554L 2 | E31: 2" | F31: 1680 | G31: 2 | H31: 10 | I31: ='Конвертация цен'!H21 -> 5259.00 | J31: =I31-I31*Оглавление!$K$13 -> 5,259.00 | L31: 0.00
B32: GK 554 12 | C32: Кран шаровой (ручка - бабочка), внутренняя-наружная резьба | E32: 1/2" | F32: 180 | G32: 10 | H32: 100 | I32: ='Конвертация цен'!H22 -> 565.00 | J32: =I32-I32*Оглавление!$K$13 -> 565.00 | L32: 0.00
B33: GK 554 34 | E33: 3/4" | F33: 285 | G33: 5 | H33: 50 | I33: ='Конвертация цен'!H23 -> 840.00 | J33: =I33-I33*Оглавление!$K$13 -> 840.00 | L33: 0.00
B34: GK 554 1 | E34: 1" | F34: 420 | G34: 5 | H34: 25 | I34: ='Конвертация цен'!H24 -> 1307.00 | J34: =I34-I34*Оглавление!$K$13 -> 1,307.00 | L34: 0.00
B35: GK 554 114 | E35: 1 1/4" | F35: 620 | G35: 4 | H35: 20 | I35: ='Конвертация цен'!H25 -> 2186.00 | J35: =I35-I35*Оглавление!$K$13 -> 2,186.00 | L35: 0.00
B36: GK 559 12 | C36: Кран шаровой (ручка-бабочка), внутренняя-американка | E36: 1/2" | F36: 253 | G36: 1 | H36: 50 | I36: ='Конвертация цен'!H26 -> 718.00 | J36: =I36-I36*Оглавление!$K$13 -> 718.00 | L36: 0.00
B37: GK 559 34 | E37: 3/4" | F37: 405 | G37: 1 | H37: 25 | I37: ='Конвертация цен'!H27 -> 1104.00 | J37: =I37-I37*Оглавление!$K$13 -> 1,104.00 | L37: 0.00
B38: GK 559 1 | E38: 1" | F38: 592 | G38: 1 | H38: 20 | I38: ='Конвертация цен'!H28 -> 1740.00 | J38: =I38-I38*Оглавление!$K$13 -> 1,740.00 | L38: 0.00
B39: GK 559 114 | E39: 1" 1/4 | F39: 835 | G39: 1 | H39: 20 | I39: ='Конвертация цен'!H29 -> 2624.00 | J39: =I39-I39*Оглавление!$K$13 -> 2,624.00 | L39: 0.00
A41: ОБРАТНЫЕ КЛАПАНЫ
A42: • Корпус: латунь горячепресованная (CW617N)
A43: • Золотник, верхняя и нижняя тарелка изготовлены из нейлона (РА)
A44: • Уплотнение между тарелок нитрил бутадиеновый каучук (NBR)
A45: • Возвратная пружина из нержавеющей стали (AISI 302)
A46: • Максимальное рабочее давление : 16 бар для Ду 15-25, 10 бар для Ду 32-50
A47: • Макс. рабочая температура: 100 °C
A48: • Дифференциальное давление срабатывания 0,02 бар
B50: GK 30 12 | C50: Клапан обратный с латунным золотником, внутренняя-внутренняя резьба | E50: 1/2" | F50: 100 | G50: 30 | H50: 120 | I50: ='Конвертация цен'!H30 -> 519.00 | J50: =I50-I50*Оглавление!$K$13 -> 519.00 | L50: =K50*J50 -> 0.00
B51: GK 30 34 | E51: 3/4" | F51: 155 | G51: 30 | H51: 120 | I51: ='Конвертация цен'!H31 -> 696.00 | J51: =I51-I51*Оглавление!$K$13 -> 696.00 | L51: =K51*J51 -> 0.00
B52: GK 30 1 | E52: 1" | F52: 235 | G52: 18 | H52: 72 | I52: ='Конвертация цен'!H32 -> 976.00 | J52: =I52-I52*Оглавление!$K$13 -> 976.00 | L52: =K52*J52 -> 0.00
B53: GK 30 114 | E53: 1 1/4" | F53: 386 | G53: 14 | H53: 42 | I53: ='Конвертация цен'!H33 -> 1453.00 | J53: =I53-I53*Оглавление!$K$13 -> 1,453.00 | L53: 0.00
B54: GK 30 112 | E54: 1 1/2" | F54: 524 | G54: 12 | H54: 24 | I54: ='Конвертация цен'!H34 -> 1898.00 | J54: =I54-I54*Оглавление!$K$13 -> 1,898.00 | L54: =K54*J54 -> 0.00
B55: GK 30 2 | E55: 2" | F55: 740 | G55: 10 | H55: 20 | I55: ='Конвертация цен'!H35 -> 2868.00 | J55: =I55-I55*Оглавление!$K$13 -> 2,868.00 | L55: =K55*J55 -> 0.00
A57: СЕТЧАТЫЕ ФИЛЬТРЫ ТОНКОЙ ОЧИСТКИ
A58: • Корпус и заглушка: латунь горячепресованная (CW617N)
A59: • Уплотнение заглушки фторопласт (PTFE)
A60: • Фильтрующий элемент из нержавеющей стали (AISI 304)
A61: • Максимальное рабочее давление : 16 бар
A62: • Макс. рабочая температура: 110 °C
A63: • Размер ячейки фильтрующего элемента 0,5 мм
B65: GK 44N 12 | C65: Фильтр тонкой механической очистки косой, сетка 500 мкм, внутренняя-внутренняя резьба | E65: 1/2" | F65: 130 | G65: 20 | H65: 180 | I65: ='Конвертация цен'!H36 -> 575.00 | J65: =I65-I65*Оглавление!K13 -> 575.00 | L65: =K65*J65 -> 0.00
B66: GK 44N 34 | E66: 3/4" | F66: 190 | G66: 20 | H66: 120 | I66: ='Конвертация цен'!H37 -> 899.00 | J66: =I66-I66*Оглавление!K14 -> 899.00 | L66: =K66*J66 -> 0.00
B67: GK 44N 1 | E67: 1" | F67: 280 | G67: 15 | H67: 90 | I67: ='Конвертация цен'!H38 -> 1116.00 | J67: =I67-I67*Оглавление!K15 -> 1,116.00 | L67: 0.00
B68: GK 44N 114 | E68: 1 1/4" | F68: 540 | G68: 6 | H68: 36 | I68: ='Конвертация цен'!H39 -> 2159.00 | J68: =I68-I68*Оглавление!$K$13 -> 2,159.00 | L68: 0.00
B69: GK 44N 112 | E69: 1 1/2" | F69: 650 | G69: 2 | H69: 24 | I69: ='Конвертация цен'!H40 -> 3240.00 | J69: =I69-I69*Оглавление!K16 -> 3,240.00 | L69: 0.00
B70: GK 44N 2 | E70: 2" | F70: 1158 | G70: 2 | H70: 12 | I70: ='Конвертация цен'!H41 -> 5374.00 | J70: =I70-I70*Оглавление!K17 -> 5,374.00 | L70: 0.00

Sheet Трубы
A4: Трубы, Защитные гофротрубы
A6: ТРУБА GEKON TRITHERM УНИВЕРСАЛЬНАЯ PE-Xa/EVOH
A7: • Материал: сшитый полиэтилен, способ сшивки - пероксидный (PE-Xa)
A8: • Наружный кислородозащитный барьер EVOH, кислородопроницаемость не более 0,1 г/м3 в сутки
A9: • Рабочая температура от -20 до +95⁰C | I9: На главную страницу
A10: • Максимальный кратковременный нагрев +110⁰C
A11: • Номинальное рабочее давление 6 бар, 10 бар
A12: • Страна производства: Россия
I13: Итого: | J13: =SUM(K16:K24)+SUM(K31:K38) -> 60.40
A14: Фото | B14: Артикул | C14: Наименование товара | D14: Диаметр | E14: Толщина стенки | F14: PN | G14: Упаковка | H14: Цена за метр | I14: Цена за метр со скидкой | J14: Кол-во, м. | K14: Сумма со скидкой, RUB
D15: мм | E15: мм | F15: бар | G15: м | H15: RUB | I15: RUB
B16: GK 71640006 | C16: Труба Gekon TRITHERM универсальная PE-Xa/EVOH 16х2,0, бухта 400 м | D16: 16 | E16: 2 | F16: 6 | G16: 400 | H16: ='Конвертация цен'!H45 -> 109.50 | I16: =H16-H16*Оглавление!$K$14 -> 109.50 | K16: =J16*I16 -> 0.00
B17: GK 71630006 | C17: Труба Gekon TRITHERM универсальная PE-Xa/EVOH 16х2,0, бухта 300 м | D17: 16 | E17: 2 | F17: 6 | G17: 300 | H17: ='Конвертация цен'!H46 -> 109.50 | I17: =H17-H17*Оглавление!$K$14 -> 109.50 | K17: =J17*I17 -> 0.00
B18: GK 71620006 | C18: Труба Gekon TRITHERM универсальная PE-Xa/EVOH 16х2,0, бухта 200 м | D18: 16 | E18: 2 | F18: 6 | G18: 200 | H18: ='Конвертация цен'!H47 -> 109.50 | I18: =H18-H18*Оглавление!$K$14 -> 109.50 | K18: 0.00
B19: GK 71620010 | C19: Труба Gekon TRITHERM универсальная PE-Xa/EVOH 16х2,2, бухта 200 м | D19: 16 | E19: 2.2 | F19: 10 | G19: 200 | H19: ='Конвертация цен'!H48 -> 116.00 | I19: =H19-H19*Оглавление!$K$14 -> 116.00 | K19: 0.00
B20: GK 71610010 | C20: Труба Gekon TRITHERM универсальная PE-Xa/EVOH 16х2,2, бухта 100 м | D20: 16 | E20: 2.2 | F20: 10 | G20: 100 | H20: ='Конвертация цен'!H49 -> 116.00 | I20: =H20-H20*Оглавление!$K$14 -> 116.00 | K20: 0.00
B21: GK 72020006 | C21: Труба Gekon TRITHERM универсальная PE-Xa/EVOH 20х2,0, бухта 200 м | D21: 20 | E21: 2 | F21: 6 | G21: 200 | H21: ='Конвертация цен'!H50 -> 161.55 | I21: =H21-H21*Оглавление!$K$14 -> 161.55 | K21: =J21*I21 -> 0.00
B22: GK 72010010 | C22: Труба Gekon TRITHERM универсальная PE-Xa/EVOH 20х2,8, бухта 100 м | D22: 20 | E22: 2.8 | F22: 10 | G22: 100 | H22: ='Конвертация цен'!H51 -> 175.70 | I22: =H22-H22*Оглавление!$K$14 -> 175.70 | K22: 0.00
B23: GK 72505010 | C23: Труба Gekon TRITHERM универсальная PE-Xa/EVOH 25х3,5, бухта 50 м | D23: 25 | E23: 3.5 | F23: 10 | G23: 50 | H23: ='Конвертация цен'!H52 -> 301.00 | I23: =H23-H23*Оглавление!$K$14 -> 301.00 | K23: 0.00
B24: GK 73205010 | C24: Труба Gekon TRITHERM универсальная PE-Xa/EVOH 32х4,4, бухта 50 м | D24: 32 | E24: 4.4 | F24: 10 | G24: 50 | H24: ='Конвертация цен'!H53 -> 488.00 | I24: =H24-H24*Оглавление!$K$14 -> 488.00 | K24: 0.00
A26: ТРУБА ГОФРИРОВАННАЯ ПНД
A27: • Для механической защиты полимерных труб
A29: Фото | B29: Артикул | C29: Наименование товара | D29: Наружный диаметр | E29: Внутренний диаметр | F29: Упаковка | H29: Цена за метр | I29: Цена за метр со скидкой | J29: Кол-во, м. | K29: Сумма со скидкой, RUB
D30: мм | E30: мм | F30: м | H30: RUB | I30: RUB
B31: GK 716050R | C31: Труба гофрированная ПНД для 16-й полимерной трубы, красная, бухта 50 метров | D31: 21 | E31: 18.3 | F31: 50 | H31: ='Конвертация цен'!H54 -> 27.50 | I31: =H31-H31*Оглавление!$K$14 -> 27.50 | K31: =I31*J31 -> 0.00
B32: GK 720050R | C32: Труба гофрированная ПНД для 20-й полимерной трубы, красная, бухта 50 метров | D32: 25 | E32: 21.8 | F32: 50 | G32: 50 | H32: ='Конвертация цен'!H55 -> 35.50 | I32: =H32-H32*Оглавление!$K$14 -> 35.50 | K32: =I32*J32 -> 0.00
B33: GK 725030R | C33: Труба гофрированная ПНД для 25-й полимерной трубы, красная, бухта 30 метров | D33: 32 | E33: 27 | F33: 30 | G33: 30 | H33: ='Конвертация цен'!H56 -> 46.30 | I33: =H33-H33*Оглавление!$K$14 -> 46.30 | K33: 0.00
B34: GK 732030R | C34: Труба гофрированная ПНД для 32-й полимерной трубы, красная, бухта 30 метров | D34: 40 | E34: 35 | F34: 30 | G34: 30 | H34: ='Конвертация цен'!H57 -> 60.40 | I34: =H34-H34*Оглавление!$K$14 -> 60.40 | K34: 0.00
B35: GK 716050B | C35: Труба гофрированная ПНД для 16-й полимерной трубы, синяя, бухта 50 метров | D35: 21 | E35: 18.3 | F35: 50 | H35: ='Конвертация цен'!H58 -> 27.50 | I35: =H35-H35*Оглавление!$K$14 -> 27.50 | K35: 0.00
B36: GK 720050B | C36: Труба гофрированная ПНД для 20-й полимерной трубы, синяя, бухта 50 метров | D36: 25 | E36: 21.8 | F36: 50 | G36: 50 | H36: ='Конвертация цен'!H59 -> 35.50 | I36: =H36-H36*Оглавление!$K$14 -> 35.50 | K36: 0.00
B37: GK 725030B | C37: Труба гофрированная ПНД для 25-й полимерной трубы, синяя, бухта 30 метров | D37: 32 | E37: 27 | F37: 30 | G37: 30 | H37: ='Конвертация цен'!H60 -> 46.30 | I37: =H37-H37*Оглавление!$K$14 -> 46.30 | K37: 0.00
B38: GK 732030B | C38: Труба гофрированная ПНД для 32-й полимерной трубы, синяя, бухта 30 метров | D38: 40 | E38: 35 | F38: 30 | G38: 30 | H38: ='Конвертация цен'!H61 -> 60.40 | I38: =H38-H38*Оглавление!$K$14 -> 60.40 | J38: 1.00 | K38: 60.40

Sheet Аксиальные фитинги
A4: Фитинги для аксиальной запресовки
A6: • Материал: фитинги - латунь ЛС 59-1, монтажная гильза - ПВДФ (PVDF)
A7: • Номинальное рабочее давление: 10 бар | I7: На главную страницу
A8: • Макс. рабочая температура: 95⁰C
A9: • Фитинги аксиальной заперсовки Gekon соответствуют ГОСТ 32415-2013
A10: • Фитинги аксиальной запрессовки относят к неразъёмным соединениям, что позволяет использовать их для скрытой прокладки систем (заливки в бетон)
I11: Итого: | J11: =SUM(K14:K102) -> 0.00
A12: Фото | B12: Артикул | C12: Наименование товара | E12: Размер | F12: Упаковка, шт. | G12: Коробка, шт. | H12: Цена за шт. | I12: Цена со скидкой, RUB | J12: Кол-во, шт. | K12: Сумма со скидкой, RUB
H13: RUB
B14: GK 7GX001000016 | C14: Кольцо монтажное GX 16 | E14: 16 | F14: 20 | G14: 300 | H14: ='Конвертация цен'!H65 -> 35.00 | I14: =H14-H14*Оглавление!$K$15 -> 35.00 | K14: =J14*I14 -> 0.00
B15: GK 7GX001000020 | C15: Кольцо монтажное GX 20 | E15: 20 | F15: 20 | G15: 300 | H15: ='Конвертация цен'!H66 -> 40.00 | I15: =H15-H15*Оглавление!$K$15 -> 40.00 | K15: =J15*I15 -> 0.00
B16: GK 7GX001000025 | C16: Кольцо монтажное GX 25 | E16: 25 | F16: 20 | G16: 200 | H16: ='Конвертация цен'!H67 -> 67.00 | I16: =H16-H16*Оглавление!$K$15 -> 67.00 | K16: 0.00
B17: GK 7GX001000032 | C17: Кольцо монтажное GX 32 | E17: 32 | F17: 5 | G17: 100 | H17: ='Конвертация цен'!H68 -> 109.00 | I17: =H17-H17*Оглавление!$K$15 -> 109.00 | K17: =J17*I17 -> 0.00
B18: GK 7GX002001616 | C18: Прямой фитинг GX 16x16 | E18: 16x16 | F18: 10 | G18: 250 | H18: ='Конвертация цен'!H69 -> 167.00 | I18: =H18-H18*Оглавление!$K$15 -> 167.00 | K18: =J18*I18 -> 0.00
B19: GK 7GX002002020 | C19: Прямой фитинг GX 20x20 | E19: 20x20 | F19: 10 | G19: 250 | H19: ='Конвертация цен'!H70 -> 315.00 | I19: =H19-H19*Оглавление!$K$15 -> 315.00 | K19: 0.00
B20: GK 7GX002002525 | C20: Прямой фитинг GX 25x25 | E20: 25x25 | F20: 10 | G20: 100 | H20: ='Конвертация цен'!H71 -> 447.00 | I20: =H20-H20*Оглавление!$K$15 -> 447.00 | K20: 0.00
B21: GK 7GX002003232 | C21: Прямой фитинг GX 32x32 | E21: 32x32 | F21: 5 | G21: 100 | H21: ='Конвертация цен'!H72 -> 1087.00 | I21: =H21-H21*Оглавление!$K$15 -> 1,087.00 | K21: 0.00
B22: GK 7GX002002016 | C22: Прямой переходный фитинг GX 20x16 | E22: 20x16 | F22: 10 | G22: 250 | H22: ='Конвертация цен'!H74 -> 264.00 | I22: =H22-H22*Оглавление!$K$15 -> 264.00 | K22: 0.00
B23: GK 7GX002002516 | C23: Прямой переходный фитинг GX 25x16 | E23: 25x16 | F23: 10 | G23: 100 | H23: ='Конвертация цен'!H75 -> 415.00 | I23: =H23-H23*Оглавление!$K$15 -> 415.00 | K23: 0.00
B24: GK 7GX002002520 | C24: Прямой переходный фитинг GX 25x20 | E24: 25x20 | F24: 10 | G24: 100 | H24: ='Конвертация цен'!H76 -> 415.00 | I24: =H24-H24*Оглавление!$K$15 -> 415.00 | K24: 0.00
B25: GK 7GX002003220 | C25: Прямой переходный фитинг GX 32x20 | E25: 32x20 | F25: 5 | G25: 100 | H25: ='Конвертация цен'!H77 -> 1411.00 | I25: =H25-H25*Оглавление!$K$15 -> 1,411.00 | K25: 0.00
B26: GK 7GX002003225 | C26: Прямой переходный фитинг GX 32x25 | E26: 32x25 | F26: 5 | G26: 100 | H26: ='Конвертация цен'!H78 -> 1104.00 | I26: =H26-H26*Оглавление!$K$15 -> 1,104.00 | K26: 0.00
B27: GK 7GX005001612 | C27: Прямой фитинг GX с наружной резьбой 16x1/2"M | E27: 16x1/2"M | F27: 10 | G27: 250 | H27: ='Конвертация цен'!H81 -> 191.00 | I27: =H27-H27*Оглавление!$K$15 -> 191.00 | K27: 0.00
B28: GK 7GX005002012 | C28: Прямой фитинг GX с наружной резьбой 20x1/2"M | E28: 20x1/2"M | F28: 10 | G28: 250 | H28: ='Конвертация цен'!H82 -> 242.00 | I28: =H28-H28*Оглавление!$K$15 -> 242.00 | K28: 0.00
B29: GK 7GX005002512 | C29: Прямой фитинг GX с наружной резьбой 25x1/2"M | E29: 25x1/2"M | F29: 10 | G29: 250 | H29: ='Конвертация цен'!H83 -> 367.00 | I29: =H29-H29*Оглавление!$K$15 -> 367.00 | K29: 0.00
B30: GK 7GX005001634 | C30: Прямой фитинг GX с наружной резьбой 16x3/4"M | E30: 16x3/4"M | F30: 10 | G30: 250 | H30: ='Конвертация цен'!H84 -> 305.00 | I30: =H30-H30*Оглавление!$K$15 -> 305.00 | K30: 0.00
B31: GK 7GX005002034 | C31: Прямой фитинг GX с наружной резьбой 20x3/4"M | E31: 20x3/4"M | F31: 10 | G31: 250 | H31: ='Конвертация цен'!H85 -> 333.00 | I31: =H31-H31*Оглавление!$K$15 -> 333.00 | K31: 0.00
B32: GK 7GX005002534 | C32: Прямой фитинг GX с наружной резьбой 25x3/4"M | E32: 25x3/4"M | F32: 10 | G32: 250 | H32: ='Конвертация цен'!H86 -> 356.00 | I32: =H32-H32*Оглавление!$K$15 -> 356.00 | K32: 0.00
B33: GK 7GX005002010 | C33: Прямой фитинг GX с наружной резьбой 20x1"M | E33: 20x1"M | F33: 5 | G33: 100 | H33: ='Конвертация цен'!H87 -> 484.00 | I33: =H33-H33*Оглавление!$K$15 -> 484.00 | K33: 0.00
B34: GK 7GX005002510 | C34: Прямой фитинг GX с наружной резьбой 25x1"M | E34: 25x1"M | F34: 5 | G34: 100 | H34: ='Конвертация цен'!H88 -> 560.00 | I34: =H34-H34*Оглавление!$K$15 -> 560.00 | K34: 0.00
B35: GK 7GX005003210 | C35: Прямой фитинг GX с наружной резьбой 32x1"M | E35: 32x1"M | F35: 5 | G35: 100 | H35: ='Конвертация цен'!H89 -> 978.00 | I35: =H35-H35*Оглавление!$K$15 -> 978.00 | K35: 0.00
B36: GK 7GX006001612 | C36: Прямой фитинг GX с внутренней резьбой 16x1/2"F | E36: 16x1/2"F | F36: 10 | G36: 250 | H36: ='Конвертация цен'!H92 -> 338.00 | I36: =H36-H36*Оглавление!$K$15 -> 338.00 | K36: 0.00
B37: GK 7GX006002012 | C37: Прямой фитинг GX с внутренней резьбой 20x1/2"F | E37: 20x1/2"F | F37: 10 | G37: 250 | H37: ='Конвертация цен'!H93 -> 365.00 | I37: =H37-H37*Оглавление!$K$15 -> 365.00 | K37: 0.00
B38: GK 7GX006001634 | C38: Прямой фитинг GX с внутренней резьбой 16x3/4"F | E38: 16x3/4"F | F38: 10 | G38: 250 | H38: ='Конвертация цен'!H94 -> 400.00 | I38: =H38-H38*Оглавление!$K$15 -> 400.00 | K38: 0.00
B39: GK 7GX006002034 | C39: Прямой фитинг GX с внутренней резьбой 20x3/4"F | E39: 20x3/4"F | F39: 10 | G39: 250 | H39: ='Конвертация цен'!H95 -> 535.00 | I39: =H39-H39*Оглавление!$K$15 -> 535.00 | K39: 0.00
B40: GK 7GX006002534 | C40: Прямой фитинг GX с внутренней резьбой 25x3/4"F | E40: 25x3/4"F | F40: 10 | G40: 100 | H40: ='Конвертация цен'!H96 -> 584.00 | I40: =H40-H40*Оглавление!$K$15 -> 584.00 | K40: 0.00
B41: GK 7GX006002510 | C41: Прямой фитинг GX с внутренней резьбой 25x1"F | E41: 25x1"F | F41: 5 | G41: 100 | H41: ='Конвертация цен'!H97 -> 798.00 | I41: =H41-H41*Оглавление!$K$15 -> 798.00 | K41: 0.00
B42: GK 7GX006003210 | C42: Прямой фитинг GX с внутренней резьбой 32x1"F | E42: 32x1"F | F42: 5 | G42: 100 | H42: ='Конвертация цен'!H98 -> 1496.00 | I42: =H42-H42*Оглавление!$K$15 -> 1,496.00 | K42: 0.00
B43: GK 7GX003001616 | C43: Угольник 90° GX 16x16 | E43: 16x16 | F43: 10 | G43: 250 | H43: ='Конвертация цен'!H101 -> 260.00 | I43: =H43-H43*Оглавление!$K$15 -> 260.00 | K43: 0.00
B44: GK 7GX003002020 | C44: Угольник 90° GX 20x20 | E44: 20x20 | F44: 10 | G44: 100 | H44: ='Конвертация цен'!H102 -> 384.00 | I44: =H44-H44*Оглавление!$K$15 -> 384.00 | K44: 0.00
B45: GK 7GX003002525 | C45: Угольник 90° GX 25x25 | E45: 25x25 | F45: 5 | G45: 50 | H45: ='Конвертация цен'!H103 -> 560.00 | I45: =H45-H45*Оглавление!$K$15 -> 560.00 | K45: 0.00
B46: GK 7GX003003232 | C46: Угольник 90° GX 32x32 | E46: 32x32 | F46: 5 | G46: 50 | H46: ='Конвертация цен'!H104 -> 1155.00 | I46: =H46-H46*Оглавление!$K$15 -> 1,155.00 | K46: 0.00
B47: GK 7GX009001612 | C47: Угольник 90° GX с наружной резьбой | E47: 16x1/2"M | F47: 10 | G47: 150 | H47: ='Конвертация цен'!H106 -> 325.00 | I47: =H47-H47*Оглавление!$K$15 -> 325.00 | K47: 0.00
B48: GK 7GX009002012 | C48: Угольник 90° GX с наружной резьбой | E48: 20x1/2"M | F48: 10 | G48: 150 | H48: ='Конвертация цен'!H107 -> 438.00 | I48: =H48-H48*Оглавление!$K$15 -> 438.00 | K48: 0.00
B49: GK 7GX009001634 | C49: Угольник 90° GX с наружной резьбой | E49: 16x3/4"M | F49: 10 | G49: 50 | H49: ='Конвертация цен'!H108 -> 467.00 | I49: =H49-H49*Оглавление!$K$15 -> 467.00 | K49: 0.00
B50: GK 7GX009002034 | C50: Угольник 90° GX с наружной резьбой | E50: 20x3/4"M | F50: 10 | G50: 50 | H50: ='Конвертация цен'!H110 -> 567.00 | I50: =H50-H50*Оглавление!$K$15 -> 567.00 | K50: 0.00
B51: GK 7GX009002534 | C51: Угольник 90° GX с наружной резьбой | E51: 25x3/4"M | F51: 10 | G51: 50 | H51: ='Конвертация цен'!H109 -> 789.00 | I51: =H51-H51*Оглавление!$K$15 -> 789.00 | K51: 0.00
B52: GK 7GX009002510 | C52: Угольник 90° GX с наружной резьбой | E52: 25x1"M | F52: 5 | G52: 50 | H52: ='Конвертация цен'!H111 -> 920.00 | I52: =H52-H52*Оглавление!$K$15 -> 920.00 | K52: 0.00
B53: GK 7GX009003210 | C53: Угольник 90° GX с наружной резьбой | E53: 32x1"M | F53: 5 | G53: 50 | H53: ='Конвертация цен'!H112 -> 1496.00 | I53: =H53-H53*Оглавление!$K$15 -> 1,496.00 | K53: 0.00
B54: GK 7GX010001612 | C54: Угольник 90° GX с внутренней резьбой | E54: 16x1/2"F | F54: 10 | G54: 150 | H54: ='Конвертация цен'!H113 -> 347.00 | I54: =H54-H54*Оглавление!$K$15 -> 347.00 | K54: 0.00
B55: GK 7GX010002012 | C55: Угольник 90° GX с внутренней резьбой | E55: 20x1/2"F | F55: 10 | G55: 150 | H55: ='Конвертация цен'!H114 -> 445.00 | I55: =H55-H55*Оглавление!$K$15 -> 445.00 | K55: 0.00
B56: GK 7GX010001634 | C56: Угольник 90° GX с внутренней резьбой | E56: 16x3/4"F | F56: 10 | G56: 50 | H56: ='Конвертация цен'!H115 -> 529.00 | I56: =H56-H56*Оглавление!$K$15 -> 529.00 | K56: 0.00
B57: GK 7GX010002034 | C57: Угольник 90° GX с внутренней резьбой | E57: 20x3/4"F | F57: 10 | G57: 50 | H57: ='Конвертация цен'!H116 -> 536.00 | I57: =H57-H57*Оглавление!$K$15 -> 536.00 | K57: 0.00
B58: GK 7GX010002534 | C58: Угольник 90° GX с внутренней резьбой | E58: 25x3/4"F | F58: 10 | G58: 50 | H58: ='Конвертация цен'!H117 -> 640.00 | I58: =H58-H58*Оглавление!$K$15 -> 640.00 | K58: 0.00
B59: GK 7GX010002510 | C59: Угольник 90° GX с внутренней резьбой | E59: 25x1"F | F59: 5 | G59: 50 | H59: ='Конвертация цен'!H118 -> 1162.00 | I59: =H59-H59*Оглавление!$K$15 -> 1,162.00 | K59: 0.00
B60: GK 7GX010003210 | C60: Угольник 90° GX с внутренней резьбой | E60: 32x1"F | F60: 5 | G60: 50 | H60: ='Конвертация цен'!H119 -> 1960.00 | I60: =H60-H60*Оглавление!$K$15 -> 1,960.00 | K60: 0.00
B61: GK 7GX004161616 | C61: Тройник соединительный GX 16х16х16 | E61: 16x16x16 | F61: 10 | G61: 100 | H61: ='Конвертация цен'!H120 -> 333.00 | I61: =H61-H61*Оглавление!$K$15 -> 333.00 | K61: 0.00
B62: GK 7GX004202020 | C62: Тройник соединительный GX 20х20х20 | E62: 20x20x20 | F62: 5 | G62: 100 | H62: ='Конвертация цен'!H121 -> 502.00 | I62: =H62-H62*Оглавление!$K$15 -> 502.00 | K62: 0.00
B63: GK 7GX004252525 | C63: Тройник соединительный GX 25х25х25 | E63: 25x25x25 | F63: 5 | G63: 50 | H63: ='Конвертация цен'!H122 -> 751.00 | I63: =H63-H63*Оглавление!$K$15 -> 751.00 | K63: 0.00
B64: GK 7GX004323232 | C64: Тройник соединительный GX 32х32х32 | E64: 32x32x32 | F64: 5 | G64: 40 | H64: ='Конвертация цен'!H123 -> 1524.00 | I64: =H64-H64*Оглавление!$K$15 -> 1,524.00 | K64: 0.00
B65: GK 7GX004162016 | C65: Тройник переходной GX 16х20х16 | E65: 16x20x16 | F65: 10 | G65: 100 | H65: ='Конвертация цен'!H125 -> 473.00 | I65: =H65-H65*Оглавление!$K$15 -> 473.00 | K65: 0.00
B66: GK 7GX004201616 | C66: Тройник переходной GX 20х16х16 | E66: 20x16X16 | F66: 10 | G66: 100 | H66: ='Конвертация цен'!H126 -> 473.00 | I66: =H66-H66*Оглавление!$K$15 -> 473.00 | K66: 0.00
B67: GK 7GX004201620 | C67: Тройник переходной GX 20х16х20 | E67: 20x16x20 | F67: 10 | G67: 100 | H67: ='Конвертация цен'!H127 -> 516.00 | I67: =H67-H67*Оглавление!$K$15 -> 516.00 | K67: 0.00
B68: GK 7GX004202016 | C68: Тройник переходной GX 20х20х16 | E68: 20x20x16 | F68: 10 | G68: 100 | H68: ='Конвертация цен'!H128 -> 545.00 | I68: =H68-H68*Оглавление!$K$15 -> 545.00 | K68: 0.00
B69: GK 7GX004202520 | C69: Тройник переходной GX 20х25х20 | E69: 20x25x20 | F69: 10 | G69: 100 | H69: ='Конвертация цен'!H129 -> 740.00 | I69: =H69-H69*Оглавление!$K$15 -> 740.00 | K69: 0.00
B70: GK 7GX004251616 | C70: Тройник переходной GX 25х16х16 | E70: 25x16x16 | F70: 5 | G70: 100 | H70: ='Конвертация цен'!H130 -> 589.00 | I70: =H70-H70*Оглавление!$K$15 -> 589.00 | K70: 0.00
B71: GK 7GX004251620 | C71: Тройник переходной GX 25х16х20 | E71: 25x16x20 | F71: 5 | G71: 100 | H71: ='Конвертация цен'!H131 -> 711.00 | I71: =H71-H71*Оглавление!$K$15 -> 711.00 | K71: 0.00
B72: GK 7GX004251625 | C72: Тройник переходной GX 25х16х25 | E72: 25x16x25 | F72: 5 | G72: 100 | H72: ='Конвертация цен'!H132 -> 727.00 | I72: =H72-H72*Оглавление!$K$15 -> 727.00 | K72: =J72*I72 -> 0.00
B73: GK 7GX004252020 | C73: Тройник переходной GX 25х20х20 | E73: 25x20x20 | F73: 5 | G73: 100 | H73: ='Конвертация цен'!H133 -> 735.00 | I73: =H73-H73*Оглавление!$K$15 -> 735.00 | K73: 0.00
B74: GK 7GX004252025 | C74: Тройник переходной GX 25х20х25 | E74: 25x20x25 | F74: 5 | G74: 100 | H74: ='Конвертация цен'!H134 -> 805.00 | I74: =H74-H74*Оглавление!$K$15 -> 805.00 | K74: 0.00
B75: GK 7GX004252520 | C75: Тройник переходной GX 25х25х20 | E75: 25x25x20 | F75: 5 | G75: 100 | H75: ='Конвертация цен'!H135 -> 864.00 | I75: =H75-H75*Оглавление!$K$15 -> 864.00 | K75: 0.00
B76: GK 7GX004252516 | C76: Тройник переходной GX 25х25х16 | E76: 25x25x16 | F76: 5 | G76: 100 | H76: ='Конвертация цен'!H136 -> 864.00 | I76: =H76-H76*Оглавление!$K$15 -> 864.00 | K76: 0.00
B77: GK 7GX004322020 | C77: Тройник переходной GX 32х20х20 | E77: 32x20x20 | F77: 5 | G77: 50 | H77: ='Конвертация цен'!H137 -> 1596.00 | I77: =H77-H77*Оглавление!$K$15 -> 1,596.00 | K77: 0.00
B78: GK 7GX004322025 | C78: Тройник переходной GX 32х20х25 | E78: 32x20x25 | F78: 5 | G78: 50 | H78: ='Конвертация цен'!H138 -> 1556.00 | I78: =H78-H78*Оглавление!$K$15 -> 1,556.00 | K78: 0.00
B79: GK 7GX004322525 | C79: Тройник переходной GX 32х25х25 | E79: 32x25x25 | F79: 5 | G79: 50 | H79: ='Конвертация цен'!H139 -> 1547.00 | I79: =H79-H79*Оглавление!$K$15 -> 1,547.00 | K79: 0.00
B80: GK 7GX004322532 | C80: Тройник переходной GX 32х25х32 | E80: 32x25x32 | F80: 5 | G80: 50 | H80: ='Конвертация цен'!H140 -> 1575.00 | I80: =H80-H80*Оглавление!$K$15 -> 1,575.00 | K80: 0.00
B81: GK 7GX004323220 | C81: Тройник переходной GX 32х32х20 | E81: 32x32x20 | F81: 5 | G81: 40 | H81: ='Конвертация цен'!H141 -> 1980.00 | I81: =H81-H81*Оглавление!$K$15 -> 1,980.00 | K81: 0.00
B82: GK 7GX004323225 | C82: Тройник переходной GX 32х32х25 | E82: 32x32x25 | F82: 5 | G82: 40 | H82: ='Конвертация цен'!H142 -> 1631.00 | I82: =H82-H82*Оглавление!$K$15 -> 1,631.00 | K82: 0.00
B83: GK 7GX016161216 | C83: Тройник с наружной резьбой GX 16x1/2"Mx16 | E83: 16x1/2"Mx16 | F83: 5 | G83: 100 | H83: ='Конвертация цен'!H147 -> 473.00 | I83: =H83-H83*Оглавление!$K$15 -> 473.00 | K83: 0.00
B84: GK 7GX017161216 | C84: Тройник GX с внутренней резьбой | E84: 16x1/2"Fx16 | F84: 5 | G84: 100 | H84: ='Конвертация цен'!H152 -> 429.00 | I84: =H84-H84*Оглавление!$K$15 -> 429.00 | K84: 0.00
B85: GK 7GX011001612 | C85: Угольник установочный GX с внутренней резьбой | E85: 16x1/2"F | F85: 5 | G85: 50 | H85: ='Конвертация цен'!H157 -> 562.00 | I85: =H85-H85*Оглавление!$K$15 -> 562.00 | K85: 0.00
B86: GK 7GX018001612 | C86: Угольник установочный GX с внутренней резьбой | E86: 16x1/2"F (45 мм) | F86: 5 | G86: 50 | H86: ='Конвертация цен'!H158 -> 553.00 | I86: =H86-H86*Оглавление!$K$15 -> 553.00 | K86: 0.00
B87: GK 7GX011002012 | C87: Угольник установочный GX с внутренней резьбой | E87: 20x1/2"F | F87: 5 | G87: 50 | H87: ='Конвертация цен'!H159 -> 687.00 | I87: =H87-H87*Оглавление!$K$15 -> 687.00 | K87: 0.00
B88: GK 7GX018002012 | C88: Угольник установочный GX с внутренней резьбой | E88: 20x1/2"F (45 мм) | F88: 5 | G88: 50 | H88: ='Конвертация цен'!H160 -> 678.00 | I88: =H88-H88*Оглавление!$K$15 -> 678.00 | K88: 0.00
B89: GK 7GX011002034 | C89: Угольник установочный GX с внутренней резьбой | E89: 20x3/4"F | F89: 5 | G89: 50 | H89: ='Конвертация цен'!H161 -> 920.00 | I89: =H89-H89*Оглавление!$K$15 -> 920.00 | K89: 0.00
B90: GK 7GX012001625 | C90: Угольник GX с хромированной трубкой (250 мм) | E90: 16x15(L-250 мм) | F90: 1 | G90: 50 | H90: ='Конвертация цен'!H163 -> 1053.00 | I90: =H90-H90*Оглавление!$K$15 -> 1,053.00 | K90: 0.00
B91: GK 7GX012002025 | C91: Угольник GX с хромированной трубкой (250 мм) | E91: 20x15(L-250 мм) | F91: 1 | G91: 50 | H91: ='Конвертация цен'!H164 -> 1253.00 | I91: =H91-H91*Оглавление!$K$15 -> 1,253.00 | K91: 0.00
B92: GK 7GX019001625 | C92: Тройник GX с хромированной трубкой (250 мм) | E92: 16x15(L-250 мм)x16 | F92: 1 | G92: 50 | H92: ='Конвертация цен'!H165 -> 1453.00 | I92: =H92-H92*Оглавление!$K$15 -> 1,453.00 | K92: 0.00
B93: GK 7GX019002025 | C93: Тройник GX с хромированной трубкой (250 мм) | E93: 20x15(L-250 мм)x20 | F93: 1 | G93: 50 | H93: ='Конвертация цен'!H166 -> 1647.00 | I93: =H93-H93*Оглавление!$K$15 -> 1,647.00 | K93: 0.00
B94: GK 7GX020000016 | C94: Заглушка GX 16 | E94: 16 | F94: 10 | G94: 500 | H94: ='Конвертация цен'!H167 -> 125.00 | I94: =H94-H94*Оглавление!$K$15 -> 125.00 | K94: 0.00
B95: GK 7GX020000020 | C95: Заглушка GX 20 | E95: 20 | F95: 10 | G95: 250 | H95: ='Конвертация цен'!H168 -> 238.00 | I95: =H95-H95*Оглавление!$K$15 -> 238.00 | K95: 0.00
B96: GK 7GX020000025 | C96: Заглушка GX 25 | E96: 25 | F96: 10 | G96: 250 | H96: ='Конвертация цен'!H169 -> 358.00 | I96: =H96-H96*Оглавление!$K$15 -> 358.00 | K96: 0.00
B97: GK 7GX008001612 | C97: Фитинг с накидной гайкой GX 1/2"EU x 16 PEX | E97: 1/2"EUx16 PEX | F97: 10 | G97: 250 | H97: ='Конвертация цен'!H170 -> 440.00 | I97: =H97-H97*Оглавление!$K$15 -> 440.00 | K97: 0.00
B98: GK 7GX008001634 | C98: Фитинг с накидной гайкой GX 3/4"EU x 16 PEX | E98: 3/4"EUx16 PEX | F98: 10 | G98: 250 | H98: ='Конвертация цен'!H171 -> 385.00 | I98: =H98-H98*Оглавление!$K$15 -> 385.00 | K98: 0.00
B99: GK 7GX008002034 | C99: Фитинг с накидной гайкой GX 3/4"EU x 20 PEX | E99: 3/4"EUx20 PEX | F99: 10 | G99: 250 | H99: ='Конвертация цен'!H172 -> 580.00 | I99: =H99-H99*Оглавление!$K$15 -> 580.00 | K99: 0.00
B100: GK 7GX013001634 | C100: Переходник для пластиковой трубы с соединением евроконус, 3/4"E x(16x2,2) | E100: 3/4"E x 16 PEX (16*2,2) | F100: 25 | G100: 250 | H100: ='Конвертация цен'!H173 -> 347.00 | I100: =H100-H100*Оглавление!$K$15 -> 347.00 | K100: 0.00
B101: GK 7GX013002034 | C101: Переходник для пластиковой трубы с соединением евроконус, 3/4"E x(20x2,8) | E101: 3/4"E x 20 PEX (20*2,8) | F101: 25 | G101: 250 | H101: ='Конвертация цен'!H174 -> 411.00 | I101: =H101-H101*Оглавление!$K$15 -> 411.00 | K101: 0.00
B102: GK 7GX013001534 | C102: Переходник для медной трубы с соединением евроконус, 3/4"E x15 | E102: 3/4"E x 15 | F102: 25 | G102: 250 | H102: ='Конвертация цен'!H175 -> 245.00 | I102: =H102-H102*Оглавление!$K$15 -> 245.00 | K102: 0.00

Sheet Шкафы коллекторные
A4: Коллекторные шкафы
A6: ШКАФ ВСТРОЕННЫЙ (ШРВ) С НАКЛАДНОЙ ДВЕРЦЕЙ | I6: На главную страницу
A7: • Страна производства: Россия
A8: • Внутри шкафа установлены передвижные монтажные рейки, к которым крепится оборудование
A9: • Ножки регулируются по высоте до 40мм
A10: • Выдвижная рамка позволяет регулировать глубину от 125 мм до 195 мм
A11: • В боковых стенах корпуса предусмотрена перфорация для удобного пропуска присоединительных трубопроводов
A12: • Корпус шкафа изготовлен из стали толщиной 0,8 мм
A13: • Лицевые поверхности шкафа окрашены порошковой эмалью с предварительной фосфатной подготовкой
A14: • Откидная дверца закрывается на замок
I15: Итого: | J15: =SUM(K18:K24)+SUM(K39:K52) -> 0.00
A16: Фото | B16: Артикул | C16: Наименование товара | E16: Высота х ширина | F16: Вес, кг | G16: Упаковка, шт. | H16: Цена за шт. | I16: Цена со скидкой, RUB | J16: Кол-во, шт. | K16: Сумма со скидкой, RUB
H17: RUB
B18: GK SHV-0 | C18: Шкаф встроенный (ШРВ) с накладной дверцей, регулируемая глубина от 125 до 195 мм | E18: 668 x 402 | F18: 6.77 | G18: 1 | H18: ='Конвертация цен'!H179 -> 4071.20 | I18: =H18-H18*Оглавление!$K$16 -> 4,071.20 | K18: =J18*I18 -> 0.00
B19: GK SHV-1 | E19: 668 x 492 | F19: 7.45 | G19: 1 | H19: ='Конвертация цен'!H180 -> 4344.31 | I19: =H19-H19*Оглавление!$K$16 -> 4,344.31 | K19: 0.00
B20: GK SHV-2 | E20: 668 x 592 | F20: 8.15 | G20: 1 | H20: ='Конвертация цен'!H181 -> 5056.20 | I20: =H20-H20*Оглавление!$K$16 -> 5,056.20 | K20: 0.00
B21: GK SHV-3 | E21: 668 x 742 | F21: 10.49 | G21: 1 | H21: ='Конвертация цен'!H182 -> 6217.70 | I21: =H21-H21*Оглавление!$K$16 -> 6,217.70 | K21: 0.00
B22: GK SHV-4 | E22: 668 x 892 | F22: 10.91 | G22: 1 | H22: ='Конвертация цен'!H183 -> 7274.25 | I22: =H22-H22*Оглавление!$K$17 -> 7,274.25 | K22: 0.00
B23: GK SHV-5 | E23: 668 x 1042 | F23: 11.33 | G23: 1 | H23: ='Конвертация цен'!H184 -> 8037.45 | I23: =H23-H23*Оглавление!$K$17 -> 8,037.45 | K23: 0.00
B24: GK SHV-6 | E24: 668 x 1192 | F24: 11.75 | G24: 1 | H24: ='Конвертация цен'!H185 -> 8800.65 | I24: =H24-H24*Оглавление!$K$17 -> 8,800.65 | K24: 0.00
A26: ШКАФ НАРУЖНЫЙ (ШРН) С НАКЛАДНОЙ ДВЕРЦЕЙ
A27: • Страна производства: Россия
A28: • Внутри шкафа установлены передвижные монтажные рейки, к которым крепится оборудование
A29: • Ножки регулируются по высоте до 40мм
A30: • Стандартная глубина наружного шкафа 120 мм (GK SHN), увеличенная глубина наружного шкафа 150 мм (GK SHN-150)
A31: • В боковых стенах корпуса предусмотрена перфорация для удобного пропуска присоединительных трубопроводов
A32: • Корпус шкафа изготовлен из стали толщиной 0,8 мм
A33: • Лицевые поверхности шкафа окрашены порошковой эмалью с предварительной фосфатной подготовкой
A34: • Откидная дверца закрывается на замок
A35: • Все шкафы наружного типа оборудованы нижней съемной планкой для удобства монтажа трубопровода
A37: Фото | B37: Артикул | C37: Наименование товара | E37: Высота х ширина | F37: Вес, кг | G37: Упаковка, шт. | H37: Цена за шт. | I37: Цена со скидкой, RUB | J37: Кол-во, шт. | K37: Сумма со скидкой, RUB
H38: RUB
B39: GK SHN-0 | C39: Шкаф наружный (ШРН) с накладной дверцей, стандартная глубина 120 мм | E39: 652 x 367 | F39: 5.2 | G39: 1 | H39: ='Конвертация цен'!H186 -> 3410.55 | I39: =H39-H39*Оглавление!$K$16 -> 3,410.55 | K39: =J39*I39 -> 0.00
B40: GK SHN-1 | E40: 652 x 457 | F40: 6.55 | G40: 1 | H40: ='Конвертация цен'!H187 -> 4114.73 | I40: =H40-H40*Оглавление!$K$16 -> 4,114.73 | K40: =J40*I40 -> 0.00
B41: GK SHN-2 | E41: 652 x 557 | F41: 6.65 | G41: 1 | H41: ='Конвертация цен'!H188 -> 4404.10 | I41: =H41-H41*Оглавление!$K$16 -> 4,404.10 | K41: 0.00
B42: GK SHN-3 | E42: 652 x 707 | F42: 7.3 | G42: 1 | H42: ='Конвертация цен'!H189 -> 5251.45 | I42: =H42-H42*Оглавление!$K$16 -> 5,251.45 | K42: 0.00
B43: GK SHN-4 | E43: 652 x 857 | F43: 8.25 | G43: 1 | H43: ='Конвертация цен'!H190 -> 6252.90 | I43: =H43-H43*Оглавление!$K$16 -> 6,252.90 | K43: 0.00
B44: GK SHN-5 | E44: 652 x 1007 | F44: 9.04 | G44: 1 | H44: ='Конвертация цен'!H191 -> 7118.97 | I44: =H44-H44*Оглавление!$K$16 -> 7,118.97 | K44: 0.00
B45: GK SHN-6 | C45: Трехходовой фитинг для установки в поток датчика температуры | E45: 652 x 1157 | F45: 9.71 | G45: 1 | H45: ='Конвертация цен'!H192 -> 8409.48 | I45: =H45-H45*Оглавление!$K$16 -> 8,409.48 | K45: 0.00
B46: GK SHN-150-0 | C46: Шкаф наружный (ШРН) с накладной дверцей, увеличенная глубина 150 мм | E46: 652 x 367 | F46: 5.5 | G46: 1 | H46: ='Конвертация цен'!H193 -> 3935.25 | I46: =H46-H46*Оглавление!$K$16 -> 3,935.25 | K46: 0.00
B47: GK SHN-150-1 | E47: 652 x 457 | F47: 6.37 | G47: 1 | H47: ='Конвертация цен'!H194 -> 4436.10 | I47: =H47-H47*Оглавление!$K$16 -> 4,436.10 | K47: 0.00
B48: GK SHN-150-2 | E48: 652 x 557 | F48: 7.01 | G48: 1 | H48: ='Конвертация цен'!H195 -> 4810.79 | I48: =H48-H48*Оглавление!$K$16 -> 4,810.79 | K48: 0.00
B49: GK SHN-150-3 | E49: 652 x 707 | F49: 7.91 | G49: 1 | H49: ='Конвертация цен'!H196 -> 5826.10 | I49: =H49-H49*Оглавление!$K$16 -> 5,826.10 | K49: 0.00
B50: GK SHN-150-4 | E50: 652 x 857 | F50: 9.01 | G50: 1 | H50: ='Конвертация цен'!H197 -> 6682.77 | I50: =H50-H50*Оглавление!$K$16 -> 6,682.77 | K50: 0.00
B51: GK SHN-150-5 | E51: 652 x 1007 | F51: 10.26 | G51: 1 | H51: ='Конвертация цен'!H198 -> 7996.03 | I51: =H51-H51*Оглавление!$K$16 -> 7,996.03 | K51: 0.00
B52: GK SHN-150-6 | C52: Трехходовой фитинг для установки в поток датчика температуры | E52: 652 x 1157 | F52: 10.81 | G52: 1 | H52: ='Конвертация цен'!H199 -> 8841.20 | I52: =H52-H52*Оглавление!$K$16 -> 8,841.20 | K52: 0.00

Sheet Узлы ТП, коллекторы
A4: Смесительные узлы и комплектующие для напольного отопления, коллекторные блоки и комплектующие
I6: На главную страницу
A8: НАСОСНО-СМЕСИТЕЛЬНЫЕ УЗЛЫ НА ОСНОВЕ ТЕРМОСТАТИЧЕСКОГО СМЕСИТЕЛЯ
A9: • Номинальное давление: 10 бар
A10: • Макс. температура потока на входе смесителя: 110° C
A11: • Температура смешанного потока: 20°C- 45°C
A12: • Материал корпуса латунь CW617N
A13: • Монтажная длина насоса: без установленной байпасной линии - 130 / 180 мм, с байпасной линией - 130 мм
A14: • При установке с коллекторами Gekon монтажная длина насоса - 130 мм
A15: • Расстояние между коллекторами: 210 ÷ 240 мм
A16: • Присоединение к распределительному коллектору: эксцентрик 30 мм, 1"НР, присоединение к трубопроводу СО: 1"НР
A17: • Смесительный узел укомплектован Термометром и ручным воздухоотводчиком, имеет возможность установки предохранительного термостата
A18: • Смесительный узел поставляется без насоса
I19: Итого: | J19: =SUM(K22:K23)+SUM(K38:K39)+SUM(K52:K95)+SUM(K101:K109) -> 0.00
A20: Фото | B20: Артикул | C20: Наименование товара | E20: Присоединение к ТП | F20: Упаковка, шт. | G20: Коробка, шт. | H20: Цена за шт. | I20: Цена со скидкой, RUB | J20: Кол-во, шт. | K20: Сумма со скидкой, RUB
H21: RUB
B22: GK 7686G-F3 | C22: Насосно-смесительная группа для напольного отопления по фиксированной температуре смешения c фитингом для подключения байпаса и накидной гайкой для насоса G1 ½ | E22: 1" | F22: 1 | G22: 20 | H22: ='Конвертация цен'!H203 -> 20100.00 | I22: =H22-H22*Оглавление!$K$17 -> 20,100.00 | K22: =J22*I22 -> 0.00
B23: GK 7686901 | C23: Байпасная линия для узлов GK 7686G-F30, GK 7686G-F3 (диапазон 0÷0.5 бар, Kvs 5,0 м3/ч, Межосевое расстояние 210 мм) | E23: 1/2" | F23: 1 | G23: 20 | H23: ='Конвертация цен'!H204 -> 5523.00 | I23: =H23-H23*Оглавление!$K$17 -> 5,523.00 | K23: 0.00
A25: НАСОСНО-СМЕСИТЕЛЬНЫЙ УЗЕЛ НА ОСНОВЕ ТЕРМОСТАТИЧЕСКОГО КЛАПАНА С ДАТЧИКОМ ТЕМПЕРАТУРЫ
A26: • Номинальное давление: 6 бар
A27: • Макс. температура потока на входе смесителя: 95° C
A28: • Температура смешанного потока: 20°C- 60°C
A29: • Материал корпуса латунь CW617N
A30: • При установке с коллекторами Gekon монтажная длина насоса - 130 мм
A31: • Расстояние между коллекторами: 277 мм
A32: • Присоединение к распределительному коллектору: 1"НР, присоединение к трубопроводу СО: 3/4"НР, присоединение насоса: 1 1/2" ВР
A33: • Смесительный узел укомплектован термостатической головкой с выносным датчиком температуры
A34: • Смесительный узел поставляется без насоса
A36: Фото | B36: Артикул | C36: Наименование товара | E36: Присоединение к ТП | F36: Упаковка, шт. | G36: Коробка, шт. | H36: Цена за шт. | I36: Цена со скидкой, RUB | J36: Кол-во, шт. | K36: Сумма со скидкой, RUB
H37: RUB
B38: GK 7685 | C38: Насосно-смесительный узел для напольного отопления с термостатической головкой | E38: 3/4" | F38: 1 | G38: 20 | H38: ='Конвертация цен'!H205 -> 12748.00 | I38: =H38-H38*Оглавление!$K$17 -> 12,748.00 | K38: =J38*I38 -> 0.00
B39: GK 714R | C39: Трехходовой фитинг для установки в поток датчика температуры | E39: 1" | F39: 10 | G39: 10 | H39: ='Конвертация цен'!H206 -> 2320.00 | I39: =H39-H39*Оглавление!$K$17 -> 2,320.00 | K39: =J39*I39 -> 0.00
A41: КОЛЛЕКТОРНЫЕ БЛОКИ ДЛЯ НАПОЛЬНОГО И РАДИАТОРНОГО ОТОПДЛЕНИЯ
A42: • Номинальное давление: 6 бар (GK 721, GK 741), 10 бар (GK 731, GK 751)
A43: • Макс. рабочая температура: 82 °С (GK 721, GK 741), 100 °С (GK 731, GK 751)
A44: • Материал коллектора нержавеющая сталь AISI 304
A45: • Номинальный диаметр коллектора DN 25 (присоединение 1" ВР), отводы DN 20 (присоединение 3/4" НР, Евроконус)
A46: • Коллектор подающий с расходомерами (GK 721, GK 741), с микрометрическими вентилями (GK 731, GK 751); коллектор обратный с термоклапанами
A47: • Максимальное дифференциальное давление: 1 бар
A48: • Межосевое расстояние между выходами 50мм
A50: Фото | B50: Артикул | C50: Наименование товара | E50: Присоединение к ТП | F50: Упаковка, шт. | G50: Коробка, шт. | H50: Цена за шт. | I50: Цена со скидкой, RUB | J50: Кол-во, шт. | K50: Сумма со скидкой, RUB
H51: RUB
B52: GK 72102 | C52: Коллекторный блок с расходомерами, термостатическими клапанами и ручными воздухоотводчиками | E52: 1"x3/4"х2 | F52: 1 | G52: 1 | H52: ='Конвертация цен'!H207 -> 9562.00 | I52: =H52-H52*Оглавление!$K$18 -> 9,562.00 | K52: 0.00
B53: GK 72103 | E53: 1"x3/4"х3 | F53: 1 | G53: 1 | H53: ='Конвертация цен'!H208 -> 11742.00 | I53: =H53-H53*Оглавление!$K$18 -> 11,742.00 | K53: 0.00
B54: GK 72104 | E54: 1"x3/4"х4 | F54: 1 | G54: 1 | H54: ='Конвертация цен'!H209 -> 13946.00 | I54: =H54-H54*Оглавление!$K$18 -> 13,946.00 | K54: 0.00
B55: GK 72105 | E55: 1"x3/4"х5 | F55: 1 | G55: 1 | H55: ='Конвертация цен'!H210 -> 16450.00 | I55: =H55-H55*Оглавление!$K$18 -> 16,450.00 | K55: 0.00
B56: GK 72106 | E56: 1"x3/4"х6 | F56: 1 | G56: 1 | H56: ='Конвертация цен'!H211 -> 18660.00 | I56: =H56-H56*Оглавление!$K$18 -> 18,660.00 | K56: 0.00
B57: GK 72107 | E57: 1"x3/4"х7 | F57: 1 | G57: 1 | H57: ='Конвертация цен'!H212 -> 21621.00 | I57: =H57-H57*Оглавление!$K$18 -> 21,621.00 | K57: 0.00
B58: GK 72108 | E58: 1"x3/4"х8 | F58: 1 | G58: 1 | H58: ='Конвертация цен'!H213 -> 24207.00 | I58: =H58-H58*Оглавление!$K$18 -> 24,207.00 | K58: 0.00
B59: GK 72109 | E59: 1"x3/4"х9 | F59: 1 | G59: 1 | H59: ='Конвертация цен'!H214 -> 26544.00 | I59: =H59-H59*Оглавление!$K$18 -> 26,544.00 | K59: 0.00
B60: GK 72110 | E60: 1"x3/4"х10 | F60: 1 | G60: 1 | H60: ='Конвертация цен'!H215 -> 29092.00 | I60: =H60-H60*Оглавление!$K$18 -> 29,092.00 | K60: 0.00
B61: GK 72111 | E61: 1"x3/4"х11 | F61: 1 | G61: 1 | H61: ='Конвертация цен'!H216 -> 31422.00 | I61: =H61-H61*Оглавление!$K$18 -> 31,422.00 | K61: 0.00
B62: GK 72112 | E62: 1"x3/4"х12 | F62: 1 | G62: 1 | H62: ='Конвертация цен'!H217 -> 33710.00 | I62: =H62-H62*Оглавление!$K$18 -> 33,710.00 | K62: 0.00
B63: GK 73102 | C63: Коллекторный блок с микрометрическими вентилями, термостатическими клапанами и ручными воздухоотводчиками | E63: 1"x3/4"х2 | F63: 1 | G63: 1 | H63: ='Конвертация цен'!H218 -> 9944.00 | I63: =H63-H63*Оглавление!$K$18 -> 9,944.00 | K63: 0.00
B64: GK 73103 | E64: 1"x3/4"х3 | F64: 1 | G64: 1 | H64: ='Конвертация цен'!H219 -> 11713.00 | I64: =H64-H64*Оглавление!$K$18 -> 11,713.00 | K64: 0.00
B65: GK 73104 | E65: 1"x3/4"х4 | F65: 1 | G65: 1 | H65: ='Конвертация цен'!H220 -> 13500.00 | I65: =H65-H65*Оглавление!$K$18 -> 13,500.00 | K65: 0.00
B66: GK 73105 | E66: 1"x3/4"х5 | F66: 1 | G66: 1 | H66: ='Конвертация цен'!H221 -> 15529.00 | I66: =H66-H66*Оглавление!$K$18 -> 15,529.00 | K66: 0.00
B67: GK 73106 | E67: 1"x3/4"х6 | F67: 1 | G67: 1 | H67: ='Конвертация цен'!H222 -> 17428.00 | I67: =H67-H67*Оглавление!$K$18 -> 17,428.00 | K67: 0.00
B68: GK 73107 | E68: 1"x3/4"х7 | F68: 1 | G68: 1 | H68: ='Конвертация цен'!H223 -> 19770.00 | I68: =H68-H68*Оглавление!$K$18 -> 19,770.00 | K68: 0.00
B69: GK 73108 | E69: 1"x3/4"х8 | F69: 1 | G69: 1 | H69: ='Конвертация цен'!H224 -> 21892.00 | I69: =H69-H69*Оглавление!$K$18 -> 21,892.00 | K69: 0.00
B70: GK 73109 | E70: 1"x3/4"х9 | F70: 1 | G70: 1 | H70: ='Конвертация цен'!H225 -> 23750.00 | I70: =H70-H70*Оглавление!$K$18 -> 23,750.00 | K70: 0.00
B71: GK 73110 | E71: 1"x3/4"х10 | F71: 1 | G71: 1 | H71: ='Конвертация цен'!H226 -> 25843.00 | I71: =H71-H71*Оглавление!$K$18 -> 25,843.00 | K71: 0.00
B72: GK 73111 | E72: 1"x3/4"х11 | F72: 1 | G72: 1 | H72: ='Конвертация цен'!H227 -> 27680.00 | I72: =H72-H72*Оглавление!$K$18 -> 27,680.00 | K72: 0.00
B73: GK 73112 | E73: 1"x3/4"х12 | F73: 1 | G73: 1 | H73: ='Конвертация цен'!H228 -> 29489.00 | I73: =H73-H73*Оглавление!$K$18 -> 29,489.00 | K73: 0.00
B74: GK 74102 | C74: Коллекторный блок с расходомерами, термостатическими клапанами без воздухоотводчиков | E74: 1"x3/4"х2 | F74: 1 | G74: 1 | H74: ='Конвертация цен'!H229 -> 8280.00 | I74: =H74-H74*Оглавление!$K$18 -> 8,280.00 | K74: 0.00
B75: GK 74103 | E75: 1"x3/4"х3 | F75: 1 | G75: 1 | H75: ='Конвертация цен'!H230 -> 10464.00 | I75: =H75-H75*Оглавление!$K$18 -> 10,464.00 | K75: 0.00
B76: GK 74104 | E76: 1"x3/4"х4 | F76: 1 | G76: 1 | H76: ='Конвертация цен'!H231 -> 12666.00 | I76: =H76-H76*Оглавление!$K$18 -> 12,666.00 | K76: 0.00
B77: GK 74105 | E77: 1"x3/4"х5 | F77: 1 | G77: 1 | H77: ='Конвертация цен'!H232 -> 15166.00 | I77: =H77-H77*Оглавление!$K$18 -> 15,166.00 | K77: 0.00
B78: GK 74106 | E78: 1"x3/4"х6 | F78: 1 | G78: 1 | H78: ='Конвертация цен'!H233 -> 17376.00 | I78: =H78-H78*Оглавление!$K$18 -> 17,376.00 | K78: 0.00
B79: GK 74107 | E79: 1"x3/4"х7 | F79: 1 | G79: 1 | H79: ='Конвертация цен'!H234 -> 20339.00 | I79: =H79-H79*Оглавление!$K$18 -> 20,339.00 | K79: 0.00
B80: GK 74108 | E80: 1"x3/4"х8 | F80: 1 | G80: 1 | H80: ='Конвертация цен'!H235 -> 22925.00 | I80: =H80-H80*Оглавление!$K$18 -> 22,925.00 | K80: 0.00
B81: GK 74109 | E81: 1"x3/4"х9 | F81: 1 | G81: 1 | H81: ='Конвертация цен'!H236 -> 25263.00 | I81: =H81-H81*Оглавление!$K$18 -> 25,263.00 | K81: 0.00
B82: GK 74110 | E82: 1"x3/4"х10 | F82: 1 | G82: 1 | H82: ='Конвертация цен'!H237 -> 27808.00 | I82: =H82-H82*Оглавление!$K$18 -> 27,808.00 | K82: 0.00
B83: GK 74111 | E83: 1"x3/4"х11 | F83: 1 | G83: 1 | H83: ='Конвертация цен'!H238 -> 30139.00 | I83: =H83-H83*Оглавление!$K$18 -> 30,139.00 | K83: 0.00
B84: GK 74112 | E84: 1"x3/4"х12 | F84: 1 | G84: 1 | H84: ='Конвертация цен'!H239 -> 32426.00 | I84: =H84-H84*Оглавление!$K$18 -> 32,426.00 | K84: 0.00
B85: GK 75102 | C85: Коллекторный блок с микрометрическими вентилями, термостатическими клапанами без воздухоотводчиков | E85: 1"x3/4"х2 | F85: 1 | G85: 1 | H85: ='Конвертация цен'!H240 -> 7401.00 | I85: =H85-H85*Оглавление!$K$18 -> 7,401.00 | K85: 0.00
B86: GK 75103 | E86: 1"x3/4"х3 | F86: 1 | G86: 1 | H86: ='Конвертация цен'!H241 -> 9172.00 | I86: =H86-H86*Оглавление!$K$18 -> 9,172.00 | K86: 0.00
B87: GK 75104 | E87: 1"x3/4"х4 | F87: 1 | G87: 1 | H87: ='Конвертация цен'!H242 -> 10956.00 | I87: =H87-H87*Оглавление!$K$18 -> 10,956.00 | K87: 0.00
B88: GK 75105 | E88: 1"x3/4"х5 | F88: 1 | G88: 1 | H88: ='Конвертация цен'!H243 -> 12991.00 | I88: =H88-H88*Оглавление!$K$18 -> 12,991.00 | K88: 0.00
B89: GK 75106 | E89: 1"x3/4"х6 | F89: 1 | G89: 1 | H89: ='Конвертация цен'!H244 -> 14886.00 | I89: =H89-H89*Оглавление!$K$18 -> 14,886.00 | K89: 0.00
B90: GK 75107 | E90: 1"x3/4"х7 | F90: 1 | G90: 1 | H90: ='Конвертация цен'!H245 -> 17225.00 | I90: =H90-H90*Оглавление!$K$18 -> 17,225.00 | K90: 0.00
B91: GK 75108 | E91: 1"x3/4"х8 | F91: 1 | G91: 1 | H91: ='Конвертация цен'!H246 -> 19351.00 | I91: =H91-H91*Оглавление!$K$18 -> 19,351.00 | K91: 0.00
B92: GK 75109 | E92: 1"x3/4"х9 | F92: 1 | G92: 1 | H92: ='Конвертация цен'!H247 -> 21611.00 | I92: =H92-H92*Оглавление!$K$18 -> 21,611.00 | K92: 0.00
B93: GK 75110 | E93: 1"x3/4"х10 | F93: 1 | G93: 1 | H93: ='Конвертация цен'!H248 -> 23299.00 | I93: =H93-H93*Оглавление!$K$18 -> 23,299.00 | K93: 0.00
B94: GK 75111 | E94: 1"x3/4"х11 | F94: 1 | G94: 1 | H94: ='Конвертация цен'!H249 -> 25615.00 | I94: =H94-H94*Оглавление!$K$18 -> 25,615.00 | K94: 0.00
B95: GK 75112 | E95: 1"x3/4"х12 | F95: 1 | G95: 1 | H95: ='Конвертация цен'!H250 -> 28230.00 | I95: =H95-H95*Оглавление!$K$18 -> 28,230.00 | K95: 0.00
A97: КОМПЛЕКТУЮЩИЕ ДЛЯ КОЛЛЕКТОРОВ НАПОЛЬНОГО И РАДИАТОРНОГО ОТПЛЕНИЯ
A99: Фото | B99: Артикул | C99: Наименование товара | E99: Присоединение к ТП | F99: Упаковка, шт. | G99: Коробка, шт. | H99: Цена за шт. | I99: Цена со скидкой, RUB | J99: Кол-во, шт. | K99: Сумма со скидкой, RUB
H100: RUB
B101: GK 7590 | C101: Комплект коллекторных фитингов со сливным краном и ручным воздухоотводчиком | E101: 1" | F101: 1 | G101: 18 | H101: ='Конвертация цен'!H251 -> 3153 | I101: =H101-H101*Оглавление!$K$17 -> 3,153.00 | K101: 0.00
B102: GK 7591 | C102: Комплект коллекторных фитингов со сливным краном и автоматическим воздухоотводчиком | E102: 1" | F102: 1 | G102: 15 | H102: ='Конвертация цен'!H252 -> 4111 | I102: =H102-H102*Оглавление!$K$17 -> 4,111.00 | K102: 0.00
B103: GK 79115 | C103: Латунный расходомер для коллекторных блоков напольного и радиаторного отопления | E103: 1/2" | F103: 1 | G103: 10 | H103: ='Конвертация цен'!H253 -> 887 | I103: =H103-H103*Оглавление!$K$17 -> 887.00 | K103: 0.00
B104: GK 1903N | C104: Электротермическая головка 230В, нормально закрытая | E104: М30х1,5 | F104: 1 | G104: 60 | H104: ='Конвертация цен'!H254 -> 3024 | I104: =H104-H104*Оглавление!$K$17 -> 3,024.00 | K104: 0.00
B105: GK 1904N | C105: Электротермическая головка 24В, нормально закрытая | E105: М30х1,5 | F105: 1 | G105: 60 | H105: ='Конвертация цен'!H255 -> 3168 | I105: =H105-H105*Оглавление!$K$17 -> 3,168.00 | K105: 0.00
B106: GK 71602 | C106: Концовка для металлопластиковых труб и труб РЕХ, 3/4" Евроконус | E106: 16*2 x 3/4" | F106: 30 | G106: 30 | H106: ='Конвертация цен'!H256 -> 290 | I106: =H106-H106*Оглавление!$K$17 -> 290.00 | K106: 0.00
B107: GK 72002 | E107: 20*2 x 3/4" | F107: 30 | G107: 30 | H107: ='Конвертация цен'!H257 -> 442 | I107: =H107-H107*Оглавление!$K$17 -> 442.00 | K107: 0.00
B108: GK 79181 | C108: Комплект (2 шт) шаровых кранов для коллекторов: с "американкой", термометром и отводом для температурного зонда, ручки - красная и синяя "бабочка" | E108: 1" | F108: 1 | G108: 10 | H108: ='Конвертация цен'!H258 -> 7219 | I108: =H108-H108*Оглавление!$K$17 -> 7,219.00 | K108: 0.00
B109: GK 7534 | C109: Группа безопасности бойлера с прямым сливом, рабочее давление 10 бар, давление настройки предохранительного клапана 7 ± 0,1 бар | E109: 3/4" | F109: 1 | G109: 15 | H109: ='Конвертация цен'!H259 -> 4723 | I109: =H109-H109*Оглавление!$K$17 -> 4,723.00 | K109: 0.00

Sheet Клапаны для отоп.приборов
A4: Клапаны для отопительных приборов
I5: На главную страницу
A6: РАДИАТОРНЫЕ УЗЛЫ ПОДКЛЮЧЕНИЯ И КЛАПАНЫ
K7: Итого: | L7: =SUM(M10:M26)+SUM(M32:M33)+SUM(M39:M41) -> 0.00
A8: Фото | B8: Артикул | C8: Наименование товара | F8: Размер | G8: Вес, г | H8: Упаковка, шт. | I8: Коробка, шт. | J8: Цена за шт. | K8: Цена со скидкой, RUB | L8: Кол-во, шт. | M8: Сумма со скидкой, RUB
J9: RUB
B10: GK 7423 | C10: Узел нижнего подключения для стальных панельных радиаторов в двухтрубных системах прямой, с ручным управлением | F10: 3/4" | G10: 291 | H10: 5 | I10: 50 | J10: ='Конвертация цен'!H263 -> 1422.00 | K10: =J10-J10*Оглавление!$K$19 -> 1422.00 | M10: =L10*K10 -> 0.00
B11: GK 7421 | C11: Узел нижнего подключения для стальных панельных радиаторов в двухтрубных системах угловой, с ручным управлением | F11: 3/4" | G11: 323 | H11: 5 | I11: 50 | J11: ='Конвертация цен'!H264 -> 1329.00 | K11: =J11-J11*Оглавление!$K$19 -> 1329.00 | M11: 0.00
B12: GK 7400 12 | C12: Клапан запорный прямой | F12: 1/2" | G12: 178 | H12: 1 | I12: 50 | J12: ='Конвертация цен'!H265 -> 808.00 | K12: =J12-J12*Оглавление!$K$19 -> 808.00 | M12: =L12*K12 -> 0.00
B13: GK 7400 34 | F13: 3/4" | G13: 198 | H13: 5 | I13: 50 | J13: ='Конвертация цен'!H266 -> 1218.00 | K13: =J13-J13*Оглавление!$K$19 -> 1218.00 | M13: =L13*K13 -> 0.00
B14: GK 7200 12 | C14: Клапан запорный угловой | F14: 1/2" | G14: 164 | H14: 1 | I14: 50 | J14: ='Конвертация цен'!H267 -> 696.00 | K14: =J14-J14*Оглавление!$K$19 -> 696.00 | M14: =L14*K14 -> 0.00
B15: GK 7200 34 | F15: 3/4" | G15: 184 | H15: 5 | I15: 50 | J15: ='Конвертация цен'!H268 -> 1105.00 | K15: =J15-J15*Оглавление!$K$19 -> 1105.00 | M15: =L15*K15 -> 0.00
B16: GK 7350 12 | C16: Клапан регулирующий прямой | F16: 1/2" | G16: 255 | H16: 1 | I16: 50 | J16: ='Конвертация цен'!H269 -> 901.00 | K16: =J16-J16*Оглавление!$K$19 -> 901.00 | M16: =L16*K16 -> 0.00
B17: GK 7350 34 | F17: 3/4" | G17: 346 | H17: 5 | I17: 50 | J17: ='Конвертация цен'!H270 -> 1584.00 | K17: =J17-J17*Оглавление!$K$19 -> 1584.00 | M17: 0.00
B18: GK 7150 12 | C18: Клапан регулирующий угловой | F18: 1/2" | G18: 229 | H18: 1 | I18: 50 | J18: ='Конвертация цен'!H271 -> 819.00 | K18: =J18-J18*Оглавление!$K$19 -> 819.00 | M18: 0.00
B19: GK 7150 34 | F19: 3/4" | G19: 337 | H19: 5 | I19: 50 | J19: ='Конвертация цен'!H272 -> 1489.00 | K19: =J19-J19*Оглавление!$K$19 -> 1489.00 | M19: 0.00
B20: GK 7355 12 | C20: Клапан регулирующий прямой компактной серии | F20: 1/2" | G20: 196 | H20: 5 | I20: 50 | J20: ='Конвертация цен'!H273 -> 818.00 | K20: =J20-J20*Оглавление!$K$19 -> 818.00 | M20: 0.00
B21: GK 7155 12 | C21: Клапан регулирующий угловой компактной серии | F21: 1/2" | G21: 183 | H21: 10 | I21: 100 | J21: ='Конвертация цен'!H274 -> 726.00 | K21: =J21-J21*Оглавление!$K$19 -> 726.00 | M21: 0.00
B22: GK 7640 12 | C22: Клапан терморегулирующий прямой | F22: 1/2" | G22: 193 | H22: 1 | I22: 50 | J22: ='Конвертация цен'!H275 -> 1145.00 | K22: =J22-J22*Оглавление!$K$19 -> 1145.00 | M22: 0.00
B23: GK 7640 34 | F23: 3/4" | G23: 271 | H23: 5 | I23: 50 | J23: ='Конвертация цен'!H276 -> 1407.00 | K23: =J23-J23*Оглавление!$K$19 -> 1407.00 | M23: 0.00
B24: GK 7620 12 | C24: Клапан терморегулирующий угловой | F24: 1/2" | G24: 196 | H24: 1 | I24: 50 | J24: ='Конвертация цен'!H277 -> 1015.00 | K24: =J24-J24*Оглавление!$K$19 -> 1015.00 | M24: 0.00
B25: GK 7620 34 | F25: 3/4" | G25: 268 | H25: 5 | I25: 50 | J25: ='Конвертация цен'!H278 -> 1297.00 | K25: =J25-J25*Оглавление!$K$19 -> 1297.00 | M25: 0.00
B26: GK 7625 12 | C26: Клапан терморегулирующий осевой | F26: 1/2" | G26: 217 | H26: 1 | I26: 50 | J26: ='Конвертация цен'!H279 -> 1315.00 | K26: =J26-J26*Оглавление!$K$19 -> 1315.00 | M26: 0.00
A28: ТЕРМОСТАТИЧЕСКИЕ ГОЛОВКИ
A30: Фото | B30: Артикул | C30: Наименование товара | F30: Размер | G30: Вес, г | H30: Упаковка, шт. | I30: Коробка, шт. | J30: Цена за шт. | K30: Цена со скидкой, RUB | L30: Кол-во, шт. | M30: Сумма со скидкой, RUB
J31: RUB
B32: GK 7824 | C32: Термостатическая головка с внутренним жидкостным датчиком, с настройкой против замораживания | F32: CLIP-CLAP | G32: 130 | H32: 1 | I32: 50 | J32: ='Конвертация цен'!H280 -> 1064.00 | K32: =J32-J32*Оглавление!$K$19 -> 1064.00 | M32: =L32*K32 -> 0.00
B33: GK 7825 | C33: Термостатическая головка с внутренним жидкостным датчиком, с настройкой против замораживания | F33: M30x1,5 | G33: 110 | H33: 1 | I33: 50 | J33: ='Конвертация цен'!H281 -> 1200.00 | K33: =J33-J33*Оглавление!$K$19 -> 1200.00 | M33: 0.00
A35: КОМПЛЕКТЫ ДЛЯ ПОДКЛЮЧЕНИЯ ОТОПИТЕЛЬНЫХ ПРИБОРОВ И КОМПЛЕКТУЮЩИЕ
A37: Фото | B37: Артикул | C37: Наименование товара | F37: Размер | G37: Вес, г | H37: Упаковка, шт. | I37: Коробка, шт. | J37: Цена за шт. | K37: Цена со скидкой, RUB | L37: Кол-во, шт. | M37: Сумма со скидкой, RUB
J38: RUB
B39: GK 76407400 12 | C39: Комплект для подключения отопительных приборов прямой | F39: 1/2" | G39: 560 | H39: 1 | I39: 18 | J39: ='Конвертация цен'!H282 -> 3100.00 | K39: =J39-J39*Оглавление!$K$19 -> 3100.00 | M39: =L39*K39 -> 0.00
B40: GK 76207200 12 | C40: Комплект для подключения отопительных приборов угловой | F40: 1/2" | G40: 564 | H40: 1 | I40: 18 | J40: ='Конвертация цен'!H283 -> 3500.00 | K40: =J40-J40*Оглавление!$K$19 -> 3500.00 | M40: 0.00
B41: GK 7081 | C41: Переходник для узлов нижнего подключения в радиаторы с внутренней резьбой 1/2'' | F41: 1/2''x3/4'' | G41: 20 | H41: 50 | I41: 500 | J41: ='Конвертация цен'!H284 -> 213.00 | K41: =J41-J41*Оглавление!$K$19 -> 213.00 | M41: =L41*K41 -> 0.00

Sheet Бойлеры OLD (hidden)
A4: Бойлеры косвенного нагрева, Накопители горячей воды,
A5: Теплоаккумуляторы (ДО СЕНТЯБРЯ 2024 ГОДА)
J6: На главную страницу
A7: БОЙЛЕРЫ КОСВЕННОГО НАГРЕВА НАПОЛЬНЫЕ
A8: • Максимальная рабочая температура бойлера: +95⁰C
A9: • Максимальное рабочее давление бойлера: 6 бар
A10: • Бойлеры изготовлены из нержавеющей стали ГОСТ 08Х18Н10 (AISI 304)
A11: • Толщина стали корпуса 1,5 мм для объёма 150-500 л и 3,0 мм для объёма 800-1000 л
A12: • Теплообменник выполнен из гладкой трубы с толщиной стенки 1,5 мм
A13: • Встроенный магниевый анод, для модели TC - магниевый анод не предусмотрен
A14: • Разборная секционная теплоизоляция из пенополистирола 30 мм для модели TC, 50 мм для бойлеров 150-500 л, 60 мм для бойлеров 800-1000 л
A15: • Защитный кожух из ABS-пластика для бойлеров 150-500 л, из ткани для бойлеров 800-1000 л
A16: • Возможность установки ТЭНа с присоединением G1 1/2”, ТЭН поставляется отдельно
A17: • Ревизионный люк диаметром 125 мм
J18: Итого: | K18: =SUM(L21:L34)+SUM(L48:L53)+SUM(L67:L70)+SUM(#REF!)+SUM(#REF!) -> 
A19: Фото | B19: Артикул | C19: Наименование товара | E19: Вместимость бойлера | F19: Площадь теплообменника | G19: Ёмкость теплообменника | H19: Вес | I19: Цена за шт. | J19: Цена со скидкой, RUB | K19: Кол-во, шт. | L19: Сумма со скидкой, RUB
E20: л | F20: м2 | G20: л | H20: кг | I20: RUB
B21: GKB1501N | C21: Бойлер Gekon HWB 150 1HE INOX, 30 кВт | E21: 150 | F21: 1.1 | G21: 7.9 | H21: 36 | I21: ='Конвертация цен'!H293 -> 78481.00 | J21: =I21-I21*Оглавление!$K$20 -> 78,481.00 | L21: =K21*J21 -> 0.00
B22: GKB2001N | C22: Бойлер Gekon HWB 200 1HE INOX, 30 кВт | E22: 200 | F22: 1.1 | G22: 7.9 | H22: 46 | I22: ='Конвертация цен'!H294 -> 86816.00 | J22: =I22-I22*Оглавление!$K$20 -> 86,816.00 | L22: =K22*J22 -> 0.00
B23: GKB3001N | C23: Бойлер Gekon HWB 300 1HE INOX, 45 кВт | E23: 300 | F23: 1.6 | G23: 11.8 | H23: 67 | I23: ='Конвертация цен'!H295 -> 121300.00 | J23: =I23-I23*Оглавление!$K$20 -> 121,300.00 | L23: 0.00
B24: GKB4001N | C24: Бойлер Gekon HWB 400 1HE INOX, 53 кВт | E24: 400 | F24: 1.8 | G24: 12.6 | H24: 75 | I24: ='Конвертация цен'!H296 -> 137354.00 | J24: =I24-I24*Оглавление!$K$20 -> 137,354.00 | L24: 0.00
B25: GKB5001N | C25: Бойлер Gekon HWB 500 1HE INOX, 70 кВт | E25: 500 | F25: 2.3 | G25: 14 | H25: 103 | I25: ='Конвертация цен'!H297 -> 180930.00 | J25: =I25-I25*Оглавление!$K$20 -> 180,930.00 | L25: 0.00
B26: GKB120TC | C26: Бойлер Gekon HWB 120 1HE TC INOX, 30 кВт с верхним подключением | E26: 120 | F26: 1 | G26: 7.3 | H26: 36.5 | I26: ='Конвертация цен'!H298 -> 83150.00 | J26: =I26-I26*Оглавление!$K$20 -> 83,150.00 | L26: 0.00
B30: GKB300XL | C30: Бойлер Gekon HWB 300 1HE XL INOX, 129 кВт | E30: 300 | F30: 4.4 | G30: 30.9 | H30: 83 | I30: ='Конвертация цен'!H299 -> 154392.00 | J30: =I30-I30*Оглавление!$K$20 -> 154,392.00 | L30: 0.00
B31: GKB400XL | C31: Бойлер Gekon HWB 400 1HE XL INOX, 120кВт | E31: 400 | F31: 4.1 | G31: 28.6 | H31: 86 | I31: ='Конвертация цен'!H300 -> 161432.00 | J31: =I31-I31*Оглавление!$K$20 -> 161,432.00 | L31: 0.00
B32: GKB2002N | C32: Бойлер Gekon HWB 200 2HE INOX, 15/33 кВт | E32: 200 | F32: 0,5/1,1 | G32: 3,6/7,9 | H32: 52 | I32: ='Конвертация цен'!H301 -> 100570.00 | J32: =I32-I32*Оглавление!$K$20 -> 100,570.00 | L32: 0.00
B33: GKB3002N | C33: Бойлер Gekon HWB 300 2HE INOX, 30/45 кВт | E33: 300 | F33: 1,0/1,6 | G33: 7,3/11 | H33: 73 | I33: ='Конвертация цен'!H302 -> 142417.00 | J33: =I33-I33*Оглавление!$K$20 -> 142,417.00 | L33: 0.00
B34: GKB4002N | C34: Бойлер Gekon HWB 400 2HE INOX, 30/53 кВт | E34: 400 | F34: 1,0/1,8 | G34: 7,3/11,9 | H34: 81 | I34: ='Конвертация цен'!H303 -> 158470.00 | J34: =I34-I34*Оглавление!$K$20 -> 158,470.00 | L34: 0.00
A36: БОЙЛЕРЫ КОСВЕННОГО НАГРЕВА НАСТЕННЫЕ
A37: • Максимальная рабочая температура бойлера: +95⁰C
A38: • Максимальное рабочее давление бойлера: 6 бар
A39: • Бойлеры изготовлены из нержавеющей стали ГОСТ 08Х18Н10 (AISI 304)
A40: • Толщина стали корпуса и теплообменника 1,5 мм
A41: • Встроенный магниевый анод
A42: • Разборная секционная теплоизоляция из пенополистирола 30 мм
A43: • Защитный кожух из ABS-пластика белового цвета
A44: • Возможность установки ТЭНа с присоединением G1 1/2”, ТЭН поставляется отдельно
A46: Фото | B46: Артикул | C46: Наименование товара | E46: Вместимость бойлера | F46: Площадь теплообменника | G46: Ёмкость теплообменника | H46: Вес | I46: Цена за шт. | J46: Цена со скидкой, RUB | K46: Кол-во, шт. | L46: Сумма со скидкой, RUB
E47: л | F47: м2 | G47: л | H47: кг | I47: RUB
B48: GKB80WL | C48: Бойлер Gekon HWB 80 1HE WL INOX, 15,3 кВт с левым подключением | E48: 80 | F48: 0.5 | G48: 3.6 | H48: 19 | I48: ='Конвертация цен'!H304 -> 50271.00 | J48: =I48-I48*Оглавление!$K$20 -> 50,271.00 | L48: =K48*J48 -> 0.00
B49: GKB100WL | C49: Бойлер Gekon HWB 100 1HE WL INOX, 15,3 кВт с левым подключением | E49: 100 | F49: 0.5 | G49: 3.6 | H49: 21 | I49: ='Конвертация цен'!H305 -> 55500.00 | J49: =I49-I49*Оглавление!$K$20 -> 55,500.00 | L49: =K49*J49 -> 0.00
B50: GKB150WL | C50: Бойлер Gekon HWB 150 1HE WL INOX, 33 кВт с левым подключением | E50: 150 | F50: 1.1 | G50: 7.9 | H50: 32 | I50: ='Конвертация цен'!H306 -> 72430.00 | J50: =I50-I50*Оглавление!$K$20 -> 72,430.00 | L50: =K50*J50 -> 0.00
B51: GKB80WR | C51: Бойлер Gekon HWB 80 1HE WL INOX, 15,3 кВт с правым подключением | E51: 80 | F51: 0.5 | G51: 3.6 | H51: 19 | I51: ='Конвертация цен'!H307 -> 50271.00 | J51: =I51-I51*Оглавление!$K$20 -> 50,271.00 | L51: 0.00
B52: GKB100WR | C52: Бойлер Gekon HWB 100 1HE WL INOX, 15,3 кВт с правым подключением | E52: 100 | F52: 0.5 | G52: 3.6 | H52: 21 | I52: ='Конвертация цен'!H308 -> 55500.00 | J52: =I52-I52*Оглавление!$K$20 -> 55,500.00 | L52: =K52*J52 -> 0.00
B53: GKB150WR | C53: Бойлер Gekon HWB 150 1HE WL INOX, 33 кВт с правым подключением | E53: 150 | F53: 1.1 | G53: 7.9 | H53: 32 | I53: ='Конвертация цен'!H309 -> 72430.00 | J53: =I53-I53*Оглавление!$K$20 -> 72,430.00 | L53: =K53*J53 -> 0.00
A55: НАКОПИТЕЛИ ГОРЯЧЕЙ ВОДЫ НАПОЛЬНЫЕ
A56: • Максимальная рабочая температура накопителя: +95⁰C
A57: • Максимальное рабочее давление накопителя: 6 бар
A58: • Накопители изготовлены из нержавеющей стали ГОСТ 08Х18Н10 (AISI 304)
A59: • Толщина стали корпуса 1,5 мм для объёма 150-500 л и 3,0 мм для объёма 800-1000 л
A60: • Встроенный магниевый анод
A61: • Разборная секционная теплоизоляция из пенополистирола 50 мм для накопителей 150-500 л, 60 мм для накопителей 800-1000 л
A62: • Возможность установки ТЭНа с присоединением G1 1/2”, ТЭН поставляется отдельно
A63: • Ревизионный люк диаметром 125 мм
A65: Фото | B65: Артикул | C65: Наименование товара | E65: Вместимость накопителя | F65: Время нагрева воды электроТЭНом 2 кВт/3 кВт - для объёма 150-500 л, 3 кВт/5 кВт - для объёма 800-1000 л | H65: Вес | I65: Цена за шт. | J65: Цена со скидкой, RUB | K65: Кол-во, шт. | L65: Сумма со скидкой, RUB
E66: л | F66: ч | H66: кг | I66: RUB
B67: GKB150ZN | C67: Накопитель горячей воды Gekon HWB 150 ZHE INOX | E67: 150 | F67: 3/2 | H67: 25 | I67: ='Конвертация цен'!H310 -> 58842.00 | J67: =I67-I67*Оглавление!$K$20 -> 58,842.00 | L67: =K67*J67 -> 0.00
B68: GKB200ZN | C68: Накопитель горячей воды Gekon HWB 200 ZHE INOX | E68: 200 | F68: 4/2,7 | H68: 35 | I68: ='Конвертация цен'!H311 -> 67364.00 | J68: =I68-I68*Оглавление!$K$20 -> 67,364.00 | L68: =K68*J68 -> 0.00
B69: GKB300ZN | C69: Накопитель горячей воды Gekon HWB 300 ZHE INOX | E69: 300 | F69: 6/4 | H69: 56 | I69: ='Конвертация цен'!H312 -> 93819.00 | J69: =I69-I69*Оглавление!$K$20 -> 93,819.00 | L69: 0.00
B70: GKB400ZN | C70: Накопитель горячей воды Gekon HWB 400 ZHE INOX | E70: 400 | F70: 8,2/5,4 | H70: 64 | I70: ='Конвертация цен'!H313 -> 107844.00 | J70: =I70-I70*Оглавление!$K$20 -> 107,844.00 | L70: 0.00

Sheet Бойлеры
A4: Бойлеры косвенного нагрева, Накопители горячей воды,
A5: Теплоаккумуляторы (С СЕНТЯБРЯ 2024 ГОДА)
J6: На главную страницу
A7: БОЙЛЕРЫ КОСВЕННОГО НАГРЕВА НАПОЛЬНЫЕ
A8: • Максимальная рабочая температура бойлера: +95⁰C
A9: • Максимальное рабочее давление бойлера: 6 бар
A10: • Бойлеры изготовлены из нержавеющей стали ГОСТ 08Х18Н10 (AISI 304)
A11: • Толщина стали корпуса 1,5 мм для объёма 150-500 л и 3,0 мм для объёма 800-1000 л
A12: • Теплообменник выполнен из гладкой трубы с толщиной стенки 1,5 мм
A13: • Встроенный магниевый анод, для модели TC - магниевый анод не предусмотрен
A14: • Разборная секционная теплоизоляция из пенополистирола 30 мм для модели TC, 50 мм для бойлеров 150-500 л, 60 мм для бойлеров 800-1000 л
A15: • Защитный кожух из ABS-пластика для бойлеров 150-500 л, из ткани для бойлеров 800-1000 л и для моделей B01S
A16: • Возможность установки ТЭНа с присоединением G1 1/2”, ТЭН поставляется отдельно
A17: • Ревизионный люк диаметром 125 мм
J18: Итого: | K18: =SUM(L21:L47)+SUM(L61:L69)+SUM(L83:L89)+SUM(L102)+SUM(L114:L119) -> 0.00
A19: Фото | B19: Артикул | C19: Наименование товара | E19: Вместимость бойлера | F19: Площадь теплообменника | G19: Ёмкость теплообменника | H19: Вес | I19: Цена за шт. | J19: Цена со скидкой, RUB | K19: Кол-во, шт. | L19: Сумма со скидкой, RUB
E20: л | F20: м2 | G20: л | H20: кг | I20: RUB
B21: GK1501 | C21: Бойлер напольный B01 150 л, с 1-м ТО, 30 кВт, INOX, Gekon | E21: 150 | F21: 1.0 | G21: 8.0 | H21: 42 | I21: ='Конвертация цен'!H317 -> 78481.26 | J21: =I21-I21*Оглавление!$K$20 -> 78,481.26 | L21: =K21*J21 -> 0.00
B22: GK2001 | C22: Бойлер напольный B01 200 л, с 1-м ТО, 30 кВт, INOX, Gekon | E22: 200 | F22: 1.0 | G22: 8.0 | H22: 50 | I22: ='Конвертация цен'!H318 -> 86815.86 | J22: =I22-I22*Оглавление!$K$20 -> 86,815.86 | L22: =K22*J22 -> 0.00
B23: GK3001 | C23: Бойлер напольный B01 300 л, с 1-м ТО, 40 кВт, INOX, Gekon | E23: 300 | F23: 1.3 | G23: 10.0 | H23: 68 | I23: ='Конвертация цен'!H319 -> 121300.38 | J23: =I23-I23*Оглавление!$K$20 -> 121,300.38 | L23: 0.00
B24: GK4001 | C24: Бойлер напольный B01 400 л, с 1-м ТО, 51 кВт, INOX, Gekon | E24: 400 | F24: 1.7 | G24: 14.0 | H24: 77 | I24: ='Конвертация цен'!H320 -> 137353.61 | J24: =I24-I24*Оглавление!$K$20 -> 137,353.61 | L24: 0.00
B25: GK5001 | C25: Бойлер напольный B01 500 л, с 1-м ТО, 60 кВт, INOX, Gekon | E25: 500 | F25: 3.0 | G25: 16.0 | H25: 103 | I25: ='Конвертация цен'!H321 -> 180929.93 | J25: =I25-I25*Оглавление!$K$20 -> 180,929.93 | L25: 0.00
B26: GK8001 | C26: Бойлер напольный B01 800 л, с 1-м ТО, 90 кВт, INOX, Gekon | E26: 800 | F26: 3.0 | G26: 24.0 | H26: 165 | I26: ='Конвертация цен'!H322 -> 305535.69 | J26: =I26-I26*Оглавление!$K$20 -> 305,535.69 | L26: 0.00
B27: GK10001 | C27: Бойлер напольный B01 1000 л, с 1-м ТО, 98 кВт, INOX, Gekon | E27: 1000 | F27: 3.2 | G27: 25.0 | H27: 200 | I27: ='Конвертация цен'!H323 -> 351996.13 | J27: =I27-I27*Оглавление!$K$20 -> 351,996.13 | L27: 0.00
B28: GK1601S | C28: Бойлер напольный B01S 160 л, с 1-м ТО, 20 кВт, INOX, Gekon | E28: 160 | F28: 0.6 | G28: 5.0 | H28: 31 | I28: ='Конвертация цен'!H324 -> 61988.00 | J28: =I28-I28*Оглавление!$K$20 -> 61,988.00 | L28: =K28*J28 -> 0.00
B30: GK2101S | C30: Бойлер напольный B01S 200 л, с 1-м ТО, 20 кВт, INOX, Gekon | E30: 200 | F30: 0.6 | G30: 5.0 | H30: 35 | I30: ='Конвертация цен'!H325 -> 67623.00 | J30: =I30-I30*Оглавление!$K$20 -> 67,623.00 | L30: =K30*J30 -> 0.00
B32: GK1201TC | C32: Бойлер напольный BTC 120 л, с 1-м ТО, 28 кВт, INOX, Gekon | E32: 120 | F32: 0.9 | G32: 7.0 | H32: 39 | I32: ='Конвертация цен'!H326 -> 83150.00 | J32: =I32-I32*Оглавление!$K$20 -> 83,150.00 | L32: 0.00
B36: GK2001XL | C36: Бойлер напольный BXL 200 л, с 1-м ТО, 60 кВт, INOX, Gekon | E36: 200 | F36: 2 | G36: 16.0 | H36: 62 | I36: ='Конвертация цен'!H327 -> 109750.01 | J36: =I36-I36*Оглавление!$K$20 -> 109,750.01 | L36: 0.00
B37: GK3001XL | C37: Бойлер напольный BXL 300 л, с 1-м ТО, 115 кВт, INOX, Gekon | E37: 300 | F37: 3.8 | G37: 30.0 | H37: 93 | I37: ='Конвертация цен'!H328 -> 154392.18 | J37: =I37-I37*Оглавление!$K$20 -> 154,392.18 | L37: 0.00
B38: GK4001XL | C38: Бойлер напольный BXL 400 л, с 1-м ТО, 100 кВт, INOX, Gekon | E38: 400 | F38: 3.3 | G38: 26.0 | H38: 93 | I38: ='Конвертация цен'!H329 -> 161431.83 | J38: =I38-I38*Оглавление!$K$20 -> 161,431.83 | L38: 0.00
B39: GK5001XL | C39: Бойлер напольный BXL 500 л, с 1-м ТО, 127 кВт, INOX, Gekon | E39: 500 | F39: 4.2 | G39: 33.0 | H39: 122.5 | I39: ='Конвертация цен'!H330 -> 225560.23 | J39: =I39-I39*Оглавление!$K$20 -> 225,560.23 | L39: 0.00
B40: GK8001XL | C40: Бойлер напольный BXL 800 л, с 1-м ТО, 120 кВт, INOX, Gekon | E40: 800 | F40: 4 | G40: 32.0 | H40: 179 | I40: ='Конвертация цен'!H331 -> 325539.98 | J40: =I40-I40*Оглавление!$K$20 -> 325,539.98 | L40: 0.00
B41: GK10001XL | C41: Бойлер напольный BXL 1000 л, с 1-м ТО, 150 кВт, INOX, Gekon | E41: 1000 | F41: 5 | G41: 40.0 | H41: 209 | I41: ='Конвертация цен'!H332 -> 390900.60 | J41: =I41-I41*Оглавление!$K$20 -> 390,900.60 | L41: 0.00
B42: GK2002 | C42: Бойлер напольный B02 200 л, с 2-я ТО, 30/15 кВт, INOX, Gekon | E42: 200 | F42: 1,0/0,5 | G42: 8,0/4,0 | H42: 57 | I42: ='Конвертация цен'!H333 -> 100570.34 | J42: =I42-I42*Оглавление!$K$20 -> 100,570.34 | L42: 0.00
B43: GK3002 | C43: Бойлер напольный B02 300 л, с 2-я ТО, 40/28 кВт, INOX, Gekon | E43: 300 | F43: 1,3/0,9 | G43: 10,0/7,0 | H43: 79.5 | I43: ='Конвертация цен'!H334 -> 142417.16 | J43: =I43-I43*Оглавление!$K$20 -> 142,417.16 | L43: 0.00
B44: GK4002 | C44: Бойлер напольный B02 400 л, с 2-я ТО, 51/23 кВт, INOX, Gekon | E44: 400 | F44: 1,7/0,8 | G44: 14,0/6,0 | H44: 82 | I44: ='Конвертация цен'!H335 -> 158470.40 | J44: =I44-I44*Оглавление!$K$20 -> 158,470.40 | L44: 0.00
B45: GK5002 | C45: Бойлер напольный B02 500 л, с 2-я ТО, 60/23 кВт, INOX, Gekon | E45: 500 | F45: 2,0/0,8 | G45: 16,0/6,0 | H45: 112 | I45: ='Конвертация цен'!H336 -> 206707.71 | J45: =I45-I45*Оглавление!$K$20 -> 206,707.71 | L45: 0.00
B46: GK8002 | C46: Бойлер напольный B02 800 л, с 2-я ТО, 90/28 кВт, INOX, Gekon | E46: 800 | F46: 3,0/0,9 | G46: 24,0/7,0 | H46: 180 | I46: ='Конвертация цен'!H337 -> 324936.36 | J46: =I46-I46*Оглавление!$K$20 -> 324,936.36 | L46: 0.00
B47: GK10002 | C47: Бойлер напольный B02 1000 л, с 2-я ТО, 98/45 кВт, INOX, Gekon | E47: 1000 | F47: 3,2/1,5 | G47: 25,0/12,0 | H47: 200 | I47: ='Конвертация цен'!H338 -> 371394.66 | J47: =I47-I47*Оглавление!$K$20 -> 371,394.66 | L47: 0.00
A49: БОЙЛЕРЫ КОСВЕННОГО НАГРЕВА НАСТЕННЫЕ
A50: • Максимальная рабочая температура бойлера: +95⁰C
A51: • Максимальное рабочее давление бойлера: 6 бар
A52: • Бойлеры изготовлены из нержавеющей стали ГОСТ 08Х18Н10 (AISI 304)
A53: • Толщина стали корпуса и теплообменника 1,5 мм
A54: • Встроенный магниевый анод
A55: • Разборная секционная теплоизоляция из пенополистирола 30 мм
A56: • Защитный кожух из ABS-пластика белового цвета
A57: • Возможность установки ТЭНа с присоединением G1 1/2”, ТЭН поставляется отдельно
A59: Фото | B59: Артикул | C59: Наименование товара | E59: Вместимость бойлера | F59: Площадь теплообменника | G59: Ёмкость теплообменника | H59: Вес | I59: Цена за шт. | J59: Цена со скидкой, RUB | K59: Кол-во, шт. | L59: Сумма со скидкой, RUB
E60: л | F60: м2 | G60: л | H60: кг | I60: RUB
B61: GK801WL | C61: Бойлер настенный BW 80 л, с 1-м ТО, 15 кВт, подключение слева, INOX, Gekon | E61: 80 | F61: 0.5 | G61: 4.0 | H61: 24 | I61: ='Конвертация цен'!H339 -> 50270.51 | J61: =I61-I61*Оглавление!$K$20 -> 50,270.51 | L61: =K61*J61 -> 0.00
B62: GK1001WL | C62: Бойлер настенный BW 100 л, с 1-м ТО, 15 кВт, подключение слева, INOX, Gekon | E62: 100 | F62: 0.5 | G62: 4.0 | H62: 26 | I62: ='Конвертация цен'!H340 -> 55500.27 | J62: =I62-I62*Оглавление!$K$20 -> 55,500.27 | L62: =K62*J62 -> 0.00
B63: GK1501WL | C63: Бойлер настенный BW 150 л, с 1-м ТО, 30 кВт, подключение слева, INOX, Gekon | E63: 150 | F63: 1 | G63: 8.0 | H63: 37 | I63: ='Конвертация цен'!H341 -> 72430.20 | J63: =I63-I63*Оглавление!$K$20 -> 72,430.20 | L63: =K63*J63 -> 0.00
B64: GK2001WL | C64: Бойлер настенный BW 200 л, с 1-м ТО, 30 кВт, подключение слева, INOX, Gekon | E64: 200 | F64: 1 | G64: 8.0 | H64: 37 | I64: ='Конвертация цен'!H342 -> 80765.00 | J64: =I64-I64*Оглавление!$K$20 -> 80,765.00 | L64: 0.00
B65: GK801WR | C65: Бойлер настенный BW 80 л, с 1-м ТО, 15 кВт, подключение справа, INOX, Gekon | E65: 80 | F65: 0.5 | G65: 4.0 | H65: 24 | I65: ='Конвертация цен'!H343 -> 50270.51 | J65: =I65-I65*Оглавление!$K$20 -> 50,270.51 | L65: 0.00
B66: GK1001WR | C66: Бойлер настенный BW 100 л, с 1-м ТО, 15 кВт, подключение справа, INOX, Gekon | E66: 100 | F66: 0.5 | G66: 4.0 | H66: 26 | I66: ='Конвертация цен'!H344 -> 55500.27 | J66: =I66-I66*Оглавление!$K$20 -> 55,500.27 | L66: =K66*J66 -> 0.00
B67: GK1501WR | C67: Бойлер настенный BW 150 л, с 1-м ТО, 30 кВт, подключение справа, INOX, Gekon | E67: 150 | F67: 1 | G67: 8.0 | H67: 37 | I67: ='Конвертация цен'!H345 -> 72430.20 | J67: =I67-I67*Оглавление!$K$20 -> 72,430.20 | L67: =K67*J67 -> 0.00
B68: GK2001WR | C68: Бойлер настенный BW 200 л, с 1-м ТО, 30 кВт, подключение справа, INOX, Gekon | E68: 200 | F68: 1 | G68: 8.0 | H68: 37 | I68: ='Конвертация цен'!H346 -> 80765.00 | J68: =I68-I68*Оглавление!$K$20 -> 80,765.00 | L68: =K68*J68 -> 0.00
B69: GK1201WB | C69: Бойлер настенный BW 120 л, с 1-м ТО, 28 кВт, подключение нижнее, INOX, Gekon | E69: 120 | F69: 0.9 | G69: 7.0 | H69: 39 | I69: ='Конвертация цен'!H347 -> 78500.00 | J69: =I69-I69*Оглавление!$K$20 -> 78,500.00 | L69: =K69*J69 -> 0.00
A71: НАКОПИТЕЛИ ГОРЯЧЕЙ ВОДЫ НАПОЛЬНЫЕ
A72: • Максимальная рабочая температура накопителя: +95⁰C
A73: • Максимальное рабочее давление накопителя: 6 бар
A74: • Накопители изготовлены из нержавеющей стали ГОСТ 08Х18Н10 (AISI 304)
A75: • Толщина стали корпуса 1,5 мм для объёма 150-500 л и 3,0 мм для объёма 800-1000 л
A76: • Встроенный магниевый анод
A77: • Разборная секционная теплоизоляция из пенополистирола 50 мм для накопителей 150-500 л, 60 мм для накопителей 800-1000 л
A78: • Возможность установки ТЭНа с присоединением G1 1/2”, ТЭН поставляется отдельно
A79: • Ревизионный люк диаметром 125 мм
A81: Фото | B81: Артикул | C81: Наименование товара | E81: Вместимость накопителя | F81: Время нагрева воды электроТЭНом 2 кВт/3 кВт - для объёма 150-500 л, 3 кВт/5 кВт - для объёма 800-1000 л | H81: Вес | I81: Цена за шт. | J81: Цена со скидкой, RUB | K81: Кол-во, шт. | L81: Сумма со скидкой, RUB
E82: л | F82: ч | H82: кг | I82: RUB
B83: GK150 | C83: Накопитель горячей воды напольный BT 150 л, INOX, Gekon | E83: 150 | F83: 3/2 | H83: 31 | I83: ='Конвертация цен'!H348 -> 58841.93 | J83: =I83-I83*Оглавление!$K$20 -> 58,841.93 | L83: =K83*J83 -> 0.00
B84: GK200 | C84: Накопитель горячей воды напольный BT 200 л, INOX, Gekon | E84: 200 | F84: 4/2,7 | H84: 39 | I84: ='Конвертация цен'!H349 -> 67364.48 | J84: =I84-I84*Оглавление!$K$20 -> 67,364.48 | L84: =K84*J84 -> 0.00
B85: GK300 | C85: Накопитель горячей воды напольный BT 300 л, INOX, Gekon | E85: 300 | F85: 6/4 | H85: 52 | I85: ='Конвертация цен'!H350 -> 93818.58 | J85: =I85-I85*Оглавление!$K$20 -> 93,818.58 | L85: 0.00
B86: GK400 | C86: Накопитель горячей воды напольный BT 400 л, INOX, Gekon | E86: 400 | F86: 8,2/5,4 | H86: 52 | I86: ='Конвертация цен'!H351 -> 107843.56 | J86: =I86-I86*Оглавление!$K$20 -> 107,843.56 | L86: 0.00
B87: GK500 | C87: Накопитель горячей воды напольный BT 500 л, INOX, Gekon | E87: 500 | F87: 10,2/6,8 | H87: 78 | I87: ='Конвертация цен'!H352 -> 149364.03 | J87: =I87-I87*Оглавление!$K$20 -> 149,364.03 | L87: 0.00
B88: GK800 | C88: Накопитель горячей воды напольный BT 800 л, INOX, Gekon | E88: 800 | F88: 11/7 | H88: 130 | I88: ='Конвертация цен'!H353 -> 242432.75 | J88: =I88-I88*Оглавление!$K$20 -> 242,432.75 | L88: 0.00
B89: GK1000 | C89: Накопитель горячей воды напольный BT 1000 л, INOX, Gekon | E89: 1000 | F89: 13,5/8 | H89: 143 | I89: ='Конвертация цен'!H354 -> 279095.70 | J89: =I89-I89*Оглавление!$K$20 -> 279,095.70 | L89: 0.00
A91: НАКОПИТЕЛИ ГОРЯЧЕЙ ВОДЫ НАПОЛЬНЫЕ
A92: • Максимальная рабочая температура накопителя: +95⁰C
A93: • Максимальное рабочее давление накопителя: 6 бар
A94: • Накопители изготовлены из нержавеющей стали ГОСТ 08Х18Н10 (AISI 304)
A95: • Толщина стали корпуса 1,5 мм
A96: • Встроенный магниевый анод
A97: • Разборная секционная теплоизоляция из пенополистирола 30 мм
A98: • В составе накопителя установлен циркуляционный насос 20-4 (130) с термостатом
A100: Фото | B100: Артикул | C100: Наименование товара | E100: Вместимость накопителя | F100: Время нагрева воды электроТЭНом 2 кВт/3 кВт - для объёма 100 л | H100: Вес | I100: Цена за шт. | J100: Цена со скидкой, RUB | K100: Кол-во, шт. | L100: Сумма со скидкой, RUB
E101: л | F101: ч | H101: кг | I101: RUB
B102: GK100P | C102: Накопитель горячей воды напольный BP 100 л, с насосом ГВС, INOX, Gekon | E102: 100 | F102: 2/1,5 | H102: 36.5 | I102: ='Конвертация цен'!H355 -> 61539.95 | J102: =I102-I102*Оглавление!$K$20 -> 61,539.95 | L102: =K102*J102 -> 0.00
A104: ТЕПЛОВЫЕ ВОДЯНЫЕ АККУМУЛЯТОРЫ
A105: • Максимальная рабочая температура бака: +95⁰C
A106: • Максимальное рабочее давление: 6 бар
A107: • Толщина стенки бака 3 мм для объёма 500 л и 4 мм для объёма 800-1000 л
A108: • Разборная секционная теплоизоляция из пенополистирола 50 мм для баков 500 л, 60 мм для баков 800-1000 л
A109: • Защитная тканевая оболочка чёрного цвета
A110: • Возможность установки ТЭНа с присоединением G2”, ТЭН поставляется отдельно
A112: Фото | B112: Артикул | C112: Наименование товара | E112: Вместимость накопителя | F112: Время нагрева воды электроТЭНом 2 кВт/3 кВт - для объёма 150-500 л, 3 кВт/5 кВт - для объёма 800-1000 л | H112: Вес | I112: Цена за шт. | J112: Цена со скидкой, RUB | K112: Кол-во, шт. | L112: Сумма со скидкой, RUB
E113: л | F113: ч | H113: кг | I113: RUB
B114: GK500BS | C114: Теплоаккумулятор Buffer S 500 л, одностороннее расположение патрубков, Gekon | E114: 500 | F114: 10,2/6,8 | H114: 102 | I114: ='Конвертация цен'!H356 -> 63530.91 | J114: =I114-I114*Оглавление!$K$20 -> 63,530.91 | L114: =K114*J114 -> 0.00
B115: GK800BS | C115: Теплоаккумулятор Buffer S 800 л, одностороннее расположение патрубков, Gekon | E115: 800 | F115: 11/7 | H115: 173 | I115: ='Конвертация цен'!H357 -> 85370.31 | J115: =I115-I115*Оглавление!$K$20 -> 85,370.31 | L115: =K115*J115 -> 0.00
B116: GK1000BS | C116: Теплоаккумулятор Buffer S 1000 л, одностороннее расположение патрубков, Gekon | E116: 1000 | F116: 13,5/8 | H116: 200 | I116: ='Конвертация цен'!H358 -> 96481.80 | J116: =I116-I116*Оглавление!$K$20 -> 96,481.80 | L116: 0.00
B117: GK500BA | C117: Теплоаккумулятор Buffer A 500 л, расположение патрубков под углом 90 градусов, Gekon | E117: 500 | F117: 10,2/6,8 | H117: 102 | I117: ='Конвертация цен'!H359 -> 63530.91 | J117: =I117-I117*Оглавление!$K$20 -> 63,530.91 | L117: 0.00
B118: GK800BA | C118: Теплоаккумулятор Buffer A 800 л, расположение патрубков под углом 90 градусов, Gekon | E118: 800 | F118: 11/7 | H118: 173 | I118: ='Конвертация цен'!H360 -> 85370.31 | J118: =I118-I118*Оглавление!$K$20 -> 85,370.31 | L118: 0.00
B119: GK1000BA | C119: Теплоаккумулятор Buffer A 1000 л, расположение патрубков под углом 90 градусов, Gekon | E119: 1000 | F119: 13,5/8 | H119: 200 | I119: ='Конвертация цен'!H361 -> 96481.80 | J119: =I119-I119*Оглавление!$K$20 -> 96,481.80 | L119: 0.00
A121: ДОПОЛНИТЕЛЬНОЕ ОБОРУДОВАНИЕ ДЛЯ БОЙЛЕРОВ, НАГРЕВАТЕЛЕЙ И ТЕПЛОАККУМУЛЯТОРОВ
A123: Фото | B123: Артикул | C123: Наименование товара | E123: Диаметр | F123: Присоединение | G123: Длина | H123: Вес | I123: Цена за шт. | J123: Цена со скидкой, RUB | K123: Кол-во, шт. | L123: Сумма со скидкой, RUB
E124: мм | G124: мм | H124: кг | I124: RUB
B125: GKMA8D2140 | C125: Анод магниевый L=400 мм, D21 мм, М8х10 | E125: 21 | F125: М8х10 | G125: 400 | H125: 0.30 | I125: ='Конвертация цен'!H362 -> 850.00 | J125: =I125-I125*Оглавление!$K$20 -> 850.00 | L125: =K125*J125 -> 0.00
B126: GKMA8D2145 | C126: Анод магниевый L=450 мм, D21 мм, М8х10 | E126: 21 | F126: М8х11 | G126: 450 | H126: 0.34 | I126: ='Конвертация цен'!H363 -> 900.00 | J126: =I126-I126*Оглавление!$K$20 -> 900.00 | L126: =K126*J126 -> 0.00

Sheet Мембранные баки
A4: Мембранные расширительные баки
A6: ВЕРТИКАЛЬНЫЕ МЕМБРАННЫЕ РАСШИРИТЕЛЬНЫЕ БАКИ СЕРИИ WRV ДЛЯ СИСТЕМ ОТОПЛЕНИЯ ЗАКРЫТОГО ТИПА
A7: • Диапазон рабочих температур теплоносителя: от -10⁰C до +80⁰C (кратковременно до +99⁰C)
A8: • Тип теплоносителя: вода или водные растворы гликоля с концентрацие до 50%
A9: • Материал корпуса и контрфланца: сталь углеродистая с эпоксиполиэфирным покрытием, цвет красный RAL 3002
A10: • Тип мембраны: заменяемая, материал мембраны: EPDM | K10: На главную страницу
A11: • Материал ниппеля: латунь
A12: • Тип исполнения: вертикальный
A13: • Размер держателя мембраны у баков 200- 4000 л 3/4"(НР)x1/2"(ВР); Размер держателя мембраны у баков 5000- 10000 л 1 1/4"(ВР)
K14: Итого: | L14: =SUM(M17:M69,M83:M146,M159:M172,M185:M193,M206:M210,M222:M226,M232:M233) -> 0.00
A15: Фото | B15: Артикул | C15: Наименование товара | E15: Объём бака | F15: Pmax | G15: P преднастройки | H15: Присоединение к системе | I15: Вес | J15: Цена за шт. | K15: Цена со скидкой, RUB | L15: Кол-во, шт. | M15: Сумма со скидкой, RUB
E16: л | F16: бар | G16: бар | H16: G или DN | I16: кг | J16: RUB
B17: GKB0140029 | C17: Бак мембранный для отопления Gekon WRV8 | E17: 8 | F17: 5.0 | G17: 1.5 | H17: 3/4" (НР) | I17: 1.6 | J17: ='Конвертация цен'!H367 -> 2454 | K17: =J17-J17*Оглавление!$K$21 -> 2,454.00 | M17: =L17*K17 -> 0.00
B18: GKB2140200 | C18: Бак мембранный для отопления Gekon WRV8 (16 бар) | E18: 8 | F18: 16.0 | G18: 4.0 | H18: 1" (НР) | I18: 7 | J18: ='Конвертация цен'!H368 -> 11590 | K18: =J18-J18*Оглавление!$K$21 -> 11,589.64 | M18: =L18*K18 -> 0.00
B19: GKB2140300 | C19: Бак мембранный для отопления Gekon WRV8 (25 бар) | E19: 8 | F19: 25.0 | G19: 4.0 | H19: 1" (НР) | I19: 11 | J19: ='Конвертация цен'!H369 -> 33682 | K19: =J19-J19*Оглавление!$K$21 -> 33,682.40 | M19: 0.00
B20: GKB0140049 | C20: Бак мембранный для отопления Gekon WRV12 | E20: 12 | F20: 5.0 | G20: 1.5 | H20: 3/4" (НР) | I20: 2.05 | J20: ='Конвертация цен'!H370 -> 2675 | K20: =J20-J20*Оглавление!$K$21 -> 2,675.00 | M20: 0.00
B21: GKB2140302 | C21: Бак мембранный для отопления Gekon WRV12 (25 бар) | E21: 12 | F21: 25.0 | G21: 4.0 | H21: 1" (НР) | I21: 12 | J21: ='Конвертация цен'!H371 -> 33682 | K21: =J21-J21*Оглавление!$K$21 -> 33,682.40 | M21: 0.00
B22: GKB0140059 | C22: Бак мембранный для отопления Gekon WRV18 | E22: 18 | F22: 5.0 | G22: 1.5 | H22: 3/4" (НР) | I22: 2.8 | J22: ='Конвертация цен'!H372 -> 2925 | K22: =J22-J22*Оглавление!$K$21 -> 2,925.00 | M22: 0.00
B23: GKB2140304 | C23: Бак мембранный для отопления Gekon WRV18 (25 бар) | E23: 18 | F23: 25.0 | G23: 4.0 | H23: 1" (НР) | I23: 13 | J23: ='Конвертация цен'!H373 -> 46087 | K23: =J23-J23*Оглавление!$K$21 -> 46,086.95 | M23: 0.00
B24: GKB0140069 | C24: Бак мембранный для отопления Gekon WRV24 | E24: 24 | F24: 5.0 | G24: 1.5 | H24: 3/4" (НР) | I24: 4.25 | J24: ='Конвертация цен'!H374 -> 3153 | K24: =J24-J24*Оглавление!$K$21 -> 3,153.00 | M24: 0.00
B25: GKB2140206 | C25: Бак мембранный для отопления Gekon WRV24 (16 бар) | E25: 24 | F25: 16.0 | G25: 4.0 | H25: 1" (НР) | I25: 8 | J25: ='Конвертация цен'!H375 -> 15936 | K25: =J25-J25*Оглавление!$K$21 -> 15,935.76 | M25: 0.00
B26: GKB2140306 | C26: Бак мембранный для отопления Gekon WRV24 (25 бар) | E26: 24 | F26: 25.0 | G26: 4.0 | H26: 1" (НР) | I26: 13 | J26: ='Конвертация цен'!H376 -> 46087 | K26: =J26-J26*Оглавление!$K$21 -> 46,086.95 | M26: 0.00
B27: GKB0140080 | C27: Бак мембранный для отопления Gekon WRV35 | E27: 35 | F27: 5.0 | G27: 1.5 | H27: 3/4" (НР) | I27: 5.95 | J27: ='Конвертация цен'!H377 -> 5388 | K27: =J27-J27*Оглавление!$K$21 -> 5,388.00 | M27: 0.00
B28: GKB0140100 | C28: Бак мембранный для отопления Gekon WRV50 | E28: 50 | F28: 5.0 | G28: 1.5 | H28: 3/4" (НР) | I28: 7.75 | J28: ='Конвертация цен'!H378 -> 6634 | K28: =J28-J28*Оглавление!$K$21 -> 6,634.00 | M28: =L28*K28 -> 0.00
B29: GKB2140208 | C29: Бак мембранный для отопления Gekon WRV50 (16 бар) | E29: 50 | F29: 16.0 | G29: 4.0 | H29: 1" (НР) | I29: 16 | J29: ='Конвертация цен'!H379 -> 32143 | K29: =J29-J29*Оглавление!$K$21 -> 32,143.15 | M29: =L29*K29 -> 0.00
B30: GKB0140120 | C30: Бак мембранный для отопления Gekon WRV80 | E30: 80 | F30: 5.0 | G30: 1.5 | H30: 3/4" (НР) | I30: 11.15 | J30: ='Конвертация цен'!H380 -> 9228 | K30: =J30-J30*Оглавление!$K$21 -> 9,228.00 | M30: 0.00
B31: GKB2140212 | C31: Бак мембранный для отопления Gekon WRV80 (16 бар) | E31: 80 | F31: 16.0 | G31: 4.0 | H31: 1" (НР) | I31: 26 | J31: ='Конвертация цен'!H381 -> 50071 | K31: =J31-J31*Оглавление!$K$21 -> 50,070.89 | M31: 0.00
B32: GKB0140140 | C32: Бак мембранный для отопления Gekon WRV100 | E32: 100 | F32: 5.0 | G32: 1.5 | H32: 1" (НР) | I32: 13.25 | J32: ='Конвертация цен'!H382 -> 13263 | K32: =J32-J32*Оглавление!$K$21 -> 13,263.00 | M32: 0.00
B33: GKB2140214 | C33: Бак мембранный для отопления Gekon WRV100 (16 бар) | E33: 100 | F33: 16.0 | G33: 4.0 | H33: 1" (НР) | I33: 47 | J33: ='Конвертация цен'!H383 -> 53783 | K33: =J33-J33*Оглавление!$K$21 -> 53,783.19 | M33: 0.00
B34: GKB2140314 | C34: Бак мембранный для отопления Gekon WRV100 (25 бар) | E34: 100 | F34: 25.0 | G34: 4.0 | H34: 1" (НР) | I34: 51 | J34: ='Конвертация цен'!H384 -> 124317 | K34: =J34-J34*Оглавление!$K$21 -> 124,317.05 | M34: 0.00
B35: GKB0140160 | C35: Бак мембранный для отопления Gekon WRV150 | E35: 150 | F35: 5.0 | G35: 1.5 | H35: 1" (НР) | I35: 17.2 | J35: ='Конвертация цен'!H385 -> 20092 | K35: =J35-J35*Оглавление!$K$21 -> 20,092.00 | M35: 0.00
B36: GKB2140216 | C36: Бак мембранный для отопления Gekon WRV150 (16 бар) | E36: 150 | F36: 16.0 | G36: 4.0 | H36: 1" (НР) | I36: 47 | J36: ='Конвертация цен'!H386 -> 61389 | K36: =J36-J36*Оглавление!$K$21 -> 61,388.90 | M36: 0.00
B37: GKB2140316 | C37: Бак мембранный для отопления Gekon WRV150 (25 бар) | E37: 150 | F37: 25.0 | G37: 4.0 | H37: 1" (НР) | I37: 45 | J37: ='Конвертация цен'!H387 -> 199106 | K37: =J37-J37*Оглавление!$K$21 -> 199,106.47 | M37: 0.00
B38: GKB0140180 | C38: Бак мембранный для отопления Gekon WRV200 | E38: 200 | F38: 10.0 | G38: 1.5 | H38: 1 1/4" (НР) | I38: 32.4 | J38: ='Конвертация цен'!H388 -> 34459 | K38: =J38-J38*Оглавление!$K$21 -> 34,459.00 | M38: 0.00
B39: GKB2140218 | C39: Бак мембранный для отопления Gekon WRV200 (16 бар) | E39: 200 | F39: 16.0 | G39: 4.0 | H39: 1 1/4" (НР) | I39: 50 | J39: ='Конвертация цен'!H389 -> 114719 | K39: =J39-J39*Оглавление!$K$21 -> 114,719.37 | M39: =L39*K39 -> 0.00
B40: GKB2140318 | C40: Бак мембранный для отопления Gekon WRV200 (25 бар) | E40: 200 | F40: 25.0 | G40: 4.0 | H40: 1 1/4" (НР) | I40: 100 | J40: ='Конвертация цен'!H390 -> 259047 | K40: =J40-J40*Оглавление!$K$21 -> 259,046.66 | M40: 0.00
B41: GKB0140190 | C41: Бак мембранный для отопления Gekon WRV300 | E41: 300 | F41: 10.0 | G41: 1.5 | H41: 1 1/4" (НР) | I41: 40.3 | J41: ='Конвертация цен'!H391 -> 38272 | K41: =J41-J41*Оглавление!$K$21 -> 38,272.40 | M41: 0.00
B42: GKB2140220 | C42: Бак мембранный для отопления Gekon WRV300 (16 бар) | E42: 300 | F42: 16.0 | G42: 4.0 | H42: 1 1/4" (НР) | I42: 60 | J42: ='Конвертация цен'!H392 -> 135454 | K42: =J42-J42*Оглавление!$K$21 -> 135,453.97 | M42: 0.00
B43: GKB2140320 | C43: Бак мембранный для отопления Gekon WRV300 (25 бар) | E43: 300 | F43: 25.0 | G43: 4.0 | H43: 1 1/4" (НР) | I43: 110 | J43: ='Конвертация цен'!H393 -> 330214 | K43: =J43-J43*Оглавление!$K$21 -> 330,214.33 | M43: 0.00
B44: GKB0140200 | C44: Бак мембранный для отопления Gekon WRV500 | E44: 500 | F44: 10.0 | G44: 1.5 | H44: 1 1/4" (НР) | I44: 55.5 | J44: ='Конвертация цен'!H394 -> 68759 | K44: =J44-J44*Оглавление!$K$21 -> 68,759.00 | M44: 0.00
B45: GKB2140222 | C45: Бак мембранный для отопления Gekon WRV500 (16 бар) | E45: 500 | F45: 16.0 | G45: 4.0 | H45: 1 1/4" (НР) | I45: 91 | J45: ='Конвертация цен'!H395 -> 185163 | K45: =J45-J45*Оглавление!$K$21 -> 185,162.68 | M45: 0.00
B46: GKB2140322 | C46: Бак мембранный для отопления Gekon WRV500 (25 бар) | E46: 500 | F46: 25.0 | G46: 4.0 | H46: 1 1/4" (НР) | I46: 141 | J46: ='Конвертация цен'!H396 -> 448374 | K46: =J46-J46*Оглавление!$K$21 -> 448,374.37 | M46: 0.00
B47: GKB0140210 | C47: Бак мембранный для отопления Gekon WRV750 | E47: 750 | F47: 10.0 | G47: 4.0 | H47: 1 1/4" (НР) | I47: 130 | J47: ='Конвертация цен'!H397 -> 151772 | K47: =J47-J47*Оглавление!$K$21 -> 151,772.25 | M47: 0.00
B48: GKB2140224 | C48: Бак мембранный для отопления Gekon WRV750 (16 бар) | E48: 750 | F48: 16.0 | G48: 4.0 | H48: 2" (ВР) | I48: 211 | J48: ='Конвертация цен'!H398 -> 379923 | K48: =J48-J48*Оглавление!$K$21 -> 379,923.03 | M48: 0.00
B49: GKB0140220 | C49: Бак мембранный для отопления Gekon WRV1000 | E49: 1000 | F49: 10.0 | G49: 4.0 | H49: 2" (ВР) | I49: 165 | J49: ='Конвертация цен'!H399 -> 209000 | K49: =J49-J49*Оглавление!$K$21 -> 209,000.00 | M49: 0.00
B50: GKB2140226 | C50: Бак мембранный для отопления Gekon WRV1000 (16 бар) | E50: 1000 | F50: 16.0 | G50: 4.0 | H50: 2" (ВР) | I50: 245 | J50: ='Конвертация цен'!H400 -> 478073 | K50: =J50-J50*Оглавление!$K$21 -> 478,072.84 | M50: 0.00
B51: GKB2140326 | C51: Бак мембранный для отопления Gekon WRV1000(25 бар) | E51: 1000 | F51: 25.0 | G51: 4.0 | H51: 2" (ВР) | I51: 295 | J51: ='Конвертация цен'!H401 -> 783750 | K51: =J51-J51*Оглавление!$K$21 -> 783,749.71 | M51: =L51*K51 -> 0.00
B52: GKB1140312 | C52: Бак мембранный для отопления Gekon WRV1500 | E52: 1500 | F52: 10.0 | G52: 4.0 | H52: 2" (ВР) | I52: 240 | J52: ='Конвертация цен'!H402 -> 676222 | K52: =J52-J52*Оглавление!$K$21 -> 676,222.34 | M52: 0.00
B53: GKB2140228 | C53: Бак мембранный для отопления Gekon WRV1500 (16 бар) | E53: 1500 | F53: 16.0 | G53: 4.0 | H53: 2" (ВР) | I53: 371 | J53: ='Конвертация цен'!H403 -> 654000 | K53: =J53-J53*Оглавление!$K$21 -> 654,000.02 | M53: 0.00
B54: GKB2140328 | C54: Бак мембранный для отопления Gekon WRV1500(25 бар) | E54: 1500 | F54: 25.0 | G54: 4.0 | H54: 2" (ВР) | I54: 421 | J54: ='Конвертация цен'!H404 -> 1003772 | K54: =J54-J54*Оглавление!$K$21 -> 1,003,771.87 | M54: 0.00
B55: GKB1140315 | C55: Бак мембранный для отопления Gekon WRV2000 | E55: 2000 | F55: 10.0 | G55: 4.0 | H55: 2" (ВР) | I55: 375 | J55: ='Конвертация цен'!H405 -> 855079 | K55: =J55-J55*Оглавление!$K$21 -> 855,079.00 | M55: 0.00
B56: GKB2140230 | C56: Бак мембранный для отопления Gekon WRV2000 (16 бар) | E56: 2000 | F56: 16.0 | G56: 4.0 | H56: 2" (ВР) | I56: 498 | J56: ='Конвертация цен'!H406 -> 1020160 | K56: =J56-J56*Оглавление!$K$21 -> 1,020,160.35 | M56: 0.00
B57: GKB2140330 | C57: Бак мембранный для отопления Gekon WRV2000 (25 бар) | E57: 2000 | F57: 25.0 | G57: 4.0 | H57: 2" (ВР) | I57: 548 | J57: ='Конвертация цен'!H407 -> 1575377 | K57: =J57-J57*Оглавление!$K$21 -> 1,575,376.76 | M57: 0.00
B58: GKB2140104 | C58: Бак мембранный для отопления Gekon WRV2500 | E58: 2500 | F58: 10.0 | G58: 4.0 | H58: 2" (ВР) | I58: 307 | J58: ='Конвертация цен'!H408 -> 841592 | K58: =J58-J58*Оглавление!$K$21 -> 841,592.00 | M58: 0.00
B59: GKB1140320 | C59: Бак мембранный для отопления Gekon WRV3000 | E59: 3000 | F59: 10.0 | G59: 4.0 | H59: 2 1/2" (ВР) | I59: 550 | J59: ='Конвертация цен'!H409 -> 1024715 | K59: =J59-J59*Оглавление!$K$21 -> 1,024,715.00 | M59: 0.00
B60: GKB2140234 | C60: Бак мембранный для отопления Gekon WRV3000 (16 бар) | E60: 3000 | F60: 16.0 | G60: 4.0 | H60: 2 1/2" (ВР) | I60: 750 | J60: ='Конвертация цен'!H410 -> 1375093 | K60: =J60-J60*Оглавление!$K$21 -> 1,375,093.21 | M60: 0.00
B61: GKB2140332 | C61: Бак мембранный для отопления Gekon WRV3000 (25 бар) | E61: 3000 | F61: 25.0 | G61: 4.0 | H61: 2 1/2" (ВР) | I61: 800 | J61: ='Конвертация цен'!H411 -> 2079436 | K61: =J61-J61*Оглавление!$K$21 -> 2,079,435.75 | M61: 0.00
B62: GKB2140108 | C62: Бак мембранный для отопления Gekon WRV4000 | E62: 4000 | F62: 10.0 | G62: 4.0 | H62: 3" (ВР) | I62: 655 | J62: ='Конвертация цен'!H412 -> 1692179 | K62: =J62-J62*Оглавление!$K$21 -> 1,692,178.65 | M62: 0.00
B63: GKB2140236 | C63: Бак мембранный для отопления Gekon WRV4000 (16 бар) | E63: 4000 | F63: 16.0 | G63: 4.0 | H63: 3" (ВР) | I63: 1003 | J63: ='Конвертация цен'!H413 -> 2164094 | K63: =J63-J63*Оглавление!$K$21 -> 2,164,094.48 | M63: 0.00
B64: GKB1140330 | C64: Бак мембранный для отопления Gekon WRV5000 | E64: 5000 | F64: 10.0 | G64: 4.0 | H64: 3" (ВР) | I64: 830 | J64: ='Конвертация цен'!H414 -> 2299548 | K64: =J64-J64*Оглавление!$K$21 -> 2,299,548.45 | M64: 0.00
B65: GKB2140238 | C65: Бак мембранный для отопления Gekon WRV5000 (16 бар) | E65: 5000 | F65: 16.0 | G65: 4.0 | H65: 3" (ВР) | I65: 1139 | J65: ='Конвертация цен'!H415 -> 2766665 | K65: =J65-J65*Оглавление!$K$21 -> 2,766,665.46 | M65: 0.00
B66: GKB2140112 | C66: Бак мембранный для отопления Gekon WRV8000 | E66: 8000 | F66: 10.0 | G66: 4.0 | H66: 4" (ВР) | I66: 1470 | J66: ='Конвертация цен'!H416 -> 4174717 | K66: =J66-J66*Оглавление!$K$21 -> 4,174,716.72 | M66: 0.00
B67: GKB2140240 | C67: Бак мембранный для отопления Gekon WRV8000 (16 бар) | E67: 8000 | F67: 16.0 | G67: 4.0 | H67: 4" (ВР) | I67: 1637 | J67: ='Конвертация цен'!H417 -> 6163608 | K67: =J67-J67*Оглавление!$K$21 -> 6,163,608.38 | M67: 0.00
B68: GKB2140340 | C68: Бак мембранный для отопления Gekon WRV8000 (25 бар) | E68: 8000 | F68: 25.0 | G68: 4.0 | H68: 4" (ВР) | I68: 1687 | J68: ='Конвертация цен'!H418 -> 7244252 | K68: =J68-J68*Оглавление!$K$21 -> 7,244,252.18 | M68: 0.00
B69: GKB2140114 | C69: Бак мембранный для отопления Gekon WRV10000 | E69: 10000 | F69: 10.0 | G69: 4.0 | H69: DN 100 | I69: 1920 | J69: ='Конвертация цен'!H419 -> 4909120 | K69: =J69-J69*Оглавление!$K$21 -> 4,909,119.90 | M69: 0.00
B70: GKB2140242 | C70: Бак мембранный для отопления Gekon WRV 10000 (16 бар) | E70: 10000 | F70: 16.0 | G70: 4.0 | H70: DN 100 | I70: 2500 | J70: ='Конвертация цен'!H420 -> по запросу | K70: =J70 -> по запросу | M70: по запросу
A72: ВЕРТИКАЛЬНЫЕ МЕМБРАННЫЕ РАСШИРИТЕЛЬНЫЕ БАКИ СЕРИИ WAV ДЛЯ СИСТЕМ ВОДОСНАБЖЕНИЯ
A73: • Диапазон рабочих температур теплоносителя: от -10⁰C до +80⁰C (кратковременно до +99⁰C)
A74: • Тип теплоносителя: вода или водные растворы гликоля с концентрацие до 50%
A75: • Материал корпуса и контрфланца: сталь углеродистая с эпоксиполиэфирным покрытием, цвет синий RAL 5015
A76: • Тип мембраны: заменяемая, материал мембраны: EPDM
A77: • Материал ниппеля: латунь
A78: • Тип исполнения: вертикальный
A79: • Размер держателя мембраны у баков 200- 4000 л 3/4"(НР)x1/2"(ВР); Размер держателя мембраны у баков 5000- 10000 л 1 1/4"(ВР)
A81: Фото | B81: Артикул | C81: Наименование товара | E81: Объём бака | F81: Pmax | G81: P преднастройки | H81: Присоединение к системе | I81: Вес | J81: Цена за шт. | K81: Цена со скидкой, RUB | L81: Кол-во, шт. | M81: Сумма со скидкой, RUB
E82: л | F82: бар | G82: бар | H82: G или DN | I82: кг | J82: RUB
B83: GKB0141029 | C83: Бак мембранный для водоснабжения Gekon WAV8 | E83: 8 | F83: 10.0 | G83: 1.5 | H83: 3/4" (НР) | I83: 1.6 | J83: ='Конвертация цен'!H421 -> 2409.00 | K83: =J83-J83*Оглавление!$K$21 -> 2,409.00 | M83: =L83*K83 -> 0.00
B84: GKB2140250 | C84: Бак мембранный для водоснабжения Gekon WAV8 (16 бар) | E84: 8 | F84: 16.0 | G84: 4.0 | H84: 1" (НР) | I84: 7.3 | J84: ='Конвертация цен'!H422 -> 11589.64 | K84: =J84-J84*Оглавление!$K$21 -> 11,589.64 | M84: =L84*K84 -> 0.00
B85: GKB2140350 | C85: Бак мембранный для водоснабжения Gekon WAV8 (25 бар) | E85: 8 | F85: 25.0 | G85: 4.0 | H85: 1" (НР) | I85: 11.3 | J85: ='Конвертация цен'!H423 -> 33682.40 | K85: =J85-J85*Оглавление!$K$21 -> 33,682.40 | M85: 0.00
B86: GKB0141039 | C86: Бак мембранный для водоснабжения Gekon WAV12 | E86: 12 | F86: 10.0 | G86: 1.5 | H86: 3/4" (НР) | I86: 2.1 | J86: ='Конвертация цен'!H424 -> 2621.00 | K86: =J86-J86*Оглавление!$K$21 -> 2,621.00 | M86: 0.00
B87: GKB2140252 | C87: Бак мембранный для водоснабжения GekonWAV12 (16 бар) | E87: 12 | F87: 16.0 | G87: 4.0 | H87: 1" (НР) | I87: 7.9 | J87: ='Конвертация цен'!H425 -> 11589.64 | K87: =J87-J87*Оглавление!$K$21 -> 11,589.64 | M87: 0.00
B88: GKB2140352 | C88: Бак мембранный для водоснабжения Gekon WAV12 (25 бар) | E88: 12 | F88: 25.0 | G88: 4.0 | H88: 1" (НР) | I88: 12.05 | J88: ='Конвертация цен'!H426 -> 33682.40 | K88: =J88-J88*Оглавление!$K$21 -> 33,682.40 | M88: 0.00
B89: GKB0141049 | C89: Бак мембранный для водоснабжения Gekon WAV18 | E89: 18 | F89: 10.0 | G89: 1.5 | H89: 3/4" (НР) | I89: 2.8 | J89: ='Конвертация цен'!H427 -> 3156.00 | K89: =J89-J89*Оглавление!$K$21 -> 3,156.00 | M89: 0.00
B90: GKB2140354 | C90: Бак мембранный для водоснабжения Gekon WAV18 (25 бар) | E90: 18 | F90: 25.0 | G90: 4.0 | H90: 1" (НР) | I90: 12.5 | J90: ='Конвертация цен'!H428 -> 46086.95 | K90: =J90-J90*Оглавление!$K$21 -> 46,086.95 | M90: 0.00
B91: GKB0141069 | C91: Бак мембранный для водоснабжения Gekon WAV24 | E91: 24 | F91: 10.0 | G91: 1.5 | H91: 3/4" (НР) | I91: 4.3 | J91: ='Конвертация цен'!H429 -> 3289.00 | K91: =J91-J91*Оглавление!$K$21 -> 3,289.00 | M91: 0.00
B92: GKB2140256 | C92: Бак мембранный для водоснабжения Gekon WAV24 (16 бар) | E92: 24 | F92: 16.0 | G92: 4.0 | H92: 1" (НР) | I92: 8.3 | J92: ='Конвертация цен'!H430 -> 15935.76 | K92: =J92-J92*Оглавление!$K$21 -> 15,935.76 | M92: 0.00
B93: GKB2140356 | C93: Бак мембранный для водоснабжения Gekon WAV 24 (25 бар) | E93: 24 | F93: 25.0 | G93: 4.0 | H93: 1" (НР) | I93: 12.8 | J93: ='Конвертация цен'!H431 -> 46086.95 | K93: =J93-J93*Оглавление!$K$21 -> 46,086.95 | M93: 0.00
B94: GKB0141080 | C94: Бак мембранный для водоснабжения Gekon WAV35 | E94: 35 | F94: 10.0 | G94: 1.5 | H94: 3/4" (НР) | I94: 6 | J94: ='Конвертация цен'!H432 -> 5449.00 | K94: =J94-J94*Оглавление!$K$21 -> 5,449.00 | M94: 0.00
B95: GKB0141100 | C95: Бак мембранный для водоснабжения Gekon WAV50 | E95: 50 | F95: 10.0 | G95: 1.5 | H95: 1" (НР) | I95: 9.2 | J95: ='Конвертация цен'!H433 -> 9035.00 | K95: =J95-J95*Оглавление!$K$21 -> 9,035.00 | M95: 0.00
B96: GKB2140260 | C96: Бак мембранный для водоснабжения Gekon WAV50 (16 бар) | E96: 50 | F96: 16.0 | G96: 4.0 | H96: 1" (НР) | I96: 16.4 | J96: ='Конвертация цен'!H434 -> 32143.15 | K96: =J96-J96*Оглавление!$K$21 -> 32,143.15 | M96: 0.00
B97: GKB2140358 | C97: Бак мембранный для водоснабжения Gekon WAV 50 (25 бар) | E97: 50 | F97: 25.0 | G97: 4.0 | H97: 1" (НР) | I97: 34.1 | J97: ='Конвертация цен'!H435 -> 68179.71 | K97: =J97-J97*Оглавление!$K$21 -> 68,179.71 | M97: 0.00
B98: GKB2140262 | C98: Бак мембранный для водоснабжения Gekon WAV60 (16 бар) | E98: 60 | F98: 16.0 | G98: 4.0 | H98: 1" (НР) | I98: 18.1 | J98: ='Конвертация цен'!H436 -> 35674.37 | K98: =J98-J98*Оглавление!$K$21 -> 35,674.37 | M98: 0.00
B99: GKB2140359 | C99: Бак мембранный для водоснабжения Gekon WAV60 (25 бар) | E99: 60 | F99: 25.0 | G99: 4.0 | H99: 1" (НР) | I99: 42 | J99: ='Конвертация цен'!H437 -> 76871.94 | K99: =J99-J99*Оглавление!$K$21 -> 76,871.94 | M99: 0.00
B100: GKB0141120 | C100: Бак мембранный для водоснабжения Gekon WAV80 | E100: 80 | F100: 10.0 | G100: 1.5 | H100: 1" (НР) | I100: 11.6 | J100: ='Конвертация цен'!H438 -> 11962.00 | K100: =J100-J100*Оглавление!$K$21 -> 11,962.00 | M100: 0.00
B101: GKB2140264 | C101: Бак мембранный для водоснабжения Gekon WAV80 (16 бар) | E101: 80 | F101: 16.0 | G101: 4.0 | H101: 1" (НР) | I101: 25.86 | J101: ='Конвертация цен'!H439 -> 50070.89 | K101: =J101-J101*Оглавление!$K$21 -> 50,070.89 | M101: 0.00
B102: GKB2140360 | C102: Бак мембранный для водоснабжения Gekon WAV 80 (25 бар) | E102: 80 | F102: 25.0 | G102: 4.0 | H102: 1" (НР) | I102: 45 | J102: ='Конвертация цен'!H440 -> 122415.62 | K102: =J102-J102*Оглавление!$K$21 -> 122,415.62 | M102: 0.00
B103: GKB0141140 | C103: Бак мембранный для водоснабжения Gekon WAV100 | E103: 100 | F103: 10.0 | G103: 1.5 | H103: 1" (НР) | I103: 15.1 | J103: ='Конвертация цен'!H441 -> 16797.00 | K103: =J103-J103*Оглавление!$K$21 -> 16,797.00 | M103: 0.00
B104: GKB2140266 | C104: Бак мембранный для водоснабжения Gekon WAV100 (16 бар) | E104: 100 | F104: 16.0 | G104: 4.0 | H104: 1" (НР) | I104: 47.3 | J104: ='Конвертация цен'!H442 -> 53783.19 | K104: =J104-J104*Оглавление!$K$21 -> 53,783.19 | M104: 0.00
B105: GKB2140362 | C105: Бак мембранный для водоснабжения Gekon WAV100 (25 бар) | E105: 100 | F105: 25.0 | G105: 4.0 | H105: 1" (НР) | I105: 67.3 | J105: ='Конвертация цен'!H443 -> 124317.05 | K105: =J105-J105*Оглавление!$K$21 -> 124,317.05 | M105: 0.00
B106: GKB0141160 | C106: Бак мембранный для водоснабжения Gekon WAV150 | E106: 150 | F106: 10.0 | G106: 1.5 | H106: 1" (НР) | I106: 18.4 | J106: ='Конвертация цен'!H444 -> 20357.00 | K106: =J106-J106*Оглавление!$K$21 -> 20,357.00 | M106: 0.00
B107: GKB2140268 | C107: Бак мембранный для водоснабжения Gekon WAV150 (16 бар) | E107: 150 | F107: 16.0 | G107: 4.0 | H107: 1" (НР) | I107: 49 | J107: ='Конвертация цен'!H445 -> 61388.90 | K107: =J107-J107*Оглавление!$K$21 -> 61,388.90 | M107: 0.00
B108: GKB2140366 | C108: Бак мембранный для водоснабжения Gekon WAV150 (25 бар) | E108: 150 | F108: 25.0 | G108: 4.0 | H108: 1" (НР) | I108: 69 | J108: ='Конвертация цен'!H446 -> 199106.47 | K108: =J108-J108*Оглавление!$K$21 -> 199,106.47 | M108: 0.00
B109: GKB0141510 | C109: Бак мембранный для водоснабжения Gekon WAV200 | E109: 200 | F109: 10.0 | G109: 1.5 | H109: 1 1/4" (НР) | I109: 32.4 | J109: ='Конвертация цен'!H447 -> 39093.00 | K109: =J109-J109*Оглавление!$K$21 -> 39,093.00 | M109: 0.00
B110: GKB2140270 | C110: Бак мембранный для водоснабжения Gekon WAV200 (16 бар) | E110: 200 | F110: 16.0 | G110: 4.0 | H110: 1 1/4" (НР) | I110: 50.3 | J110: ='Конвертация цен'!H448 -> 114719.37 | K110: =J110-J110*Оглавление!$K$21 -> 114,719.37 | M110: 0.00
B111: GKB2140368 | C111: Бак мембранный для водоснабжения GekonWAV 200 (25 бар) | E111: 200 | F111: 25.0 | G111: 4.0 | H111: 1 1/4" (НР) | I111: 70.3 | J111: ='Конвертация цен'!H449 -> 259046.66 | K111: =J111-J111*Оглавление!$K$21 -> 259,046.66 | M111: 0.00
B112: GKB0141515 | C112: Бак мембранный для водоснабжения Gekon WAV300 | E112: 300 | F112: 10.0 | G112: 1.5 | H112: 1 1/4" (НР) | I112: 40.3 | J112: ='Конвертация цен'!H450 -> 42400.00 | K112: =J112-J112*Оглавление!$K$21 -> 42,400.00 | M112: 0.00
B113: GKB2140272 | C113: Бак мембранный для водоснабжения Gekon WAV300 (16 бар) | E113: 300 | F113: 16.0 | G113: 4.0 | H113: 1 1/4" (НР) | I113: 60.4 | J113: ='Конвертация цен'!H451 -> 135453.97 | K113: =J113-J113*Оглавление!$K$21 -> 135,453.97 | M113: 0.00
B114: GKB2140370 | C114: Бак мембранный для водоснабжения Gekon WAV 300 (25 бар) | E114: 300 | F114: 25.0 | G114: 4.0 | H114: 1 1/4" (НР) | I114: 80.4 | J114: ='Конвертация цен'!H452 -> 330214.33 | K114: =J114-J114*Оглавление!$K$21 -> 330,214.33 | M114: 0.00
B115: GKB0141520 | C115: Бак мембранный для водоснабжения Gekon WAV500 | E115: 500 | F115: 10.0 | G115: 1.5 | H115: 1 1/4" (НР) | I115: 55.5 | J115: ='Конвертация цен'!H453 -> 65924.00 | K115: =J115-J115*Оглавление!$K$21 -> 65,924.00 | M115: 0.00
B116: GKB2140274 | C116: Бак мембранный для водоснабжения Gekon WAV500 (16 бар) | E116: 500 | F116: 16.0 | G116: 4.0 | H116: 1 1/4" (НР) | I116: 91.2 | J116: ='Конвертация цен'!H454 -> 185162.68 | K116: =J116-J116*Оглавление!$K$21 -> 185,162.68 | M116: 0.00
B117: GKB2140372 | C117: Бак мембранный для водоснабжения Gekon WAV 500 (25 бар) | E117: 500 | F117: 25.0 | G117: 4.0 | H117: 1 1/4" (НР) | I117: 111.2 | J117: ='Конвертация цен'!H455 -> 448374.37 | K117: =J117-J117*Оглавление!$K$21 -> 448,374.37 | M117: 0.00
B118: GKB1140300 | C118: Бак мембранный для водоснабжения Gekon WAV750 | E118: 750 | F118: 10.0 | G118: 4.0 | H118: 1 1/4" (НР) | I118: 130 | J118: ='Конвертация цен'!H456 -> 170867.00 | K118: =J118-J118*Оглавление!$K$21 -> 170,867.00 | M118: 0.00
B119: GKB2140276 | C119: Бак мембранный для водоснабжения Gekon WAV750 (16 бар) | E119: 750 | F119: 16.0 | G119: 4.0 | H119: 2" (ВР) | I119: 211 | J119: ='Конвертация цен'!H457 -> 379923.03 | K119: =J119-J119*Оглавление!$K$21 -> 379,923.03 | M119: 0.00
B120: GKB2140374 | C120: Бак мембранный для водоснабжения Gekon WAV750 (25 бар) | E120: 750 | F120: 25.0 | G120: 4.0 | H120: 2" (ВР) | I120: 231 | J120: ='Конвертация цен'!H458 -> 640508.95 | K120: =J120-J120*Оглавление!$K$21 -> 640,508.95 | M120: 0.00
B121: GKB1140302 | C121: Бак мембранный для водоснабжения Gekon WAV1000 | E121: 1000 | F121: 10.0 | G121: 4.0 | H121: 2" (ВР) | I121: 165 | J121: ='Конвертация цен'!H459 -> 291510.64 | K121: =J121-J121*Оглавление!$K$21 -> 291,510.64 | M121: 0.00
B122: GKB2140278 | C122: Бак мембранный для водоснабжения GekonWAV1000 (16 бар) | E122: 1000 | F122: 16.0 | G122: 4.0 | H122: 2" (ВР) | I122: 245 | J122: ='Конвертация цен'!H460 -> 478072.84 | K122: =J122-J122*Оглавление!$K$21 -> 478,072.84 | M122: 0.00
B123: GKB2140376 | C123: Бак мембранный для водоснабжения Gekon WAV 1000 (25 бар) | E123: 1000 | F123: 25.0 | G123: 4.0 | H123: 2" (ВР) | I123: 265 | J123: ='Конвертация цен'!H461 -> 783749.71 | K123: =J123-J123*Оглавление!$K$21 -> 783,749.71 | M123: 0.00
B124: GKB2140120 | C124: Бак мембранный для водоснабжения Gekon WAV1500 | E124: 1500 | F124: 10.0 | G124: 4.0 | H124: 2" (ВР) | I124: 257 | J124: ='Конвертация цен'!H462 -> 676222.34 | K124: =J124-J124*Оглавление!$K$21 -> 676,222.34 | M124: 0.00
B125: GKB2140280 | C125: Бак мембранный для водоснабжения Gekon WAV1500 (16 бар) | E125: 1500 | F125: 16.0 | G125: 4.0 | H125: 2" (ВР) | I125: 390 | J125: ='Конвертация цен'!H463 -> 654000.02 | K125: =J125-J125*Оглавление!$K$21 -> 654,000.02 | M125: 0.00
B126: GKB2140378 | C126: Бак мембранный для водоснабжения Gekon WAV1500 (25 бар) | E126: 1500 | F126: 25.0 | G126: 4.0 | H126: 2" (ВР) | I126: 410 | J126: ='Конвертация цен'!H464 -> 1003771.87 | K126: =J126-J126*Оглавление!$K$21 -> 1,003,771.87 | M126: 0.00
B127: GKB2140122 | C127: Бак мембранный для водоснабжения Gekon WAV2000 | E127: 2000 | F127: 10.0 | G127: 4.0 | H127: 2" (ВР) | I127: 375 | J127: ='Конвертация цен'!H465 -> 855079.00 | K127: =J127-J127*Оглавление!$K$21 -> 855,079.00 | M127: 0.00
B128: GKB2140282 | C128: Бак мембранный для водоснабжения Gekon WAV2000 (16 бар) | E128: 2000 | F128: 16.0 | G128: 4.0 | H128: 2" (ВР) | I128: 535 | J128: ='Конвертация цен'!H466 -> 1020160.35 | K128: =J128-J128*Оглавление!$K$21 -> 1,020,160.35 | M128: 0.00
B129: GKB2140380 | C129: Бак мембранный для водоснабжения Gekon WAV 2000 (25 бар) | E129: 2000 | F129: 25.0 | G129: 4.0 | H129: 2" (ВР) | I129: 555 | J129: ='Конвертация цен'!H467 -> 1575376.76 | K129: =J129-J129*Оглавление!$K$21 -> 1,575,376.76 | M129: 0.00
B130: GKB2140124 | C130: Бак мембранный для водоснабжения Gekon WAV2500 | E130: 2500 | F130: 10.0 | G130: 4.0 | H130: 2" (ВР) | I130: 307 | J130: ='Конвертация цен'!H468 -> 1049994.17 | K130: =J130-J130*Оглавление!$K$21 -> 1,049,994.17 | M130: 0.00
B131: GKB2140382 | C131: Бак мембранный для водоснабжения Gekon WAV2500 (25 бар) | E131: 2500 | F131: 25.0 | G131: 4.0 | H131: 2" (ВР) | I131: 720 | J131: ='Конвертация цен'!H469 -> 1782994.38 | K131: =J131-J131*Оглавление!$K$21 -> 1,782,994.38 | M131: 0.00
B132: GKB2140126 | C132: Бак мембранный для водоснабжения Gekon WAV3000 | E132: 3000 | F132: 10.0 | G132: 4.0 | H132: 2 1/2" (ВР) | I132: 750 | J132: ='Конвертация цен'!H470 -> 1278464.64 | K132: =J132-J132*Оглавление!$K$21 -> 1,278,464.64 | M132: 0.00
B133: GKB2140286 | C133: Бак мембранный для водоснабжения Gekon WAV3000 (16 бар) | E133: 3000 | F133: 16.0 | G133: 4.0 | H133: 2 1/2" (ВР) | I133: 825 | J133: ='Конвертация цен'!H471 -> 1375093.21 | K133: =J133-J133*Оглавление!$K$21 -> 1,375,093.21 | M133: 0.00
B134: GKB2140384 | C134: Бак мембранный для водоснабжения Gekon WAV3000 (25 бар) | E134: 3000 | F134: 25.0 | G134: 4.0 | H134: 2 1/2" (ВР) | I134: 845 | J134: ='Конвертация цен'!H472 -> 2079435.75 | K134: =J134-J134*Оглавление!$K$21 -> 2,079,435.75 | M134: 0.00
B135: GKB2140128 | C135: Бак мембранный для водоснабжения Gekon WAV4000 | E135: 4000 | F135: 10.0 | G135: 4.0 | H135: 3" (ВР) | I135: 1003 | J135: ='Конвертация цен'!H473 -> 1692178.65 | K135: =J135-J135*Оглавление!$K$21 -> 1,692,178.65 | M135: =L135*K135 -> 0.00
B136: GKB2140288 | C136: Бак мембранный для водоснабжения Gekon WAV4000 (16 бар) | E136: 4000 | F136: 16.0 | G136: 4.0 | H136: 3" (ВР) | I136: 1003 | J136: ='Конвертация цен'!H474 -> 2164094.48 | K136: =J136-J136*Оглавление!$K$21 -> 2,164,094.48 | M136: 0.00
B137: GKB2140386 | C137: Бак мембранный для водоснабжения Gekon WAV4000 (25 бар) | E137: 4000 | F137: 25.0 | G137: 4.0 | H137: 3" (ВР) | I137: 1023 | J137: ='Конвертация цен'!H475 -> 2908276.42 | K137: =J137-J137*Оглавление!$K$21 -> 2,908,276.42 | M137: 0.00
B138: GKB2140130 | C138: Бак мембранный для водоснабжения Gekon WAV5000 | E138: 5000 | F138: 10.0 | G138: 4.0 | H138: 3" (ВР) | I138: 1139 | J138: ='Конвертация цен'!H476 -> 2299548.45 | K138: =J138-J138*Оглавление!$K$21 -> 2,299,548.45 | M138: 0.00
B139: GKB2140290 | C139: Бак мембранный для водоснабжения Gekon WAV5000 (16 бар) | E139: 5000 | F139: 16.0 | G139: 4.0 | H139: 3" (ВР) | I139: 1139 | J139: ='Конвертация цен'!H477 -> 2766665.46 | K139: =J139-J139*Оглавление!$K$21 -> 2,766,665.46 | M139: 0.00
B140: GKB2140388 | C140: Бак мембранный для водоснабжения Gekon WAV5000 (25 бар) | E140: 5000 | F140: 25.0 | G140: 4.0 | H140: 3" (ВР) | I140: 1159 | J140: ='Конвертация цен'!H478 -> 3647659.53 | K140: =J140-J140*Оглавление!$K$21 -> 3,647,659.53 | M140: 0.00
B141: GKB2140132 | C141: Бак мембранный для водоснабжения Gekon WAV8000 | E141: 8000 | F141: 10.0 | G141: 4.0 | H141: 3" (ВР) | I141: 1470 | J141: ='Конвертация цен'!H479 -> 4174716.72 | K141: =J141-J141*Оглавление!$K$21 -> 4,174,716.72 | M141: 0.00
B142: GKB2140292 | C142: Бак мембранный для водоснабжения Gekon WAV 8000 (16 бар) | E142: 8000 | F142: 16.0 | G142: 4.0 | H142: 3" (ВР) | I142: 1637 | J142: ='Конвертация цен'!H480 -> 6163608.38 | K142: =J142-J142*Оглавление!$K$21 -> 6,163,608.38 | M142: 0.00
B143: GKB2140390 | C143: Бак мембранный для водоснабжения Gekon WAV8000 (25 бар) | E143: 8000 | F143: 25.0 | G143: 4.0 | H143: 3" (ВР) | I143: 1657 | J143: ='Конвертация цен'!H481 -> 7244252.18 | K143: =J143-J143*Оглавление!$K$21 -> 7,244,252.18 | M143: 0.00
B144: GKB2140134 | C144: Бак мембранный для водоснабжения Gekon WAV10000 | E144: 10000 | F144: 10.0 | G144: 4.0 | H144: 4" (ВР) | I144: 1920 | J144: ='Конвертация цен'!H482 -> 4909119.90 | K144: =J144-J144*Оглавление!$K$21 -> 4,909,119.90 | M144: 0.00
B145: GKB2140294 | C145: Бак мембранный для водоснабжения Gekon WAV 10000 (16 бар) | E145: 10000 | F145: 16.0 | G145: 4.0 | H145: 4" (ВР) | I145: 2500 | J145: ='Конвертация цен'!H483 -> 7150629.59 | K145: =J145-J145*Оглавление!$K$21 -> 7,150,629.59 | M145: 0.00
B146: GKB2140392 | C146: Бак мембранный для водоснабжения Gekon WAV10000 (25 бар) | E146: 10000 | F146: 25.0 | G146: 4.0 | H146: 4" (ВР) | I146: 2520 | J146: ='Конвертация цен'!H484 -> 8693048.30 | K146: =J146-J146*Оглавление!$K$21 -> 8,693,048.30 | M146: 0.00
A148: ГОРИЗОНТАЛЬНЫЕ МЕМБРАННЫЕ РАСШИРИТЕЛЬНЫЕ БАКИ СЕРИИ WAO ДЛЯ СИСТЕМ ВОДОСНАБЖЕНИЯ
A149: • Диапазон рабочих температур теплоносителя: от -10⁰C до +80⁰C (кратковременно до +99⁰C)
A150: • Тип теплоносителя: вода или водные растворы гликоля с концентрацие до 50%
A151: • Материал корпуса и контрфланца: сталь углеродистая с эпоксиполиэфирным покрытием, цвет синий RAL 5015
A152: • Тип мембраны: заменяемая, материал мембраны: EPDM
A153: • Материал ниппеля: латунь
A154: • Тип исполнения: горизонтальный
A155: • Размер держателя мембраны 3/4"(НР)x1/2"(ВР)
A157: Фото | B157: Артикул | C157: Наименование товара | E157: Объём бака | F157: Pmax | G157: P преднастройки | H157: Присоединение к системе | I157: Вес | J157: Цена за шт. | K157: Цена со скидкой, RUB | L157: Кол-во, шт. | M157: Сумма со скидкой, RUB
E158: л | F158: бар | G158: бар | H158: G или DN | I158: кг | J158: RUB
B159: GKB0140949 | C159: Бак мембранный для водоснабжения горизонтальный Gekon WAO19 | E159: 19 | F159: 10.0 | G159: 1.5 | H159: 1" (НР) | I159: 5.2 | J159: ='Конвертация цен'!H485 -> 3106.00 | K159: =J159-J159*Оглавление!$K$21 -> 3,106.00 | M159: =L159*K159 -> 0.00
B160: GKB0140959 | C160: Бак мембранный для водоснабжения горизонтальный Gekon WAO24 | E160: 24 | F160: 10.0 | G160: 1.5 | H160: 1" (НР) | I160: 5.6 | J160: ='Конвертация цен'!H486 -> 3350.00 | K160: =J160-J160*Оглавление!$K$21 -> 3,350.00 | M160: =L160*K160 -> 0.00
B161: GKB2140400 | C161: Бак мембранный для водоснабжения горизонтальный Gekon WAO24 (16 бар) | E161: 24 | F161: 16.0 | G161: 4 | H161: 1" (НР) | I161: 8.3 | J161: ='Конвертация цен'!H487 -> 15935.76 | K161: =J161-J161*Оглавление!$K$21 -> 15,935.76 | M161: 0.00
B162: GKB2140500 | C162: Бак мембранный для водоснабжения горизонтальный Gekon WAO24 (25 бар) | E162: 24 | F162: 25.0 | G162: 4 | H162: 1" (НР) | I162: 27.3 | J162: ='Конвертация цен'!H488 -> 46086.95 | K162: =J162-J162*Оглавление!$K$21 -> 46,086.95 | M162: 0.00
B163: GKB0140970 | C163: Бак мембранный для водоснабжения горизонтальный Gekon WAO50 | E163: 50 | F163: 10.0 | G163: 1.5 | H163: 1" (НР) | I163: 9.4 | J163: ='Конвертация цен'!H489 -> 9704.00 | K163: =J163-J163*Оглавление!$K$21 -> 9,704.00 | M163: 0.00
B164: GKB2140402 | C164: Бак мембранный для водоснабжения горизонтальный Gekon WAO50 (16 бар) | E164: 50 | F164: 16.0 | G164: 4 | H164: 1" (НР) | I164: 15.1 | J164: ='Конвертация цен'!H490 -> 32143.15 | K164: =J164-J164*Оглавление!$K$21 -> 32,143.15 | M164: 0.00
B165: GKB2140502 | C165: Бак мембранный для водоснабжения горизонтальный Gekon WAO50 (25 бар) | E165: 50 | F165: 25.0 | G165: 4 | H165: 1" (НР) | I165: 34.1 | J165: ='Конвертация цен'!H491 -> 68179.71 | K165: =J165-J165*Оглавление!$K$21 -> 68,179.71 | M165: 0.00
B166: GKB0140990 | C166: Бак мембранный для водоснабжения горизонтальный Gekon WAO80 | E166: 80 | F166: 10.0 | G166: 1.5 | H166: 1" (НР) | I166: 13,7, | J166: ='Конвертация цен'!H492 -> 12189.00 | K166: =J166-J166*Оглавление!$K$21 -> 12,189.00 | M166: 0.00
B167: GKB2140404 | C167: Бак мембранный для водоснабжения горизонтальный Gekon WAO80 (16 бар) | E167: 80 | F167: 16.0 | G167: 4 | H167: 1" (НР) | I167: 25.9 | J167: ='Конвертация цен'!H493 -> 50070.89 | K167: =J167-J167*Оглавление!$K$21 -> 50,070.89 | M167: 0.00
B168: GKB2140504 | C168: Бак мембранный для водоснабжения горизонтальный Gekon WAO80 ( 25 бар) | E168: 80 | F168: 25.0 | G168: 4 | H168: 1" (НР) | I168: 45.0 | J168: ='Конвертация цен'!H494 -> 122415.62 | K168: =J168-J168*Оглавление!$K$21 -> 122,415.62 | M168: 0.00
B169: GKB0140995 | C169: Бак мембранный для водоснабжения горизонтальный Gekon WAO100 | E169: 100 | F169: 10.0 | G169: 1.5 | H169: 1" (НР) | I169: 16.3 | J169: ='Конвертация цен'!H495 -> 16560.00 | K169: =J169-J169*Оглавление!$K$21 -> 16,560.00 | M169: 0.00
B170: GKB2140406 | C170: Бак мембранный для водоснабжения горизонтальный Gekon WAO100 (16 бар) | E170: 100 | F170: 16.0 | G170: 4 | H170: 1" (НР) | I170: 47.3 | J170: ='Конвертация цен'!H496 -> 53783.19 | K170: =J170-J170*Оглавление!$K$21 -> 53,783.19 | M170: 0.00
B171: GKB2140506 | C171: Бак мембранный для водоснабжения горизонтальный Gekon WAO100 (25 бар) | E171: 100 | F171: 25.0 | G171: 4 | H171: 1" (НР) | I171: 51.0 | J171: ='Конвертация цен'!H497 -> 124317.05 | K171: =J171-J171*Оглавление!$K$21 -> 124,317.05 | M171: 0.00
B172: GKB0140997 | C172: Бак мембранный для водоснабжения горизонтальный Gekon WAO150 | E172: 150 | F172: 10.0 | G172: 1.5 | H172: 1" (НР) | I172: 21.5 | J172: ='Конвертация цен'!H498 -> 26412.00 | K172: =J172-J172*Оглавление!$K$21 -> 26,412.00 | M172: 0.00
A174: ВЕРТИКАЛЬНЫЕ МЕМБРАННЫЕ РАСШИРИТЕЛЬНЫЕ БАКИ СЕРИИ WAV ДЛЯ СИСТЕМ ВОДОСНАБЖЕНИЯ С КОНТРФЛАНЦЕМ ИЗ НЕРЖАВЕЮЩЕЙ СТАЛИ
A175: • Диапазон рабочих температур теплоносителя: от -10⁰C до +80⁰C (кратковременно до +99⁰C)
A176: • Тип теплоносителя: вода или водные растворы гликоля с концентрацие до 50%
A177: • Материал корпуса: сталь углеродистая с эпоксиполиэфирным покрытием, цвет синий RAL 5015; Материал контрфланца: нержавеющая сталь
A178: • Тип мембраны: заменяемая, материал мембраны: EPDM
A179: • Материал ниппеля: латунь
A180: • Тип исполнения: вертикальный
A181: • Размер держателя мембраны у баков 80- 4000 л 3/4"(НР)x1/2"(ВР)
A183: Фото | B183: Артикул | C183: Наименование товара | E183: Объём бака | F183: Pmax | G183: P преднастройки | H183: Присоединение к системе | I183: Вес | J183: Цена за шт. | K183: Цена со скидкой, RUB | L183: Кол-во, шт. | M183: Сумма со скидкой, RUB
E184: л | F184: бар | G184: бар | H184: G или DN | I184: кг | J184: RUB
B185: GKB1140232 | C185: Бак мембранный для водоснабжения Gekon WAV8 с контрфланцем из нерж.стали | E185: 8 | F185: 10 | G185: 1.5 | H185: 3/4" (НР) | I185: 1.61 | J185: ='Конвертация цен'!H499 -> 3151.00 | K185: =J185-J185*Оглавление!$K$21 -> 3,151.00 | M185: =L185*K185 -> 0.00
B186: GKB1140234 | C186: Бак мембранный для водоснабжения Gekon WAV12 с контрфланцем из нерж.стали | E186: 12 | F186: 10 | G186: 1.5 | H186: 3/4" (НР) | I186: 2.05 | J186: ='Конвертация цен'!H500 -> 3428.00 | K186: =J186-J186*Оглавление!$K$21 -> 3,428.00 | M186: =L186*K186 -> 0.00
B187: GKB1140236 | C187: Бак мембранный для водоснабжения Gekon WAV18 с контрфланцем из нерж.стали | E187: 18 | F187: 10 | G187: 1.5 | H187: 3/4" (НР) | I187: 2.8 | J187: ='Конвертация цен'!H501 -> 4128.00 | K187: =J187-J187*Оглавление!$K$21 -> 4,128.00 | M187: 0.00
B188: GKB1140238 | C188: Бак мембранный для водоснабжения Gekon WAV24 с контрфланцем из нерж.стали | E188: 24 | F188: 10 | G188: 1.5 | H188: 3/4" (НР) | I188: 4.25 | J188: ='Конвертация цен'!H502 -> 4357.00 | K188: =J188-J188*Оглавление!$K$21 -> 4,357.00 | M188: 0.00
B189: GKB1140240 | C189: Бак мембранный для водоснабжения Gekon WAV35 с контрфланцем из нерж.стали | E189: 35 | F189: 10 | G189: 1.5 | H189: 3/4" (НР) | I189: 5.95 | J189: ='Конвертация цен'!H503 -> 6915.00 | K189: =J189-J189*Оглавление!$K$21 -> 6,915.00 | M189: 0.00
B190: GKB1140242 | C190: Бак мембранный для водоснабжения Gekon WAV50 с контрфланцем из нерж.стали | E190: 50 | F190: 10 | G190: 1.5 | H190: 1" (НР) | I190: 9.2 | J190: ='Конвертация цен'!H504 -> 12030.00 | K190: =J190-J190*Оглавление!$K$21 -> 12,030.00 | M190: 0.00
B191: GKB1140244 | C191: Бак мембранный для водоснабжения Gekon WAV80 с контрфланцем из нерж.стали | E191: 80 | F191: 10 | G191: 1.5 | H191: 1" (НР) | I191: 11.6 | J191: ='Конвертация цен'!H505 -> 15926.00 | K191: =J191-J191*Оглавление!$K$21 -> 15,926.00 | M191: 0.00
B192: GKB1140246 | C192: Бак мембранный для водоснабжения Gekon WAV100 с контрфланцем из нерж.стали | E192: 100 | F192: 10 | G192: 1.5 | H192: 1" (НР) | I192: 15.1 | J192: ='Конвертация цен'!H506 -> 21324.00 | K192: =J192-J192*Оглавление!$K$21 -> 21,324.00 | M192: 0.00
B193: GKB1140248 | C193: Бак мембранный для водоснабжения Gekon WAV150 с контрфланцем из нерж.стали | E193: 150 | F193: 10 | G193: 1.5 | H193: 1" (НР) | I193: 18.4 | J193: ='Конвертация цен'!H507 -> 25840.00 | K193: =J193-J193*Оглавление!$K$21 -> 25,840.00 | M193: 0.00
A195: ГОРИЗОНТАЛЬНЫЕ МЕМБРАННЫЕ РАСШИРИТЕЛЬНЫЕ БАКИ СЕРИИ WAO ДЛЯ СИСТЕМ ВОДОСНАБЖЕНИЯ С КОНТРФЛАНЦЕМ ИЗ НЕРЖАВЕЮЩЕЙ СТАЛИ
A196: • Диапазон рабочих температур теплоносителя: от -10⁰C до +80⁰C (кратковременно до +99⁰C)
A197: • Тип теплоносителя: вода или водные растворы гликоля с концентрацие до 50%
A198: • Материал корпуса: сталь углеродистая с эпоксиполиэфирным покрытием, цвет синий RAL 5015; Материал контрфланца: нержавеющая сталь
A199: • Тип мембраны: заменяемая, материал мембраны: EPDM
A200: • Материал ниппеля: латунь
A201: • Тип исполнения: горизонтальный
A202: • Размер держателя мембраны у баков 80- 4000 л 3/4"(НР)x1/2"(ВР)
A204: Фото | B204: Артикул | C204: Наименование товара | E204: Объём бака | F204: Pmax | G204: P преднастройки | H204: Присоединение к системе | I204: Вес | J204: Цена за шт. | K204: Цена со скидкой, RUB | L204: Кол-во, шт. | M204: Сумма со скидкой, RUB
E205: л | F205: бар | G205: бар | H205: G или DN | I205: кг | J205: RUB
B206: GKB0140410 | C206: Бак мембранный для водоснабжения гор-й Gekon WAO24 | E206: 24 | F206: 10 | G206: 1.5 | H206: 1" (НР) | I206: 4.4 | J206: ='Конвертация цен'!H508 -> 4391.00 | K206: =J206-J206*Оглавление!$K$21 -> 4,391.00 | M206: =L206*K206 -> 0.00
B207: GKB0140420 | C207: Бак мембранный для водоснабжения гор-й Gekon WAO50 с контрфланцем из нерж.стали | E207: 50 | F207: 10 | G207: 1.5 | H207: 1" (НР) | I207: 9.4 | J207: ='Конвертация цен'!H509 -> 12282.00 | K207: =J207-J207*Оглавление!$K$21 -> 12,282.00 | M207: =L207*K207 -> 0.00
B208: GKB1140250 | C208: Бак мембранный для водоснабжения гор-й Gekon WAO80 с контрфланцем из нерж.стали | E208: 80 | F208: 10 | G208: 1.5 | H208: 1" (НР) | I208: 13.7 | J208: ='Конвертация цен'!H510 -> 15644.00 | K208: =J208-J208*Оглавление!$K$21 -> 15,644.00 | M208: 0.00
B209: GKB1140252 | C209: Бак мембранный для водоснабжения гор-й Gekon WAO100 с контрфланцем из нерж.стали | E209: 100 | F209: 10 | G209: 1.5 | H209: 1" (НР) | I209: 16.3 | J209: ='Конвертация цен'!H511 -> 21255.00 | K209: =J209-J209*Оглавление!$K$21 -> 21,255.00 | M209: 0.00
B210: GKB1140254 | C210: Бак мембранный для водоснабжения горй Gekon WAO150 с контрфланцем из нерж.стали | E210: 150 | F210: 10 | G210: 1.5 | H210: 1" (НР) | I210: 21.5 | J210: ='Конвертация цен'!H512 -> 32318.00 | K210: =J210-J210*Оглавление!$K$21 -> 32,318.00 | M210: 0.00
A212: ВЕРТИКАЛЬНЫЕ МЕМБРАННЫЕ РАСШИРИТЕЛЬНЫЕ БАКИ СЕРИИ WDV ДЛЯ ГВС И ГЕЛИОСИСТЕМ
A213: • Диапазон рабочих температур теплоносителя: от -10⁰C до +80⁰C (кратковременно до +99⁰C)
... 33 more rows

Sheet Дымоходы
A4: Дымоходы
A6: ДЫМОХОДЫ КОАКСИАЛЬНЫЕ ДЛЯ КЛАССИЧЕСКИХ КОТЛОВ
A7: • Универсальные комплекты Ø60/100 и Ø80/125 мм | I7: На главную страницу
A8: • Основные элементы изготовлены из АЛЮМИНИЯ, АЛЮМИНИЯ С ОЦИНКОВАННОЙ СТАЛИ или СТАЛИ
I9: Итого: | J9: =SUM(K12:K47)+SUM(K51:K57)+SUM(K66:K77)+SUM(K81:K82) -> 0.00
A10: Фото | B10: Артикул | C10: Наименование товара | E10: Диаметр | F10: Длина | G10: Вес | H10: Цена за шт. | I10: Цена со скидкой, RUB | J10: Кол-во, шт. | K10: Сумма со скидкой, RUB
E11: мм | F11: м | G11: кг | H11: RUB
B12: GKD K60100L1ALPA | C12: Универсальный комплект Gekon Ø60/100 мм L=1,0 м (хомут, фланец, проставка 60 мм), Алюминий, система Антилед | E12: 60/100 | F12: 1.0 | G12: 1.8 | H12: ='Конвертация цен'!H536 -> 3752.14 | I12: =H12-H12*Оглавление!$K$22 -> 3,752.14 | K12: =J12*I12 -> 0.00
B13: GKD K60100L1GSPA | C13: Универсальный комплект Gekon Ø60/100 мм L=1,0 м (хомут, фланец, проставка 60 мм), Алюминий и Оц.сталь, система Антилёд | E13: 60/100 | F13: 1.0 | G13: 1.7 | H13: ='Конвертация цен'!H537 -> 3497.92 | I13: =H13-H13*Оглавление!$K$22 -> 3,497.92 | K13: =J13*I13 -> 0.00
B14: GKD K60100L3ALPA | C14: Универсальный комплект Gekon Ø60/100 мм L=1,35 м (хомут, фланец, проставка 60 мм), Алюминий, система Антилед | E14: 60/100 | F14: 1.35 | G14: 2.4 | H14: ='Конвертация цен'!H538 -> 4179.91 | I14: =H14-H14*Оглавление!$K$22 -> 4,179.91 | K14: 0.00
B15: GKD K60100L3GSPA | C15: Универсальный комплект Gekon Ø60/100 мм, L=1,35 м (хомут, фланец, проставка 60 мм), Алюминий и Оц.сталь, система Антилёд | E15: 60/100 | F15: 1.35 | G15: 2.3 | H15: ='Конвертация цен'!H539 -> 3849.91 | I15: =H15-H15*Оглавление!$K$22 -> 3,849.91 | K15: 0.00
B16: GKD 60100L1000GS | C16: Труба выпускная с наконечником Gekon Ø60/100 мм, L=1190 мм, Алюминий и Оц.сталь, система Антилёд | E16: 60/100 | F16: 1.19 | G16: 1.9 | H16: ='Конвертация цен'!H540 -> 2309.95 | I16: =H16-H16*Оглавление!$K$22 -> 2,309.95 | K16: =J16*I16 -> 0.00
B17: GKD 80125L1000GS | C17: Труба выпускная с наконечником Gekon Ø80/125 мм, L=1000 мм, Алюминий и Оц.сталь, система Антилед | E17: 80/125 | F17: 1.0 | G17: 3.1 | H17: ='Конвертация цен'!H541 -> 3629.92 | I17: =H17-H17*Оглавление!$K$22 -> 3,629.92 | K17: 0.00
B18: GKD 60100L025AL | C18: Удлинение дымохода Gekon Ø60/100 мм, L=250 мм, Алюминий | E18: 60/100 | F18: 0.25 | G18: 0.4 | H18: ='Конвертация цен'!H542 -> 857.98 | I18: =H18-H18*Оглавление!$K$22 -> 857.98 | K18: 0.00
B19: GKD 60100L025 | C19: Удлинение дымохода Gekon Ø60/100 мм, L=250 мм, Алюминий и Оц.сталь | E19: 60/100 | F19: 0.25 | G19: 0.4 | H19: ='Конвертация цен'!H543 -> 716.21 | I19: =H19-H19*Оглавление!$K$22 -> 716.21 | K19: 0.00
B20: GKD 80L025AL | C20: Удлинение дымохода Gekon Ø80 мм, L=250 мм, Алюминий | E20: 80 | F20: 0.25 | G20: 0.2 | H20: ='Конвертация цен'!H544 -> 474.21 | I20: =H20-H20*Оглавление!$K$22 -> 474.21 | K20: =J20*I20 -> 0.00
B21: GKD 80125L025 | C21: Удлинение дымохода Gekon Ø80/125 мм, L=250 мм, Алюминий и Оц.сталь | E21: 80/125 | F21: 0.25 | G21: 0.7 | H21: ='Конвертация цен'!H545 -> 1737.96 | I21: =H21-H21*Оглавление!$K$22 -> 1,737.96 | K21: 0.00
B22: GKD 60100L050AL | C22: Удлинение дымохода Gekon Ø60/100 мм, L=500 мм, Алюминий | E22: 60/100 | F22: 0.5 | G22: 1.0 | H22: ='Конвертация цен'!H546 -> 1473.97 | I22: =H22-H22*Оглавление!$K$22 -> 1,473.97 | K22: 0.00
B23: GKD 60100L050 | C23: Удлинение дымохода Gekon Ø60/100 мм, L=500 мм, Алюминий и Оц.сталь | E23: 60/100 | F23: 0.5 | G23: 0.9 | H23: ='Конвертация цен'!H547 -> 1033.98 | I23: =H23-H23*Оглавление!$K$22 -> 1,033.98 | K23: 0.00
B24: GKD 80L050AL | C24: Удлинение дымохода Gekon Ø80 мм, L=500 мм, Алюминий | E24: 80 | F24: 0.5 | G24: 0.4 | H24: ='Конвертация цен'!H548 -> 725.98 | I24: =H24-H24*Оглавление!$K$22 -> 725.98 | K24: 0.00
B25: GKD 80125L050 | C25: Удлинение дымохода Gekon Ø80/125 мм, L=500 мм, Алюминий и Оц.сталь | E25: 80/125 | F25: 0.5 | G25: 1.6 | H25: ='Конвертация цен'!H549 -> 2397.95 | I25: =H25-H25*Оглавление!$K$22 -> 2,397.95 | K25: 0.00
B26: GKD 60100L100AL | C26: Удлинение дымохода Gekon Ø60/100 мм, L=1000 мм, Алюминий | E26: 60/100 | F26: 1.0 | G26: 1.7 | H26: ='Конвертация цен'!H550 -> 2463.95 | I26: =H26-H26*Оглавление!$K$22 -> 2,463.95 | K26: 0.00
B27: GKD 60100L100 | C27: Удлинение дымохода Gekon Ø60/100 мм, L=1000 мм, Алюминий и Оц.сталь | E27: 60/100 | F27: 1.0 | G27: 1.7 | H27: ='Конвертация цен'!H551 -> 1737.96 | I27: =H27-H27*Оглавление!$K$22 -> 1,737.96 | K27: 0.00
B28: GKD 80L100AL | C28: Удлинение дымохода Gekon Ø80 мм, L=1000 мм, Алюминий | E28: 80 | F28: 1.0 | G28: 0.7 | H28: ='Конвертация цен'!H552 -> 1275.97 | I28: =H28-H28*Оглавление!$K$22 -> 1,275.97 | K28: 0.00
B29: GKD 80125L100 | C29: Удлинение дымохода Gekon Ø80/125 мм, L=1000 мм, Алюминий и Оц.сталь | E29: 80/125 | F29: 1.0 | G29: 3.2 | H29: ='Конвертация цен'!H553 -> 3959.91 | I29: =H29-H29*Оглавление!$K$22 -> 3,959.91 | K29: 0.00
B30: GKD 60100L150AL | C30: Удлинение дымохода Gekon Ø60/100 мм, L=1500 мм, Алюминий | E30: 60/100 | F30: 1.5 | G30: 2.9 | H30: ='Конвертация цен'!H554 -> 3686.14 | I30: =H30-H30*Оглавление!$K$22 -> 3,686.14 | K30: 0.00
B31: GKD 80L150AL | C31: Удлинение дымохода Gekon Ø80 мм, L=1500 мм, Алюминий | E31: 80 | F31: 1.5 | G31: 1.1 | H31: ='Конвертация цен'!H555 -> 2045.95 | I31: =H31-H31*Оглавление!$K$22 -> 2,045.95 | K31: 0.00
B32: GKD 60100L200AL | C32: Удлинение дымохода Gekon Ø60/100 мм, L=2000 мм, Алюминий | E32: 60/100 | F32: 2.0 | G32: 3.9 | H32: ='Конвертация цен'!H556 -> 4773.89 | I32: =H32-H32*Оглавление!$K$22 -> 4,773.89 | K32: 0.00
B33: GKD 80L200AL | C33: Удлинение дымохода Gekon Ø80 мм, L=2000 мм, Алюминий | E33: 80 | F33: 2.0 | G33: 1.5 | H33: ='Конвертация цен'!H557 -> 2661.94 | I33: =H33-H33*Оглавление!$K$22 -> 2,661.94 | K33: 0.00
B34: GKD 60100VDAG | C34: Дымоход вертикальный Gekon Ø60/100 мм, L=1000 мм, черный, Алюминий и Оц.сталь | E34: 60/100 | F34: 1 | G34: 3.0 | H34: ='Конвертация цен'!H565 -> 6313.86 | I34: =H34-H34*Оглавление!$K$22 -> 6,313.86 | K34: 0.00
B35: GKD 80125VD | C35: Дымоход вертикальный Gekon Ø80/125 мм, L=1000 мм, черный, Алюминий и сталь | E35: 80/125 | F35: 1 | G35: 1.7 | H35: ='Конвертация цен'!H566 -> 10119.78 | I35: =H35-H35*Оглавление!$K$22 -> 10,119.78 | K35: 0.00
B36: GKD 60100VNPG | C36: Наконечник для вертикального дымохода Gekon Ø60/100 мм, черный, Полиамид и Оц.сталь | E36: 60/100 | F36: 0.43 | G36: 1.0 | H36: ='Конвертация цен'!H567 -> 3893.91 | I36: =H36-H36*Оглавление!$K$22 -> 3,893.91 | K36: 0.00
B37: GKD 80125VN | C37: Наконечник для вертикального дымохода Gekon Ø80/125 мм, черный, Алюминий и Сталь | E37: 80/125 | F37: 0.43 | G37: 1.3 | H37: ='Конвертация цен'!H568 -> 7325.84 | I37: =H37-H37*Оглавление!$K$22 -> 7,325.84 | K37: 0.00
B38: GKD 80VERTN | C38: Наконечник для вертикального дымохода Gekon Ø80 мм, черный, Оц.cталь | E38: 80 | F38: 0.43 | G38: 0.4 | H38: ='Конвертация цен'!H569 -> 923.98 | I38: =H38-H38*Оглавление!$K$22 -> 923.98 | K38: =J38*I38 -> 0.00
B39: GKD 60100M01AL | C39: Муфта Gekon Ø60/100 мм, L=100 мм, Алюминий | E39: 60/100 | F39: 0.1 | G39: 0.4 | H39: ='Конвертация цен'!H570 -> 1143.97 | I39: =H39-H39*Оглавление!$K$22 -> 1,143.97 | K39: =J39*I39 -> 0.00
B40: GKD 60100KOAL | C40: Конденсатоотводчик Gekon Ø60/100 мм, L=155 мм, Алюминий | E40: 60/100 | F40: 0.155 | G40: 0.3 | H40: ='Конвертация цен'!H571 -> 1957.96 | I40: =H40-H40*Оглавление!$K$22 -> 1,957.96 | K40: =J40*I40 -> 0.00
B41: GKD 80OTVAL | C41: Конденсатоотводчик Gekon Ø80 мм, L=120 мм, Алюминий | E41: 80 | F41: 0.12 | G41: 0.2 | H41: ='Конвертация цен'!H572 -> 1429.97 | I41: =H41-H41*Оглавление!$K$22 -> 1,429.97 | K41: =J41*I41 -> 0.00
B42: GKD 80125P01AL | C42: Переходник Gekon Ø60/100х80/125 мм, папа-мама, Алюминий | E42: 60/100*80/125 | F42: 0.3 | G42: 0.2 | H42: ='Конвертация цен'!H573 -> 2419.95 | I42: =H42-H42*Оглавление!$K$22 -> 2,419.95 | K42: =J42*I42 -> 0.00
B43: GKD 6080AL | C43: Переход Gekon Ø60-80 мм, L=100 мм, Алюминий | E43: 60*80 | F43: 0.1 | G43: 0.1 | H43: ='Конвертация цен'!H574 -> 835.98 | I43: =H43-H43*Оглавление!$K$22 -> 835.98 | K43: =J43*I43 -> 0.00
B44: GKD 80VZWAL | C44: Решётка воздухозабора Gekon Ø80 мм, белый окрас, Алюминий и Сталь | E44: 80 | F44: 0.03 | G44: 0.1 | H44: ='Конвертация цен'!H575 -> 461.99 | I44: =H44-H44*Оглавление!$K$22 -> 461.99 | K44: =J44*I44 -> 0.00
B45: GKD 80VOWN | C45: Решётка газоотвода Gekon Ø80 мм, белый окрас, Нержавеющая сталь | E45: 80 | F45: 0.07 | G45: 0.1 | H45: ='Конвертация цен'!H576 -> 857.98 | I45: =H45-H45*Оглавление!$K$22 -> 857.98 | K45: 0.00
B46: GKD 60100/80 | C46: Комплект дымохода, адаптер Gekon Ø60/100х80/80 мм (хомут, фланец, проставка 60 мм), Алюминий | E46: 60/100*80/80 | F46: 0.3 | G46: 0.8 | H46: ='Конвертация цен'!H577 -> 2925.93 | I46: =H46-H46*Оглавление!$K$22 -> 2,925.93 | K46: =J46*I46 -> 0.00
B47: GKD 60100ASTRAL | C47: Адаптер стартовый вертикальный Gekon Ø60/100 мм, L=150 мм, Алюминий | E47: 60/100 | F47: 0.15 | G47: 0.6 | H47: ='Конвертация цен'!H578 -> 1627.96 | I47: =H47-H47*Оглавление!$K$22 -> 1,627.96 | K47: =J47*I47 -> 0.00
A49: Фото | B49: Артикул | C49: Наименование товара | E49: Диаметр | F49: Угол | G49: Вес | H49: Цена за шт. | I49: Цена со скидкой, RUB | J49: Кол-во, шт. | K49: Сумма со скидкой, RUB
E50: мм | F50: ⁰ (градус) | G50: кг | H50: RUB
B51: GKD 60100K45AL | C51: Колено Gekon Ø60/100 мм, угол 45 гр., Алюминий | E51: 60/100 | F51: 45 | G51: 0.4 | H51: ='Конвертация цен'!H558 -> 1517.97 | I51: =H51-H51*Оглавление!$K$22 -> 1,517.97 | K51: 0.00
B52: GKD 80K45AL | C52: Колено Gekon Ø80 мм, угол 45 гр., Алюминий | E52: 80 | F52: 45 | G52: 0.2 | H52: ='Конвертация цен'!H559 -> 1077.98 | I52: =H52-H52*Оглавление!$K$22 -> 1,077.98 | K52: =J52*I52 -> 0.00
B53: GKD 80125K45AL | C53: Колено Gekon Ø80/125 мм, угол 45 гр., Алюминий | E53: 80/125 | F53: 45 | G53: 0.7 | H53: ='Конвертация цен'!H560 -> 4619.90 | I53: =H53-H53*Оглавление!$K$22 -> 4,619.90 | K53: 0.00
B54: GKD 60100K90AL | C54: Колено Gekon Ø60/100 мм, угол 90 гр., Алюминий | E54: 60/100 | F54: 90 | G54: 0.6 | H54: ='Конвертация цен'!H561 -> 1451.97 | I54: =H54-H54*Оглавление!$K$22 -> 1,451.97 | K54: 0.00
B55: GKD 80K90AL | C55: Колено Gekon Ø80 мм, угол 90 гр., Алюминий | E55: 80 | F55: 90 | G55: 0.3 | H55: ='Конвертация цен'!H562 -> 835.98 | I55: =H55-H55*Оглавление!$K$22 -> 835.98 | K55: 0.00
B56: GKD 80125K90AL | C56: Колено Gekon Ø80/125 мм, угол 90 гр., Алюминий | E56: 80/125 | F56: 90 | G56: 1.0 | H56: ='Конвертация цен'!H563 -> 4619.90 | I56: =H56-H56*Оглавление!$K$22 -> 4,619.90 | K56: 0.00
B57: GKD 60100KSTRAL | C57: Колено стартовое Gekon Ø60/100 мм, угол 90 гр., Алюминий | E57: 60/100 | F57: 90 | G57: 0.8 | H57: ='Конвертация цен'!H564 -> 1913.96 | I57: =H57-H57*Оглавление!$K$22 -> 1,913.96 | K57: 0.00
A59: ДЫМОХОДЫ КОАКСИАЛЬНЫЕ ДЛЯ КЛАССИЧЕСКИХ КОТЛОВ УТЕПЛЁННЫЕ
A60: • Универсальные комплекты Ø80 мм
A61: • Основные элементы изготовлены из АЛЮМИНИЯ, АЛЮМИНИЯ С ОЦИНКОВАННОЙ СТАЛИ или СТАЛИ
A62: • Утеплитель из минеральной ваты толщиной 10 мм
A64: Фото | B64: Артикул | C64: Наименование товара | E64: Диаметр | F64: Длина | G64: Вес | H64: Цена за шт. | I64: Цена со скидкой, RUB | J64: Кол-во, шт. | K64: Сумма со скидкой, RUB
E65: мм | F65: м | G65: кг | H65: RUB
B66: GKD 80100025TAL | C66: Удлинение дымохода утепленное Gekon Ø80 мм, δут=10 мм, L=250 мм, Алюминий | E66: 80 | F66: 0.25 | G66: 0.5 | H66: ='Конвертация цен'!H579 -> 1957.96 | I66: =H66-H66*Оглавление!$K$22 -> 1,957.96 | K66: =J66*I66 -> 0.00
B67: GKD 80100025T | C67: Удлинение дымохода утепленное Gekon Ø80 мм, δут=10 мм, L=250 мм, Алюминий и Оц.сталь | E67: 80 | F67: 0.25 | G67: 0.4 | H67: ='Конвертация цен'!H580 -> 1671.96 | I67: =H67-H67*Оглавление!$K$22 -> 1,671.96 | K67: =J67*I67 -> 0.00
B68: GKD 80100050TAL | C68: Удлинение дымохода утепленное Gekon Ø80 мм, δут=10 мм, L=500 мм, Алюминий | E68: 80 | F68: 0.5 | G68: 1.1 | H68: ='Конвертация цен'!H581 -> 2485.94 | I68: =H68-H68*Оглавление!$K$22 -> 2,485.94 | K68: =J68*I68 -> 0.00
B69: GKD 80100050T | C69: Удлинение дымохода утепленное Gekon Ø80 мм, δут=10 мм, L=500 мм, Алюминий и Оц.сталь | E69: 80 | F69: 0.5 | G69: 1.0 | H69: ='Конвертация цен'!H582 -> 2375.95 | I69: =H69-H69*Оглавление!$K$22 -> 2,375.95 | K69: 0.00
B70: GKD 80100100TAL | C70: Удлинение дымохода утепленное Gekon Ø80 мм, δут=10 мм, L=1000 мм, Алюминий | E70: 80 | F70: 1 | G70: 2.2 | H70: ='Конвертация цен'!H583 -> 4135.91 | I70: =H70-H70*Оглавление!$K$22 -> 4,135.91 | K70: =J70*I70 -> 0.00
B71: GKD 80100100T | C71: Удлинение дымохода утепленное Gekon Ø80 мм, δут=10 мм, L=1000 мм, Ал/Оц.Ст. | E71: 80 | F71: 1 | G71: 2.0 | H71: ='Конвертация цен'!H584 -> 3959.91 | I71: =H71-H71*Оглавление!$K$22 -> 3,959.91 | K71: 0.00
B72: GKD 80100150TAL | C72: Удлинение дымохода утепленное Gekon Ø80 мм, δут=10 мм, L=1500 мм, Алюминий | E72: 80 | F72: 2 | G72: 3.3 | H72: ='Конвертация цен'!H585 -> 5939.87 | I72: =H72-H72*Оглавление!$K$22 -> 5,939.87 | K72: 0.00
B73: GKD 80100200TAL | C73: Удлинение дымохода утепленное Gekon Ø80 мм, δут=10 мм, L=2000 мм, Алюминий | E73: 80 | F73: 2 | G73: 4.4 | H73: ='Конвертация цен'!H586 -> 7149.84 | I73: =H73-H73*Оглавление!$K$22 -> 7,149.84 | K73: 0.00
B74: GKD 80100VDAL | C74: Дымоход вертикальный утеплённый Gekon Ø80 мм, δут=10 мм, L=1000 мм, черный, Алюминий | E74: 80 | F74: 1 | G74: 2.2 | H74: ='Конвертация цен'!H587 -> 10119.78 | I74: =H74-H74*Оглавление!$K$22 -> 10,119.78 | K74: 0.00
B75: GKD 80100VNAS | C75: Наконечник для вертикального утеплённого дымохода Gekon Ø80 мм, δут=10 мм, черный, Алюминий и Сталь | E75: 80 | F75: 1 | G75: 0.5 | H75: ='Конвертация цен'!H588 -> 2111.95 | I75: =H75-H75*Оглавление!$K$22 -> 2,111.95 | K75: 0.00
B76: GKD 80VZBAL | C76: Решётка воздухозабора для утеплённого дымохода Gekon Ø80 мм, δут=10 мм, черный, Алюминий | E76: 80 | F76: 0.03 | G76: 0.2 | H76: ='Конвертация цен'!H589 -> 1385.97 | I76: =H76-H76*Оглавление!$K$22 -> 1,385.97 | K76: =J76*I76 -> 0.00
B77: GKD 80VOBN | C77: Решётка газоотвода для утепл-го дымохода Gekon Ø80 мм, δут=10 мм, черный окрас, Алюминий и Сталь | E77: 80 | F77: 0.07 | G77: 0.3 | H77: ='Конвертация цен'!H590 -> 1957.96 | I77: =H77-H77*Оглавление!$K$22 -> 1,957.96 | K77: 0.00
A79: Фото | B79: Артикул | C79: Наименование товара | E79: Диаметр | F79: Угол | G79: Вес | H79: Цена за шт. | I79: Цена со скидкой, RUB | J79: Кол-во, шт. | K79: Сумма со скидкой, RUB
E80: мм | F80: ⁰ (градус) | G80: кг | H80: RUB
B81: GKD 80100K45T | C81: Колено утепленное Gekon Ø80, δут=10 мм, угол 45 гр., Алюминий | E81: 80 | F81: 45 | G81: 0.7 | H81: ='Конвертация цен'!H591 -> 3959.91 | I81: =H81-H81*Оглавление!$K$22 -> 3,959.91 | K81: =I81*J81 -> 0.00
B82: GKD 80100K90T | C82: Колено утепленное Gekon Ø80, δут=10 мм, угол 90 гр., Алюминий | E82: 80 | F82: 90 | G82: 0.7 | H82: ='Конвертация цен'!H592 -> 3959.91 | I82: =H82-H82*Оглавление!$K$22 -> 3,959.91 | K82: =I82*J82 -> 0.00
A84: ДЫМОХОДЫ КОАКСИАЛЬНЫЕ ДЛЯ КОНДЕНСАЦИОННЫХ КОТЛОВ
A85: • Универсальные комплекты Ø60/100 и Ø80/125 мм
A86: • Основные элементы изготовлены из PP-R(ПОЛИПРОПИЛЕНА), АЛЮМИНИЯ, АЛЮМИНИЯ и ОЦИНКОВАННОЙ СТАЛИ или СТАЛИ
A88: Фото | B88: Артикул | C88: Наименование товара | E88: Диаметр | F88: Длина | G88: Вес | H88: Цена за шт. | I88: Цена со скидкой, RUB | J88: Кол-во, шт. | K88: Сумма со скидкой, RUB
E89: мм | F89: м | G89: кг | H89: RUB
B90: GKD 015100PAL | C90: Универсальный комплект конденсационный Gekon Ø60/100 мм, L=1000 мм, PP-R и Алюминий, система Антилёд | E90: 60/100 | F90: 1 | G90: 1.9 | H90: ='Конвертация цен'!H593 -> 6027.87 | I90: =H90-H90*Оглавление!$K$22 -> 6,027.87 | K90: =I90*J90 -> 0.00
B91: GKD 016100PAL | C91: Универсальный комплект конденсационный Gekon Ø80/125 мм, L=1240 мм, PP-R и Сталь, система Антилёд | E91: 80/125 | F91: 1.24 | G91: 2.8 | H91: ='Конвертация цен'!H594 -> 9371.79 | I91: =H91-H91*Оглавление!$K$22 -> 9,371.79 | K91: =I91*J91 -> 0.00
B92: GKD 80125025PAL | C92: Удлинитель конденсационный Gekon Ø80/125 мм, L=250 мм, PP-R и Оц.сталь | E92: 80/125 | F92: 0.25 | G92: 0.7 | H92: ='Конвертация цен'!H595 -> 2199.95 | I92: =H92-H92*Оглавление!$K$22 -> 2,199.95 | K92: =I92*J92 -> 0.00
B93: GKD 6010005PAL | C93: Удлинитель конденсационный Gekon Ø60/100 мм, L=500 мм, PP-R и Оц.сталь | E93: 60/100 | F93: 0.5 | G93: 1.0 | H93: ='Конвертация цен'!H596 -> 3233.93 | I93: =H93-H93*Оглавление!$K$22 -> 3,233.93 | K93: 0.00
B94: GKD 8012505PAL | C94: Удлинитель конденсационный Gekon Ø80/125 мм, L=500 мм, PP-R и Оц.сталь | E94: 80/125 | F94: 0.5 | G94: 1.6 | H94: ='Конвертация цен'!H597 -> 3629.92 | I94: =H94-H94*Оглавление!$K$22 -> 3,629.92 | K94: 0.00
B95: GKD 80005PAL | C95: Удлинитель конденсационный Gekon Ø80 мм, L=500 мм, PP-R | E95: 80 | F95: 0.5 | G95: 0.4 | H95: ='Конвертация цен'!H598 -> 1693.96 | I95: =H95-H95*Оглавление!$K$22 -> 1,693.96 | K95: =I95*J95 -> 0.00
B96: GKD 601001PAL | C96: Удлинитель конденсационный Gekon Ø60/100 мм, L=1000 мм, PP-R и Оц.сталь. | E96: 60/100 | F96: 1 | G96: 1.7 | H96: ='Конвертация цен'!H599 -> 5103.89 | I96: =H96-H96*Оглавление!$K$22 -> 5,103.89 | K96: 0.00
B97: GKD 801251PAL | C97: Удлинитель конденсационный Gekon Ø80/125 мм, L=1000 мм, PP-R и Оц.сталь | E97: 80/125 | F97: 1 | G97: 3.2 | H97: ='Конвертация цен'!H600 -> 5235.88 | I97: =H97-H97*Оглавление!$K$22 -> 5,235.88 | K97: 0.00
B98: GKD 8001PAL | C98: Удлинитель конденсационный Gekon Ø80 мм, L=1000 мм, PP-R | E98: 80 | F98: 1 | G98: 0.6 | H98: ='Конвертация цен'!H601 -> 2397.95 | I98: =H98-H98*Оглавление!$K$22 -> 2,397.95 | K98: =I98*J98 -> 0.00
B99: GKD 806104PAL | C99: Комплект дымохода, адаптер конденсационный Gekon 60-100х2/80 мм, PP-R/Алюминий | E99: 60/100*80/80 | F99: 0.3 | G99: 0.6 | H99: ='Конвертация цен'!H602 -> 5719.87 | I99: =H99-H99*Оглавление!$K$22 -> 5,719.87 | K99: =I99*J99 -> 0.00
B100: GKD 6080PAL | C100: Адаптер переход конденсационный Gekon 60-80 мм, PP-R | E100: 60-80 | F100: 0.1 | G100: 0.2 | H100: ='Конвертация цен'!H603 -> 1715.96 | I100: =H100-H100*Оглавление!$K$22 -> 1,715.96 | K100: 0.00
A102: Фото | B102: Артикул | C102: Наименование товара | E102: Диаметр | F102: Угол | G102: Вес | H102: Цена за шт. | I102: Цена со скидкой, RUB | J102: Кол-во, шт. | K102: Сумма со скидкой, RUB
E103: мм | F103: ⁰ (градус) | G103: кг | H103: RUB
B104: GKD 60100045PAL | C104: Колено конденсационное Gekon 60/100 мм, угол 45 гр., PP-R/Сталь | E104: 60/100 | F104: 45 | G104: 0.5 | H104: ='Конвертация цен'!H604 -> 2529.94 | I104: =H104-H104*Оглавление!$K$22 -> 2,529.94 | K104: =I104*J104 -> 0.00
B105: GKD 80125045PAL | C105: Колено конденсационное Gekon 80/125 мм, угол 45 гр., PP-R/Сталь | E105: 80/125 | F105: 45 | G105: 0.6 | H105: ='Конвертация цен'!H605 -> 4795.89 | I105: =H105-H105*Оглавление!$K$22 -> 4,795.89 | K105: =I105*J105 -> 0.00
B106: GKD 80045PAL | C106: Колено конденсационное Gekon 80 мм, угол 45 гр., PP-R | E106: 80 | F106: 45 | G106: 0.2 | H106: ='Конвертация цен'!H606 -> 1605.96 | I106: =H106-H106*Оглавление!$K$22 -> 1,605.96 | K106: 0.00
B107: GKD 60100090PAL | C107: Колено конденсационное Gekon 60/100 мм, угол 90 гр., PP-R/Сталь | E107: 60/100 | F107: 90 | G107: 0.6 | H107: ='Конвертация цен'!H607 -> 2529.94 | I107: =H107-H107*Оглавление!$K$22 -> 2,529.94 | K107: 0.00
B108: GKD 10080090PAL | C108: Колено конденсационное Gekon 80/125 мм, угол 90 гр., PP-R/Сталь | E108: 80/125 | F108: 90 | G108: 0.8 | H108: ='Конвертация цен'!H608 -> 4795.89 | I108: =H108-H108*Оглавление!$K$22 -> 4,795.89 | K108: 0.00
B109: GKD 80090PAL | C109: Колено конденсационное Gekon 80 мм, угол 90 гр., PP-R | E109: 80 | F109: 90 | G109: 0.2 | H109: ='Конвертация цен'!H609 -> 1605.96 | I109: =H109-H109*Оглавление!$K$22 -> 1,605.96 | K109: 0.00
A111: ЗАПАСНЫЕ ЧАСТИ ДЛЯ ДЫМОХОДОВ
A113: Фото | B113: Артикул | C113: Наименование товара | E113: Диаметр | G113: Вес | H113: Цена за шт. | I113: Цена со скидкой, RUB | J113: Кол-во, шт. | K113: Сумма со скидкой, RUB
E114: мм | G114: кг | H114: RUB
B115: GKD 60100AINPB | C115: Наконечник 60/100 мм, Система Антилед, Система Антиворобей, черный | E115: 60/100 | G115: 0.2 | H115: ='Конвертация цен'!H610 -> 725.98 | I115: =H115-H115*Оглавление!$K$22 -> 725.98 | K115: =J115*I115 -> 0.00
B116: GKD 60OR | C116: Уплотнительное кольцо на внутреннюю трубу Gekon 60 мм | E116: 60 | G116: 0.1 | H116: ='Конвертация цен'!H611 -> 220.00 | I116: =H116-H116*Оглавление!$K$22 -> 220.00 | K116: =J116*I116 -> 0.00
B117: GKD 80OR | C117: Уплотнительное кольцо на внутреннюю трубу Gekon 80 мм | E117: 80 | G117: 0.1 | H117: ='Конвертация цен'!H612 -> 263.99 | I117: =H117-H117*Оглавление!$K$22 -> 263.99 | K117: 0.00
B118: GKD 100OR | C118: Уплотнительное кольцо на внешнюю трубу Gekon 100 мм | E118: 100 | G118: 0.1 | H118: ='Конвертация цен'!H613 -> 285.99 | I118: =H118-H118*Оглавление!$K$22 -> 285.99 | K118: 0.00
B119: GKD 125OR | C119: Уплотнительное кольцо на внешнюю трубу Gekon 125 мм | E119: 125 | G119: 0.1 | H119: ='Конвертация цен'!H614 -> 439.99 | I119: =H119-H119*Оглавление!$K$22 -> 439.99 | K119: 0.00
B120: GKD 80H | C120: Хомут Gekon 80 мм со шпилькой | E120: 80 | G120: 0.1 | H120: ='Конвертация цен'!H615 -> 373.99 | I120: =H120-H120*Оглавление!$K$22 -> 373.99 | K120: 0.00
B121: GKD 100H | C121: Хомут Gekon 100 мм со шпилькой | E121: 100 | G121: 0.1 | H121: ='Конвертация цен'!H616 -> 395.99 | I121: =H121-H121*Оглавление!$K$22 -> 395.99 | K121: 0.00
B122: GKD 80MS | C122: Накладка декоративная Gekon 80 мм | E122: 80 | G122: 0.1 | H122: ='Конвертация цен'!H617 -> 254.22 | I122: =H122-H122*Оглавление!$K$22 -> 254.22 | K122: 0.00
B123: GKD 60100M | C123: Накладка декоративная Gekon 100 мм | E123: 100 | G123: 0.1 | H123: ='Конвертация цен'!H618 -> 220.00 | I123: =H123-H123*Оглавление!$K$22 -> 220.00 | K123: 0.00
B124: GKD 60125M | C124: Накладка декоративная Gekon 125 мм | E124: 125 | G124: 0.1 | H124: ='Конвертация цен'!H619 -> 285.99 | I124: =H124-H124*Оглавление!$K$22 -> 285.99 | K124: 0.00
B125: GKD 110UF | C125: Фланец Gekon с прокладкой, винтами и гайкой, 100 мм | E125: 100 | G125: 0.1 | H125: ='Конвертация цен'!H620 -> 263.99 | I125: =H125-H125*Оглавление!$K$22 -> 263.99 | K125: 0.00
B126: GKD 60100H | C126: Хомут обжимной Gekon (труба-труба) 100 мм | E126: 100 | G126: 0.1 | H126: ='Конвертация цен'!H621 -> 263.99 | I126: =H126-H126*Оглавление!$K$22 -> 263.99 | K126: 0.00

Sheet Теплоноситель
A4: Теплохладоноситель
A6: ТЕПЛОНОСИТЕЛЬ GEKON ECOSAVE - 30
A7: • Теплохладоноситель GEKON ECOSAVE -30 изготовлен на основе ПРОПИЛЕНГЛИКОЛЯ
A8: • В составе присутствует сбалансированный пакет присадок: антикоррозионные, антипенные,
A9: антиокислительные и повышающие инертность к уплотнительным материалам
A10: • Не содержит нитритов, аминов и фосфатов | I10: На главную страницу
A11: • Температурный диапазон применения: от -30⁰C до +106⁰C
A12: • Срок эксплуатации не менее 5 лет
A13: • Соответствует ГОСТ 28084-89 по коррозионному воздействию на металлы
A14: • Страна производства: Россия
I15: Итого: | J15: =SUM(K18:K23) -> 0.00
A16: Фото | B16: Артикул | C16: Наименование товара | D16: Объём | E16: Содержание основного вещества | F16: Диапазон рабочих температур | H16: Цена за шт | I16: Цена за шт со скидкой | J16: Кол-во, шт | K16: Сумма со скидкой, RUB
D17: л | E17: % | F17: ⁰C | H17: RUB | I17: RUB
B18: GK 569214 | C18: Теплоноситель GEKON ECOSAVE - 30°С, 10 кг. | D18: 10 | E18: 45 | F18: от -30 до +106 | H18: ='Конвертация цен'!H288 -> 2483.00 | I18: =H18-H18*Оглавление!$K$23 -> 2,483.00 | K18: =J18*I18 -> 0.00
B21: GK 873256 | C21: Теплоноситель GEKON ECOSAVE - 30°С, 20 кг. | D21: 20 | E21: 45 | F21: от -30 до +106 | H21: ='Конвертация цен'!H289 -> 4967.00 | I21: =H21-H21*Оглавление!$K$23 -> 4,967.00 | K21: =J21*I21 -> 0.00

Sheet Конвертация цен (hidden)
A1: EUR | B1: RUB | I1: EUR | J1: Евро | K1: =TODAY() -> 2025-03-28 | L1: =GetRate(I1,K1) -> 90.5441
A2: 1 | B2: 100
A3: Шаровые краны, ОК, Сетч.фильтры
C4: Артикул | D4: Наименование товара | F4: Размер | G4: Цена за шт. | H4: Цена за шт.
G5: EUR | H5: RUB
C6: GK 550 12 | D6: Кран шаровой (ручка - рычаг), внутренняя-внутренняя резьба | F6: 1/2" | G6: 5.09 | H6: =G6*$B$2 -> 509.00
C7: GK 550 34 | F7: 3/4" | G7: 7.69 | H7: 769.00
C8: GK 550 1 | F8: 1" | G8: 12.09 | H8: 1209.00
C9: GK 550 114 | F9: 1 1/4" | G9: 17.79 | H9: 1779.00
C10: GK 550 112 | F10: 1 1/2" | G10: 28.12 | H10: 2812.00
C11: GK 550 2 | F11: 2" | G11: 43.39 | H11: 4339.00
C12: GK 551 12 | D12: Кран шаровой (ручка - бабочка), внутренняя-внутренняя резьба | F12: 1/2" | G12: 5.09 | H12: 509.00
C13: GK 551 34 | F13: 3/4" | G13: 7.69 | H13: 769.00
C14: GK 551 1 | F14: 1" | G14: 12.09 | H14: 1209.00
C15: GK 551 114 | F15: 1 1/4" | G15: 17.79 | H15: 1779.00
C16: GK 554L 12 | D16: Кран шаровой (ручка - рычаг), внутренняя-наружная резьба | F16: 1/2" | G16: 5.49 | H16: 549.00
C17: GK 554L 34 | F17: 3/4" | G17: 8.17 | H17: 817.00
C18: GK 554L 1 | F18: 1" | G18: 13.07 | H18: 1307.00
C19: GK 554L 114 | F19: 1 1/4" | G19: 20.20 | H19: 2020.00
C20: GK 554L 112 | F20: 1 1/2" | G20: 32.86 | H20: 3286.00
C21: GK 554L 2 | F21: 2" | G21: 52.59 | H21: 5259.00
C22: GK 554 12 | D22: Кран шаровой (ручка - бабочка), внутренняя-наружная резьба | F22: 1/2" | G22: 5.65 | H22: 565.00
C23: GK 554 34 | F23: 3/4" | G23: 8.40 | H23: 840.00
C24: GK 554 1 | F24: 1" | G24: 13.07 | H24: 1307.00
C25: GK 554 114 | F25: 1 1/4" | G25: 21.86 | H25: 2186.00
C26: GK 559 12 | D26: Кран шаровой (ручка-бабочка), внутренняя-американка | F26: 1/2" | G26: 7.18 | H26: 718.00
C27: GK 559 34 | F27: 3/4" | G27: 11.04 | H27: 1104.00
C28: GK 559 1 | F28: 1" | G28: 17.40 | H28: 1740.00
C29: GK 559 114 | F29: 1" 1/4 | G29: 26.24 | H29: 2624.00
C30: GK 30 12 | D30: Клапан обратный с латунным золотником, внутренняя-внутренняя резьба | F30: 1/2" | G30: 5.19 | H30: =G30*$B$2 -> 519.00
C31: GK 30 34 | F31: 3/4" | G31: 6.96 | H31: 696.00
C32: GK 30 1 | F32: 1" | G32: 9.76 | H32: 976.00
C33: GK 30 114 | F33: 1 1/4" | G33: 14.53 | H33: 1453.00
C34: GK 30 112 | F34: 1 1/2" | G34: 18.98 | H34: 1898.00
C35: GK 30 2 | F35: 2" | G35: 28.68 | H35: 2868.00
C36: GK 44N 12 | D36: Фильтр тонкой механической очистки косой, сетка 500 мкм, внутренняя-внутренняя резьба | F36: 1/2" | G36: 5.75 | H36: =G36*$B$2 -> 575.00
C37: GK 44N 34 | F37: 3/4" | G37: 8.99 | H37: 899.00
C38: GK 44N 1 | F38: 1" | G38: 11.16 | H38: 1116.00
C39: GK 44N 114 | F39: 1 1/4" | G39: 21.59 | H39: 2159.00
C40: GK 44N 112 | F40: 1 1/2" | G40: 32.40 | H40: 3240.00
C41: GK 44N 2 | F41: 2" | G41: 53.74 | H41: 5374.00
A42: Трубы
C43: Артикул | D43: Наименование товара | F43: Диаметр | G43: Цена за метр | H43: Цена за метр
F44: мм | G44: руб. | H44: руб.
C45: GK 71640006 | D45: Труба Gekon TRITHERM универсальная PE-Xa/EVOH 16х2,0, бухта 400 м | F45: 16 | G45: 109.50 | H45: =G45*1 -> 109.50
C46: GK 71630006 | D46: Труба Gekon TRITHERM универсальная PE-Xa/EVOH 16х2,0, бухта 300 м | F46: 16 | G46: 109.50 | H46: =G46*1 -> 109.50
C47: GK 71620006 | D47: Труба Gekon TRITHERM универсальная PE-Xa/EVOH 16х2,0, бухта 200 м | F47: 16 | G47: 109.50 | H47: 109.50
C48: GK 71620010 | D48: Труба Gekon TRITHERM универсальная PE-Xa/EVOH 16х2,2, бухта 200 м | F48: 16 | G48: 116.00 | H48: 116.00
C49: GK 71610010 | D49: Труба Gekon TRITHERM универсальная PE-Xa/EVOH 16х2,2, бухта 100 м | F49: 16 | G49: 116.00 | H49: 116.00
C50: GK 72020006 | D50: Труба Gekon TRITHERM универсальная PE-Xa/EVOH 20х2,0, бухта 200 м | F50: 20 | G50: 161.55 | H50: 161.55
C51: GK 72010010 | D51: Труба Gekon TRITHERM универсальная PE-Xa/EVOH 20х2,8, бухта 100 м | F51: 20 | G51: 175.70 | H51: 175.70
C52: GK 72505010 | D52: Труба Gekon TRITHERM универсальная PE-Xa/EVOH 25х3,5, бухта 50 м | F52: 25 | G52: 301.00 | H52: 301.00
C53: GK 73205010 | D53: Труба Gekon TRITHERM универсальная PE-Xa/EVOH 32х4,4, бухта 50 м | F53: 32 | G53: 488.00 | H53: 488.00
C54: GK 716050R | D54: Труба гофрированная ПНД для 16-й полимерной трубы, красная, бухта 50 метров | F54: 21 | G54: 27.50 | H54: 27.50
C55: GK 720050R | D55: Труба гофрированная ПНД для 20-й полимерной трубы, красная, бухта 50 метров | F55: 25 | G55: 35.50 | H55: 35.50
C56: GK 725030R | D56: Труба гофрированная ПНД для 25-й полимерной трубы, красная, бухта 30 метров | F56: 32 | G56: 46.30 | H56: 46.30
C57: GK 732030R | D57: Труба гофрированная ПНД для 32-й полимерной трубы, красная, бухта 30 метров | F57: 40 | G57: 60.40 | H57: 60.40
C58: GK 716050B | D58: Труба гофрированная ПНД для 16-й полимерной трубы, синяя, бухта 50 метров | F58: 21 | G58: 27.50 | H58: 27.50
C59: GK 720050B | D59: Труба гофрированная ПНД для 20-й полимерной трубы, синяя, бухта 50 метров | F59: 25 | G59: 35.50 | H59: 35.50
C60: GK 725030B | D60: Труба гофрированная ПНД для 25-й полимерной трубы, синяя, бухта 30 метров | F60: 32 | G60: 46.30 | H60: 46.30
C61: GK 732030B | D61: Труба гофрированная ПНД для 32-й полимерной трубы, синяя, бухта 30 метров | F61: 40 | G61: 60.40 | H61: 60.40
A62: Аксиальные фитинги
C63: Артикул | D63: Наименование товара | F63: Размер | G63: Цена за шт. | H63: Цена за шт.
G64: EUR | H64: RUB | J64: Нет в 1С | K64: Есть в 1С
C65: GK 7GX001000016 | D65: Кольцо монтажное GX 16 | F65: 16 | G65: 0.35 | H65: =G65*$B$2 -> 35.00 | J65: GK 7GX002004040
C66: GK 7GX001000020 | D66: Кольцо монтажное GX 20 | F66: 20 | G66: 0.40 | H66: =G66*$B$2 -> 40.00 | J66: GK 7GX002004025
C67: GK 7GX001000025 | D67: Кольцо монтажное GX 25 | F67: 25 | G67: 0.67 | H67: 67.00 | J67: GK 7GX002004032
C68: GK 7GX001000032 | D68: Кольцо монтажное GX 32 | F68: 32 | G68: 1.09 | H68: 109.00 | J68: GK 7GX005040114
C69: GK 7GX002001616 | D69: Прямой фитинг GX 16x16 | F69: 16x16 | G69: 1.67 | H69: 167.00 | J69: GK 7GX005040112
C70: GK 7GX002002020 | D70: Прямой фитинг GX 20x20 | F70: 20x20 | G70: 3.15 | H70: 315.00 | J70: GK 7GX006040114
C71: GK 7GX002002525 | D71: Прямой фитинг GX 25x25 | F71: 25x25 | G71: 4.47 | H71: 447.00 | J71: GK 7GX006040112
C72: GK 7GX002003232 | D72: Прямой фитинг GX 32x32 | F72: 32x32 | G72: 10.87 | H72: 1087.00 | J72: GK 7GX003004040
C73: GK 7GX002004040 | D73: Прямой фитинг GX 40x40 | F73: 40x40 | G73: 26.51 | H73: 2651.00 | J73: GK 7GX004404040
C74: GK 7GX002002016 | D74: Прямой переходный фитинг GX 20x16 | F74: 20x16 | G74: 2.64 | H74: 264.00 | J74: GK 7GX004402040
C75: GK 7GX002002516 | D75: Прямой переходный фитинг GX 25x16 | F75: 25x16 | G75: 4.15 | H75: 415.00 | J75: GK 7GX004402540
C76: GK 7GX002002520 | D76: Прямой переходный фитинг GX 25x20 | F76: 25x20 | G76: 4.15 | H76: 415.00 | J76: GK 7GX004403232
C77: GK 7GX002003220 | D77: Прямой переходный фитинг GX 32x20 | F77: 32x20 | G77: 14.11 | H77: 1411.00 | J77: GK 7GX004403240
C78: GK 7GX002003225 | D78: Прямой переходный фитинг GX 32x25 | F78: 32x25 | G78: 11.04 | H78: 1104.00 | J78: GK 7GX016201220
C79: GK 7GX002004025 | D79: Прямой переходный фитинг GX 40x25 | F79: 40x25 | G79: 24.55 | H79: 2455.00 | J79: GK 7GX016203420
C80: GK 7GX002004032 | D80: Прямой переходный фитинг GX 40x32 | F80: 40x32 | G80: 24.25 | H80: 2425.00 | J80: GK 7GX016253425
C81: GK 7GX005001612 | D81: Прямой фитинг GX с наружной резьбой 16x1/2"M | F81: 16x1/2"M | G81: 1.91 | H81: 191.00 | J81: GK 7GX016320132
C82: GK 7GX005002012 | D82: Прямой фитинг GX с наружной резьбой 20x1/2"M | F82: 20x1/2"M | G82: 2.42 | H82: 242.00 | J82: GK 7GX017201220
C83: GK 7GX005002512 | D83: Прямой фитинг GX с наружной резьбой 25x1/2"M | F83: 25x1/2"M | G83: 3.67 | H83: 367.00 | J83: GK 7GX017203420
C84: GK 7GX005001634 | D84: Прямой фитинг GX с наружной резьбой 16x3/4"M | F84: 16x3/4"M | G84: 3.05 | H84: 305.00 | J84: GK 7GX017253425
C85: GK 7GX005002034 | D85: Прямой фитинг GX с наружной резьбой 20x3/4"M | F85: 20x3/4"M | G85: 3.33 | H85: 333.00 | J85: GK 7GX017320132
C86: GK 7GX005002534 | D86: Прямой фитинг GX с наружной резьбой 25x3/4"M | F86: 25x3/4"M | G86: 3.56 | H86: 356.00 | J86: GK 7GX011002534
C87: GK 7GX005002010 | D87: Прямой фитинг GX с наружной резьбой 20x1"M | F87: 20x1"M | G87: 4.84 | H87: 484.00
C88: GK 7GX005002510 | D88: Прямой фитинг GX с наружной резьбой 25x1"M | F88: 25x1"M | G88: 5.60 | H88: 560.00
C89: GK 7GX005003210 | D89: Прямой фитинг GX с наружной резьбой 32x1"M | F89: 32x1"M | G89: 9.78 | H89: 978.00
C90: GK 7GX005040114 | D90: Прямой фитинг GX с наружной резьбой 40x1"1/4M | F90: 40x1"1/4M | G90: 15.62 | H90: 1562.00
C91: GK 7GX005040112 | D91: Прямой фитинг GX с наружной резьбой 40x1"1/2M | F91: 40x1"1/2M | G91: 18.47 | H91: 1847.00
C92: GK 7GX006001612 | D92: Прямой фитинг GX с внутренней резьбой 16x1/2"F | F92: 16x1/2"F | G92: 3.38 | H92: 338.00
C93: GK 7GX006002012 | D93: Прямой фитинг GX с внутренней резьбой 20x1/2"F | F93: 20x1/2"F | G93: 3.65 | H93: 365.00
C94: GK 7GX006001634 | D94: Прямой фитинг GX с внутренней резьбой 16x3/4"F | F94: 16x3/4"F | G94: 4.00 | H94: 400.00
C95: GK 7GX006002034 | D95: Прямой фитинг GX с внутренней резьбой 20x3/4"F | F95: 20x3/4"F | G95: 5.35 | H95: 535.00
C96: GK 7GX006002534 | D96: Прямой фитинг GX с внутренней резьбой 25x3/4"F | F96: 25x3/4"F | G96: 5.84 | H96: 584.00
C97: GK 7GX006002510 | D97: Прямой фитинг GX с внутренней резьбой 25x1"F | F97: 25x1"F | G97: 7.98 | H97: 798.00
C98: GK 7GX006003210 | D98: Прямой фитинг GX с внутренней резьбой 32x1"F | F98: 32x1"F | G98: 14.96 | H98: 1496.00
C99: GK 7GX006040114 | D99: Прямой фитинг GX с внутренней резьбой 40x1"1/4F | F99: 40x1"1/4F | G99: 15.40 | H99: 1540.00
C100: GK 7GX006040112 | D100: Прямой фитинг GX с внутренней резьбой 40x1"1/2F | F100: 40x1"1/2F | G100: 17.76 | H100: 1776.00
C101: GK 7GX003001616 | D101: Угольник 90° GX 16x16 | F101: 16x16 | G101: 2.60 | H101: 260.00
C102: GK 7GX003002020 | D102: Угольник 90° GX 20x20 | F102: 20x20 | G102: 3.84 | H102: 384.00
C103: GK 7GX003002525 | D103: Угольник 90° GX 25x25 | F103: 25x25 | G103: 5.60 | H103: 560.00
C104: GK 7GX003003232 | D104: Угольник 90° GX 32x32 | F104: 32x32 | G104: 11.55 | H104: 1155.00
C105: GK 7GX003004040 | D105: Угольник 90° GX 40x40 | F105: 40x40 | G105: 24.75 | H105: 2475.00
C106: GK 7GX009001612 | D106: Угольник 90° GX с наружной резьбой | F106: 16x1/2"M | G106: 3.25 | H106: 325.00
C107: GK 7GX009002012 | D107: Угольник 90° GX с наружной резьбой | F107: 20x1/2"M | G107: 4.38 | H107: 438.00
C108: GK 7GX009001634 | D108: Угольник 90° GX с наружной резьбой | F108: 16x3/4"M | G108: 4.67 | H108: 467.00
C109: GK 7GX009002534 | D109: Угольник 90° GX с наружной резьбой | F109: 25x3/4"M | G109: 7.89 | H109: 789.00
C110: GK 7GX009002034 | D110: Угольник 90° GX с наружной резьбой | F110: 20x3/4"M | G110: 5.67 | H110: 567.00
C111: GK 7GX009002510 | D111: Угольник 90° GX с наружной резьбой | F111: 25x1"M | G111: 9.20 | H111: 920.00
C112: GK 7GX009003210 | D112: Угольник 90° GX с наружной резьбой | F112: 32x1"M | G112: 14.96 | H112: 1496.00
C113: GK 7GX010001612 | D113: Угольник 90° GX с внутренней резьбой | F113: 16x1/2"F | G113: 3.47 | H113: 347.00
C114: GK 7GX010002012 | D114: Угольник 90° GX с внутренней резьбой | F114: 20x1/2"F | G114: 4.45 | H114: 445.00
C115: GK 7GX010001634 | D115: Угольник 90° GX с внутренней резьбой | F115: 16x3/4"F | G115: 5.29 | H115: 529.00
C116: GK 7GX010002034 | D116: Угольник 90° GX с внутренней резьбой | F116: 20x3/4"F | G116: 5.36 | H116: 536.00
C117: GK 7GX010002534 | D117: Угольник 90° GX с внутренней резьбой | F117: 25x3/4"F | G117: 6.40 | H117: 640.00
C118: GK 7GX010002510 | D118: Угольник 90° GX с внутренней резьбой | F118: 25x1"F | G118: 11.62 | H118: 1162.00
C119: GK 7GX010003210 | D119: Угольник 90° GX с внутренней резьбой | F119: 32x1"F | G119: 19.60 | H119: 1960.00
C120: GK 7GX004161616 | D120: Тройник соединительный GX 16х16х16 | F120: 16x16x16 | G120: 3.33 | H120: 333.00
C121: GK 7GX004202020 | D121: Тройник соединительный GX 20х20х20 | F121: 20x20x20 | G121: 5.02 | H121: 502.00
C122: GK 7GX004252525 | D122: Тройник соединительный GX 25х25х25 | F122: 25x25x25 | G122: 7.51 | H122: 751.00
C123: GK 7GX004323232 | D123: Тройник соединительный GX 32х32х32 | F123: 32x32x32 | G123: 15.24 | H123: 1524.00
C124: GK 7GX004404040 | D124: Тройник соединительный GX 40х40х40 | F124: 40x40x40 | G124: 33.36 | H124: 3336.00
C125: GK 7GX004162016 | D125: Тройник переходной GX 16х20х16 | F125: 16x20x16 | G125: 4.73 | H125: 473.00
C126: GK 7GX004201616 | D126: Тройник переходной GX 20х16х16 | F126: 20x16X16 | G126: 4.73 | H126: 473.00
C127: GK 7GX004201620 | D127: Тройник переходной GX 20х16х20 | F127: 20x16x20 | G127: 5.16 | H127: 516.00
C128: GK 7GX004202016 | D128: Тройник переходной GX 20х20х16 | F128: 20x20x16 | G128: 5.45 | H128: 545.00
C129: GK 7GX004202520 | D129: Тройник переходной GX 20х25х20 | F129: 20x25x20 | G129: 7.40 | H129: 740.00
C130: GK 7GX004251616 | D130: Тройник переходной GX 25х16х16 | F130: 25x16x16 | G130: 5.89 | H130: =G130*$B$2 -> 589.00
C131: GK 7GX004251620 | D131: Тройник переходной GX 25х16х20 | F131: 25x16x20 | G131: 7.11 | H131: 711.00
C132: GK 7GX004251625 | D132: Тройник переходной GX 25х16х25 | F132: 25x16x25 | G132: 7.27 | H132: 727.00
C133: GK 7GX004252020 | D133: Тройник переходной GX 25х20х20 | F133: 25x20x20 | G133: 7.35 | H133: 735.00
C134: GK 7GX004252025 | D134: Тройник переходной GX 25х20х25 | F134: 25x20x25 | G134: 8.05 | H134: 805.00
C135: GK 7GX004252520 | D135: Тройник переходной GX 25х25х20 | F135: 25x25x20 | G135: 8.64 | H135: 864.00
C136: GK 7GX004252516 | D136: Тройник переходной GX 25х25х16 | F136: 25x25x16 | G136: 8.64 | H136: 864.00
C137: GK 7GX004322020 | D137: Тройник переходной GX 32х20х20 | F137: 32x20x20 | G137: 15.96 | H137: 1596.00
C138: GK 7GX004322025 | D138: Тройник переходной GX 32х20х25 | F138: 32x20x25 | G138: 15.56 | H138: 1556.00
C139: GK 7GX004322525 | D139: Тройник переходной GX 32х25х25 | F139: 32x25x25 | G139: 15.47 | H139: 1547.00
C140: GK 7GX004322532 | D140: Тройник переходной GX 32х25х32 | F140: 32x25x32 | G140: 15.75 | H140: 1575.00
C141: GK 7GX004323220 | D141: Тройник переходной GX 32х32х20 | F141: 32x32x20 | G141: 19.80 | H141: 1980.00
C142: GK 7GX004323225 | D142: Тройник переходной GX 32х32х25 | F142: 32x32x25 | G142: 16.31 | H142: 1631.00
C143: GK 7GX004402040 | D143: Тройник переходной GX 40х20х40 | F143: 40x20x40 | G143: 23.69 | H143: 2369.00
C144: GK 7GX004402540 | D144: Тройник переходной GX 40х25х40 | F144: 40x25x40 | G144: 25.09 | H144: 2509.00
C145: GK 7GX004403232 | D145: Тройник переходной GX 40х32х32 | F145: 40x32x32 | G145: 24.55 | H145: 2455.00
C146: GK 7GX004403240 | D146: Тройник переходной GX 40х32х40 | F146: 40x32x40 | G146: 27.95 | H146: 2795.00
C147: GK 7GX016161216 | D147: Тройник с наружной резьбой GX 16x1/2"Mx16 | F147: 16x1/2"Mx16 | G147: 4.73 | H147: 473.00
C148: GK 7GX016201220 | D148: Тройник с наружной резьбой GX 20x1/2"Mx20 | F148: 20x1/2"Mx20 | G148: 5.84 | H148: 584.00
C149: GK 7GX016203420 | D149: Тройник с наружной резьбой GX 20x3/4"Mx20 | F149: 20x3/4"Mx20 | G149: 7.44 | H149: 744.00
C150: GK 7GX016253425 | D150: Тройник с наружной резьбой GX 25x3/4"Mx25 | F150: 25x3/4"Mx25 | G150: 10.05 | H150: 1005.00
C151: GK 7GX016320132 | D151: Тройник с наружной резьбой GX 32x1"Mx32 | F151: 32x1"Mx32 | G151: 16.85 | H151: 1685.00
C152: GK 7GX017161216 | D152: Тройник GX с внутренней резьбой | F152: 16x1/2"Fx16 | G152: 4.29 | H152: 429.00
C153: GK 7GX017201220 | D153: Тройник GX с внутренней резьбой | F153: 20x1/2"Fx20 | G153: 5.45 | H153: 545.00
C154: GK 7GX017203420 | D154: Тройник GX с внутренней резьбой | F154: 20x3/4"Fx20 | G154: 7.82 | H154: 782.00
C155: GK 7GX017253425 | D155: Тройник GX с внутренней резьбой | F155: 25x3/4"Fx25 | G155: 8.31 | H155: 831.00
C156: GK 7GX017320132 | D156: Тройник GX с внутренней резьбой | F156: 32x1"Fx32 | G156: 16.64 | H156: 1664.00
C157: GK 7GX011001612 | D157: Угольник установочный GX с внутренней резьбой | F157: 16x1/2"F | G157: 5.62 | H157: 562.00
C158: GK 7GX018001612 | D158: Угольник установочный GX с внутренней резьбой | F158: 16x1/2"F (45 мм) | G158: 5.53 | H158: 553.00
C159: GK 7GX011002012 | D159: Угольник установочный GX с внутренней резьбой | F159: 20x1/2"F | G159: 6.87 | H159: 687.00
C160: GK 7GX018002012 | D160: Угольник установочный GX с внутренней резьбой | F160: 20x1/2"F (45 мм) | G160: 6.78 | H160: 678.00
C161: GK 7GX011002034 | D161: Угольник установочный GX с внутренней резьбой | F161: 20x3/4"F | G161: 9.20 | H161: 920.00
C162: GK 7GX011002534 | D162: Угольник установочный GX с внутренней резьбой | F162: 25x3/4"F | G162: 9.13 | H162: 913.00
C163: GK 7GX012001625 | D163: Угольник GX с хромированной трубкой (250 мм) | F163: 16x15(L-250 мм) | G163: 10.53 | H163: 1053.00
C164: GK 7GX012002025 | D164: Угольник GX с хромированной трубкой (250 мм) | F164: 20x15(L-250 мм) | G164: 12.53 | H164: 1253.00
C165: GK 7GX019001625 | D165: Тройник GX с хромированной трубкой (250 мм) | F165: 16x15(L-250 мм)x16 | G165: 14.53 | H165: 1453.00
C166: GK 7GX019002025 | D166: Тройник GX с хромированной трубкой (250 мм) | F166: 20x15(L-250 мм)x20 | G166: 16.47 | H166: 1647.00
C167: GK 7GX020000016 | D167: Заглушка GX 16 | F167: 16 | G167: 1.25 | H167: 125.00
C168: GK 7GX020000020 | D168: Заглушка GX 20 | F168: 20 | G168: 2.38 | H168: 238.00
C169: GK 7GX020000025 | D169: Заглушка GX 25 | F169: 25 | G169: 3.58 | H169: 358.00
C170: GK 7GX008001612 | D170: Фитинг с накидной гайкой GX 1/2"E x 16 PEX | F170: 1/2"Ex16 PEX | G170: 4.40 | H170: 440.00
C171: GK 7GX008001634 | D171: Фитинг с накидной гайкой GX 3/4"E x 16 PEX | F171: 3/4"Ex16 PEX | G171: 3.85 | H171: 385.00
C172: GK 7GX008002034 | D172: Фитинг с накидной гайкой GX 3/4"E x 20 PEX | F172: 3/4"Ex20 PEX | G172: 5.80 | H172: 580.00
C173: GK 7GX013002034 | D173: Переходник для пластиковой трубы с соединением евроконус, 3/4"E x(16x2,2) | F173: 3/4"E x 16 PEX (16*2,2) | G173: 3.47 | H173: 347.00
C174: GK 7GX013001534 | D174: Переходник для пластиковой трубы с соединением евроконус, 3/4"E x(20x2,8) | F174: 3/4"E x 20 PEX (20*2,8) | G174: 4.11 | H174: 411.00
C175: GK 7GX013001634 | D175: Переходник для медной трубы с соединением евроконус, 3/4"E x15 | F175: 3/4"E x 15 | G175: 2.45 | H175: 245.00
A176: Шкафы коллекторные
C177: Артикул | D177: Наименование товара | F177: Высота х ширина | G177: Цена за шт. | H177: Цена за шт.
G178: RUB | H178: RUB
C179: GK SHV-0 | D179: Шкаф встроенный (ШРВ) с накладной дверцей, регулируемая глубина от 125 до 195 мм | F179: 668 x 402 | G179: 3840.75 | H179: =G179*1.06 -> 4071.20
C180: GK SHV-1 | F180: 668 x 492 | G180: 4098.41 | H180: =G180*1.06 -> 4344.31
C181: GK SHV-2 | F181: 668 x 592 | G181: 4770.00 | H181: 5056.20
C182: GK SHV-3 | F182: 668 x 742 | G182: 5865.75 | H182: 6217.70
C183: GK SHV-4 | F183: 668 x 892 | G183: 6862.50 | H183: 7274.25
C184: GK SHV-5 | F184: 668 x 1042 | G184: 7582.50 | H184: 8037.45
C185: GK SHV-6 | F185: 668 x 1192 | G185: 8302.50 | H185: 8800.65
C186: GK SHN-0 | D186: Шкаф наружный (ШРН) с накладной дверцей, стандартная глубина 120 мм | F186: 652 x 367 | G186: 3217.50 | H186: 3410.55
C187: GK SHN-1 | F187: 652 x 457 | G187: 3881.82 | H187: 4114.73
C188: GK SHN-2 | F188: 652 x 557 | G188: 4154.81 | H188: 4404.10
C189: GK SHN-3 | F189: 652 x 707 | G189: 4954.20 | H189: 5251.45
C190: GK SHN-4 | F190: 652 x 857 | G190: 5898.96 | H190: 6252.90
C191: GK SHN-5 | F191: 652 x 1007 | G191: 6716.01 | H191: 7118.97
C192: GK SHN-6 | D192: Трехходовой фитинг для установки в поток датчика температуры | F192: 652 x 1157 | G192: 7933.47 | H192: 8409.48
C193: GK SHN-150-0 | D193: Шкаф наружный (ШРН) с накладной дверцей, увеличенная глубина 150 мм | F193: 652 x 367 | G193: 3712.50 | H193: 3935.25
C194: GK SHN-150-1 | F194: 652 x 457 | G194: 4185.00 | H194: 4436.10
C195: GK SHN-150-2 | F195: 652 x 557 | G195: 4538.48 | H195: 4810.79
C196: GK SHN-150-3 | F196: 652 x 707 | G196: 5496.32 | H196: 5826.10
C197: GK SHN-150-4 | F197: 652 x 857 | G197: 6304.50 | H197: 6682.77
C198: GK SHN-150-5 | F198: 652 x 1007 | G198: 7543.42 | H198: 7996.03
C199: GK SHN-150-6 | D199: Трехходовой фитинг для установки в поток датчика температуры | F199: 652 x 1157 | G199: 8340.75 | H199: 8841.20
A200: Узлы ТП, коллекторы
... 421 more rows
